Workbook

Sheet COVER
A1: Due to ROE on October 15th | H1: ILLINOIS STATE BOARD OF EDUCATION
A2: Due to ISBE on November 15th | H2: School Business Services Division
A3: SD/JA10 | H3: 100 North First Street, Springfield, Illinois 62777-0001
H4: 217/785-8779
B5: x | C5: School District | H5: Illinois School District/Joint Agreement
C6: Joint Agreement | H6: Annual Financial Report *
H7: 2010-06-30
H9: Accounting Basis: | S9: Certified Public Accountant Information
A10: School District/Joint Agreement Information
A11: (See instructions on inside of this page.) | N11: x | O11: CASH
A12: School District/Joint Agreement Number: | O12: ACCRUAL | S12: Name of Auditing Firm:
A13: 51-084-0110-26 | S13: Pehlman and Dold, P.C.
A14: County Name: | S14: Name of Audit Supervisor:
A15: Sangamon | S15: Dorinda L. Fitzgerald, CPA
A16: Name of School District/Joint Agreement: | S16: Address:
A17: Pawnee CUSD #11 | S17: 100 North Amos Avenue
A18: Address: | H18: Filing Status: | S18: City: | W18: State: | Y18: Zip Code:
A19: P.O. Box 1040 | L19: Submit electronic AFR directly to ISBE | S19: Springfield | W19: IL | Y19: 62702
A20: City: | S20: Phone Number: | X20: Fax Number:
A21: Pawnee, IL | H21: Click on the Link to Submit: | S21: 217-787-0563 | X21: 217-787-9266
A22: Email Address: | H22: Send ISBE a File | S22: IL Registration Number:
S23: 060-004845
A24: Zip Code: | S24: Email Address:
A25: 62558 | S25: pandd@hansoninfosys.com
C27: Annual Financial Report | H27: A-133 Single Audit Status:
C28: Type of Auditor's Report Issued: | V28: ISBE Use Only
B29: x | C29: Qualified | J29: YES | K29: x | L29: NO | M29: Are Federal expenditures greater than $500,000?
C30: Adverse | J30: YES | L30: NO | M30: Is all A-133 Single Audit Information completed and attached?
C31: Disclaimer | J31: YES | L31: NO | M31: Were any findings issued?
C34: Reviewed by District Superintendent/Administrator | L34: Reviewed by Township Treasurer (Cook County only) | U34: Reviewed by Regional Superintendent/Cook ISC
K35: Name of Township:
A37: District Superintendent/Administrator Name (Type or Print): | H37: Township Treasurer Name (type or print) | S37: RegionalSuperintendent/Cook ISC Name (Type or Print):
A39: Email Address: | H39: Email Address: | S39: Email Address:
A41: Telephone: | D41: Fax Number: | H41: Telephone: | O41: Fax Number: | S41: Telephone: | W41: Fax Number:
A43: Signature & Date: | H43: Signature & Date: | S43: Signature & Date:
A45: * This form is based on 23 Illinois Administrative Code 100, Subtitle A, Chapter I, Subchapter C (Part 100).
A46: ISBE Form SD50-35/JA50-60 (06/10)

Sheet TOC
A1: TABLE OF CONTENTS
D2: TAB Name | E2: AFR Page No.
A4: Auditor's Questionnaire……………………………...………....…………………………..………..................................................... | D4: Aud Quest | E4: 2
A5: Comments Applicable to the Auditor's Questionnaire……..……..………………. ………………….…………………………. | D5: Aud Quest | E5: 2
A6: Financial Profile Information …………………………………………….…………………………………………….................................................. | D6: FP Info | E6: 3
A7: Estimated Financial Profile Summary…………………………………………………………………………………………………………...... | D7: Financial Profile | E7: 4
A8: Basic Financial Statements
B9: Statement of Assets and Liabilities Arising from Cash Transactions/Statement of Position ………………............................................... | D9: Assets-Liab | E9: 5 - 6
B10: Statement of Revenues Received/Revenues, Expenditures Disbursed/Expenditures, Other
B11: Sources (Uses) and Changes in Fund Balances (All Funds)…...……………..…………………….......................................... | D11: Acct Summary | E11: 7 - 8
B12: Statements of Revenues Received/Revenues (All Funds)………………………………………………………………................................. | D12: Revenues | E12: 9 - 14
B13: Statements of Expenditures Disbursed/Expenditures Budget to Actual (All Funds)……………………….................................................... | D13: Expenditures | E13: 15 - 22
A14: Supplementary Schedules
B15: Federal Stimulus - American Recovery and Reinvestment Act (ARRA) of FY10 Schedule……………………………………………. | D15: ARRA Sched | E15: 23
B16: Schedule of Ad Valorem Tax Receipts…………………………………………………………………………………………….. | D16: Tax Sched | E16: 24
B17: Schedule of Short-Term Debt/Long-Term Debt ………………………………………………………….................................................... | D17: Short-Term Long-Term Debt | E17: 25
B18: Schedule of Restricted Local Tax Levies and Selected Revenue Sources/
B19: Schedule of Tort Immunity Expenditures…………………………………..….……………….……………………..…....... | D19: Rest Tax Levies-Tort Im | E19: 26
A20: Statistical Section
B21: Schedule of Capital Outlay and Depreciation……………………………………………………………………................................................ | D21: Cap Outlay Deprec | E21: 27
B22: Estimated Operating Expenditures Per Pupil and Per Capita Tuition Charge Computation FY10…………… | D22: PCTC-OEPP | E22: 28 - 29
A23: Estimated Indirect Cost Rate for Federal Programs (Section I, Section II)………………………………………………............................................. | D23: ICR Computation | E23: 30
A24: Administrative Cost Worksheet……………………………………………………………………….……………................................................ | D24: AC | E24: 31
A25: Itemization Schedule…………………………………………………………………………………………………................................................ | D25: ITEMIZATION | E25: 32
A26: Reference Page……………………………………………………………………………………………………….................................................. | D26: REF | E26: 33
A27: Notes, Opinion Letters, etc…… | D27: Opinion-Notes | E27: 34
A28: Audit Checklist/Balancing Schedule………………………………………………………………………………................................................. | D28: AUDITCHECK | E28: -
A29: A-133 Single Audit Section
B30: Annual Federal Compliance Report…………………………………………………………………………………............................................. | D30: A-133 Cover - CAP | E30: 35 - 44
A33: INSTRUCTIONS/REQUIREMENTS: For School Districts/Joint Agreements
A35: All School Districts/Joint Agreements must complete this form (Note: joint agreement supplementary/statistical schedules may not be applicable)
A36: Round all amounts to the nearest dollar. Do not enter cents. (Exception: 9 Month ADA on page 28, line 78)
A37: This form complies with Part 100 (Requirements for Accounting, Budgeting, Financial Reporting, and Auditing).
B39: 23, Illinois Administrative Code 100, Subtitle A, Chapter I, Subchapter C (Part 100)
A41: Any errors left unresolved by the Audit Checklist/Balancing Schedule must be explained in the itemization page.
A43: Submit AFR Electronically
A44: * The Annual Financial Reports (AFR) must be submitted directly through the Attachment Manager to the AFR Group by the Auditor or School District
B45: designated personnel (Please see Instructions for complete submission procedures).
B47: Attachment Manager Link
B49: Note: CD/Disk no longer accepted.
A51: * AFR supporting documentation must be embedded as Microsoft Word (.doc), Word Perfect (*.wpd) or Adobe (*.pdf) and inserted within tab "Opinions & Notes".
A52: These documents include: The Audit, Management letter, Opinion letters, Compliance letters, Financial notes etc…. For embedding instructions see
B53: "Opinions & Notes" tab of this form.
A54: Note: Adobe Acrobat (*.pdf) files cannot be embedded if you do not have the software. Simply attach files as separate docs in the Attachment
A55: Manager and they will be embedded for you.
A58: Submit Paper Copy of AFR with Signatures
A59: 1) The auditor must send three paper copies of the AFR form (cover through page 8 at minimum) to the School District with the auditor signature.
A60: Note: School Districts and Regional Superintendents may prefer a complete paper copy in lieu of an electronic file. Please comply with their requests as neccessary.
A61: 2) Upon receipt, the School District retains one copy for their records, signs, and forwards the remaining two copies to the Regional Superintendent's
B62: office no later than October 15, annually.
A63: 3) Upon receipt, the Regional Superintendent's office retains one copy for their records, signs, and forwards the remaining paper copy to ISBE no later
B64: than November 15, annually.
A66: * Yellow Book, CPE, and Peer Review requirements must be met if the Auditor issues an opinion stating "Governmental Accounting Standards" were utilized.
B67: Single Audit Act A-133

Sheet Aud Quest 2
A2: AUDITOR'S QUESTIONNAIRE
C4: INSTRUCTIONS: If your review and testing of State, Local, and Federal Programs revealed any of the following statements to be true, then check
C5: the box on the left, and attach the appropriate findings/comments.
A7: PART A - FINDINGS
C9: 1 | D9: One or more school board members, administrators, certified school business officials, or other qualifying district employees failed to file economic
D10: interest statements pursuant to the Illinois Government Ethics Act. [5 ILCS 420/4A-101]
C11: 2 | D11: One or more custodians of funds failed to comply with the bonding requirements pursuant to Sections 8-2, 10-20.19 or 19-6 of the School Code.
D12: [105 ILCS 5/8-2; 10-20.19; 19-6]
C13: 3 | D13: One or more contracts were executed or purchases made contrary to the provisions of Section 10-20.21 of the School Code. [105 ILCS 5/10-20.21]
C14: 4 | D14: One or more violations of the Public Funds Deposit Act or the Public Funds Investment Act were noted. [30 ILCS 225/1 et. seq. and 30 ILCS 235/1 et. seq.]
C15: 5 | D15: Restricted funds were commingled in the accounting records or used for other than the purpose for which they were restricted.
C16: 6 | D16: One or more short-term loans or short-term debt instruments were executed in non-conformity with the applicable authorizing statute or without
D17: statutory authority.
C18: 7 | D18: One or more long-term loans or long-term debt instruments were executed in non-conformity with the applicable authorizing statute or without
D19: statutory authority.
C20: 8 | D20: Corporate Personal Property Replacement Tax monies were deposited and/or used without first satisfying the lien imposed pursuant to the State
D21: Revenue Sharing Act. [30 ILCS 115/12]
C22: 9 | D22: One or more interfund loans were made in non-conformity with the applicable authorizing statute or without statutory authorization.
C23: 10 | D23: One or more interfund loans were outstanding beyond the term provided by statute.
C24: 11 | D24: One or more permanent transfers were made in non-conformity with the applicable authorizing statute/regulation or without statutory/regulatory authorization.
C25: 12 | D25: Substantial, or systematic misclassification of budgetary items such as, but not limited to, revenues, receipts, expenditures, disbursements or expenses
D26: were observed.
C27: 13 | D27: The Chart of Accounts used to define and control budget and accounting records does not conform to the minimum requirements imposed by
D28: ISBE rules pursuant to Sections 2-3.27 and 2-3.28 of the School Code. [105 ILCS 5/2-3.27; 2-3.28]
A30: PART B - FINANCIAL DIFFICULTIES/CERTIFICATION Criteria pursuant to Section 1A-8 of the School Code [105 ILCS 5/1A-8]
C32: 14 | D32: The district has issued tax anticipation warrants or tax anticipation notes in anticipation of a second year's taxes when warrants or notes in
D33: anticipation of current year taxes are still outstanding, as authorized by Sections 17-16 or 34-23 thru 34-27 of the School Code.
D34: [105 ILCS 5/17-16 or 34-23 thru 34-27]
C35: 15 | D35: The district has issued short-term debt against two future revenue sources, such as, but not limited to, tax anticipation warrants and General State Aid
D36: certificates or tax anticipation warrants and revenue anticipation notes.
C37: 16 | D37: The district has issued school or teacher orders for wages as permitted in Sections 8-16, 32-7.2 and 34-76 of the School Code or issued funding
D38: bonds for this purpose pursuant to Section 19-8 of the School Code. [105 ILCS 5/8-6, 32-7.2, 34-76, and 19-8]
C39: 17 | D39: The district has for two consecutive years shown an excess of expenditures/other uses over revenues/other sources and beginning fund balances
D40: on its annual financial report for the aggregate totals of the Educational, Operations & Maintenance, Transportation, and Working Cash Funds.
A42: PART C - OTHER ISSUES
C44: 18 | D44: Student Activity Funds, Imprest Funds, or other funds maintained by the district were excluded from the audit.
C45: 19 | D45: Findings, other than those listed in Part A (above), were reported (e.g. student activity fund findings).
C46: 20 | D46: Federal Stimulus Funds were not maintained and expended in accordance with the American Recovery and Reinvestment Act (ARRA) of 2009. If checked,
D47: an explanation must be provided.
C48: 21 | D48: Check this box If the district is subject to the Property Tax Extension Limitation Law. Effective Date:
F49: mm/dd/yyyy
B50: Comments Applicable to the Auditor's Questionnaire:
C63: Pehlman and Dold, P.C.
D64: Name of Audit Firm (print)
C66: This is to affirm that this audit was performed in accordance with the applicable standards [23 Illinois Administrative Code Part 100] and the scope of the audit conformed to the requirements of subsection (a) or (b) of 23 Illinois Administrative Code Part 100 Section 110, as applicable.
D68: Signature | F68: mm/dd/yyyy

Sheet FP Info 3
A1: FINANCIAL PROFILE INFORMATION
A3: Required to be completed for School Districts only.
A5: A. | B5: Tax Rates (Enter the tax rate - ex: .0150 for $1.50)
D7: Tax Year 2009 | F7: Equalized Assessed Valuation (EAV): | J7: 58197950
D9: Educational | F9: Operations & Maintenance | H9: Transportation | J9: Combined Total | L9: Working Cash
A10: Rate(s): | D10: 0.0184 | E10: + | F10: 0.005 | G10: + | H10: 0.002 | I10: = | J10: =ROUND(D10+F10+H10,5) -> 0.0254 | L10: 0.0005
D11: =IF(SUM(J10)<=0.0999999,"","Enter the Tax Rates by moving the decimal two places to the left.") -> 
A13: B. | B13: Results of Operations *
D15: Receipts/Revenues | F15: Disbursements/ Expenditures | H15: Excess/ (Deficiency) | J15: Fund Balance
D16: =SUM('Acct Summary 7-8'!C8,'Acct Summary 7-8'!D8,'Acct Summary 7-8'!F8,'Acct Summary 7-8'!I8) -> 4525848 | F16: =SUM('Acct Summary 7-8'!C17,'Acct Summary 7-8'!D17,'Acct Summary 7-8'!F17) -> 4931124 | H16: =SUM(D16-F16) -> -405276 | J16: =SUM('Acct Summary 7-8'!C80,'Acct Summary 7-8'!D80,'Acct Summary 7-8'!F80,'Acct Summary 7-8'!I80) -> 3314465
B17: * | C17: The numbers shown are the sum of entries on Pages 7 & 8, lines 8, 17, 20, and 65 for the Educational, Operations & Maintenance,
C18: Transportation and Working Cash Funds.
A20: C. | B20: Short-Term Debt **
D21: CPPRT Notes | F21: TAWs | H21: TANs | J21: TO/EMP. Orders | L21: GSA Certificates
D22: ='Short-Term Long-Term Debt 25'!F4 -> 0 | E22: + | F22: ='Short-Term Long-Term Debt 25'!F15 -> 0 | G22: + | H22: ='Short-Term Long-Term Debt 25'!F21 -> 0 | I22: + | J22: ='Short-Term Long-Term Debt 25'!F23 -> 0 | K22: + | L22: ='Short-Term Long-Term Debt 25'!F25 -> 0 | M22: +
D23: Other | F23: Total
D24: ='Short-Term Long-Term Debt 25'!F27 -> 0 | E24: = | F24: =SUM(D22,F22,H22,J22,L22, D24) -> 0
B25: ** | C25: The numbers shown are the sum of entries on page 25.
A28: D. | B28: Long-Term Debt
B29: Check the applicable box for long-term debt allowance by type of district.
C31: a. | D31: 6.9% for elementary and high school districts, | H31: =IF(B31="X",(J7*0.069),IF(B32="X",(J7*0.138),"Enter x in a.or b.")) -> 8031317.1
B32: x | C32: b. | D32: 13.8% for unit districts.
B34: Long-Term Debt Outstanding:
C36: c. | D36: Long-Term Debt (Principal only) | G36: Acct
D37: Outstanding:……….....…………….... | G37: 511 | H37: ='Assets-Liab 5-6'!N36 -> 714348
A40: E. | B40: Material Impact on Financial Position
B41: If applicable, check any of the following items that may have a material impact on the entity's financial position during future reporting periods.
B42: Attach sheets as needed explaining each item checked.
C44: Pending Litigation
C45: Material Decrease in EAV
C46: Material Increase/Decrease in Enrollment
C47: Adverse Arbitration Ruling
C48: Passage of Referendum
C49: Taxes Filed Under Protest
C50: Decisions By Local Board of Review or Illinois Property Tax Appeal Board (PTAB)
C51: Other Ongoing Concerns (Describe & Itemize)
B53: Comments:

Sheet Fin Profile 4
A2: ESTIMATED FINANCIAL PROFILE SUMMARY
A3: (Go to the following web site for reference to the Financial Profile)
F4: www.isbe.net/sfms/p/profile.htm
C7: District Name: | D7: =COVER!A17 -> Pawnee CUSD #11
C8: District Code: | D8: =COVER!A13 -> 51-084-0110-26
C9: County Name: | D9: =COVER!A15 -> Sangamon
B11: 1. | C11: Fund Balance to Revenue Ratio: | H11: Total | K11: Ratio | M11: Score | O11: =IF(K12>0.24999,"4",IF(K12>0.09999,"3",IF(K12>=0,"2",1))) -> 4
C12: Total Sum of Fund Balance (P8, Cells C80, D80, F80 & I80) | F12: Funds 10, 20, 40, 70 + (50 & 80 if negative) | H12: =SUM('Acct Summary 7-8'!C80+'Acct Summary 7-8'!D80+'Acct Summary 7-8'!F80+'Acct Summary 7-8'!I80+IF('Acct Summary 7-8'!G80<0,'Acct Summary 7-8'!G80,"0")+IF('Acct Summary 7-8'!J80<0,'Acct Summary 7-8'!J80,"0")) -> 3314465 | K12: =TRUNC((H12/H13*100000),5)/100000 -> 0.7323412098 | M12: Weight | O12: 0.35
C13: Total Sum of Direct Revenues (P7, Cell C8, D8, F8 & I80) | F13: Funds 10, 20, 40, & 70, | H13: =SUM('Acct Summary 7-8'!C8+'Acct Summary 7-8'!D8+'Acct Summary 7-8'!F8+'Acct Summary 7-8'!I8)+H14 -> 4525848 | M13: Value | O13: =(O11*O12) -> 1.4
C14: Less: Operating Debt Pledged to Other Funds (P8, Cell C53 thru D73) | F14: Minus Funds 10 & 20 | H14: =-SUM('Acct Summary 7-8'!C53:D55,'Acct Summary 7-8'!C57:D59,'Acct Summary 7-8'!C61:D63,'Acct Summary 7-8'!C65:D67,'Acct Summary 7-8'!C69:D71,'Acct Summary 7-8'!C73:D73) -> 0
B16: 2. | C16: Expenditures to Revenue Ratio: | H16: Total | K16: Ratio | M16: Score | O16: =IF(K17>1.2,"1",IF(K17>1.1,"2",IF(K17>1,"3",4))) -> 3
C17: Total Sum of Direct Expenditures (P7, Cell C17, D17, F17, I17) | F17: Funds 10, 20 & 40 | H17: =SUM('Acct Summary 7-8'!C17+'Acct Summary 7-8'!D17+'Acct Summary 7-8'!F17) -> 4931124 | K17: =TRUNC((H17/H18*100000),5)/100000 -> 1.089546976 | M17: Adjustment | O17: =IF(AND(O16="2", J20 > 2),"1",IF(AND(O16 = "1", J20 > 2),"2",IF(AND(O16="1", J20 >1),"1","0"))) -> 0
C18: Total Sum of Direct Revenues (P7, Cell C8, D8, F8, & I80) | F18: Funds 10, 20, 40 & 70, | H18: =SUM('Acct Summary 7-8'!C8+'Acct Summary 7-8'!D8+'Acct Summary 7-8'!F8+'Acct Summary 7-8'!I8)+H19 -> 4525848 | M18: Weight | O18: 0.35
C19: Less: Operating Debt Pledged to Other Funds (P8, Cell C53 thru D73) | F19: Minus Funds 10 & 20 | H19: =-SUM('Acct Summary 7-8'!C53:D55,'Acct Summary 7-8'!C57:D59,'Acct Summary 7-8'!C61:D63,'Acct Summary 7-8'!C65:D67,'Acct Summary 7-8'!C69:D71,'Acct Summary 7-8'!C73:D73) -> 0
C20: Possible Adjustment: | J20: =IF(K17<=1,"0",TRUNC(((K12-0.1)/(K17-1)*100),5)/100) -> 7.0615585 | K20: =IF(K17<=1,"0",IF(AND(O16="2", J20 > 2),TRUNC(((K12-0.1)/(K17-1)*100),5)/100,IF(AND(O16 = "1", J20 > 2),TRUNC(((K12-0.1)/(K17-1)*100),5)/100,IF(AND(O16="1", J20 >1),TRUNC(((K12-0.1)/(K17-1)*100),5)/100,"")))) ->  | M20: Value | O20: =(O16+O17)*O18 -> 1.05
B22: 3. | C22: Days Cash on Hand: | H22: Total | K22: Days | M22: Score | O22: =IF(K23>=180,"4",IF(K23>=90,"3",IF(K23>=30,"2",1))) -> 4
C23: Total Sum of Cash & Investments (P5, Cell C4, D4, F4, I4 & C5, D5, F5 &I5) | F23: Funds 10, 20 40 & 70 | H23: =SUM('Assets-Liab 5-6'!C4+'Assets-Liab 5-6'!D4+'Assets-Liab 5-6'!F4+'Assets-Liab 5-6'!I4+'Assets-Liab 5-6'!C5+'Assets-Liab 5-6'!D5+'Assets-Liab 5-6'!F5+'Assets-Liab 5-6'!I5) -> 3204795 | K23: =TRUNC(((H23/H24*100000)/100000),2) -> 233.96 | M23: Weight | O23: 0.1
C24: Total Sum of Direct Expenditures (P7, Cell C17, D17, F17 & I17) | F24: Funds 10, 20, 40 divided by 360 | H24: =ROUND((H17/360),5) -> 13697.56667 | M24: Value | O24: =O22*O23 -> 0.4
B26: 4. Percent of Short-Term Borrowing Maximum Remaining: | H26: Total | K26: Percent | M26: Score | O26: =IF(K27>=75,"4",IF(K27>=50,"3",IF(K27>=25,"2",1))) -> 4
C27: Tax Anticipation Warrants Borrowed (P25, Cell F6-7 & F11) | F27: Funds 10, 20 & 40 | H27: =SUM('Short-Term Long-Term Debt 25'!F6,'Short-Term Long-Term Debt 25'!F7,'Short-Term Long-Term Debt 25'!F11) -> 0 | K27: =TRUNC(100-((((H27/H28*100))*100)/100),2) -> 100 | M27: Weight | O27: 0.1
C28: EAV x 85% x Combined Tax Rates (P3, Cell J7 and J10) | F28: (.85 x EAV) x Sum of Combined Tax Rates | H28: =ROUND((0.85*'FP Info 3'!J7*'FP Info 3'!J10),5) -> 1256493.741 | M28: Value | O28: =O26*O27 -> 0.4
B30: 5. Percent of Long-Term Debt Margin Remaining: | H30: Total | K30: Percent | M30: Score | O30: =IF(K31>=75,"4",IF(K31>=50,"3",IF(K31>=25,"2",1))) -> 4
C31: Long-Term Debt Outstanding (P3, Cell H37) | H31: ='FP Info 3'!H37 -> 714348 | K31: =TRUNC(100-((((H31/H32*100))*100)/100),2) -> 91.1 | M31: Weight | O31: 0.1
C32: Total Long-Term Debt Allowed (P3, Cell H31) | H32: =IF('FP Info 3'!H31="Enter X in a or b"," ",'FP Info 3'!H31) -> 8031317.1 | M32: Value | O32: =(O30*O31) -> 0.4
M34: Total Profile Score: | O34: =(O13+O20+O24+O28+O32) -> 3.65 | P34: *
M36: Estimated 2010 Financial Profile Designation: | O36: =IF(O34>3.53,"RECOGNITION",IF(O34>3.07,"REVIEW ",IF(O34>2.61,"WARNING","WATCH"))) -> RECOGNITION
F38: * | H38: Total Profile Score may change based on data provided on the Financial Profile
H39: Information, page 3 and by the timing of mandated categorical payments. Final score will be
H40: calculated by ISBE.

Sheet Assets-Liab 5-6
C1: (10) | D1: (20) | E1: (30) | F1: (40) | G1: (50) | H1: (60) | I1: (70) | J1: (80) | K1: (90) | M1: Account Groups
A2: ASSETS | B2: Acct. # | C2: Educational | D2: Operations & Maintenance | E2: Debt Services | F2: Transportation | G2: Municipal Retirement/Social Security | H2: Capital Projects | I2: Working Cash | J2: Tort | K2: Fire Prevention & Safety | L2: Agency Fund | M2: General Fixed Assets | N2: General Long-Term Debt
A3: CURRENT ASSETS (100)
A4: Cash (Accounts 111 through 115) 1 | C4: 1975140 | D4: 349347 | E4: 90620 | F4: 58324 | G4: 62922 | I4: 327901 | J4: 147701 | K4: 14474 | L4: 106968
A5: Investments | B5: 120 | C5: 349430 | I5: 144653 | L5: 21000
A6: Taxes Receivable | B6: 130
A7: Interfund Receivables | B7: 140 | I7: 162000
A8: Intergovernmental Accounts Receivable | B8: 150
A9: Other Receivables | B9: 160
A10: Inventory | B10: 170
A11: Prepaid Items | B11: 180
A12: Other Current Assets (Describe & Itemize) | B12: 190
A13: Total Current Assets | C13: =SUM(C4:C12) -> 2324570 | D13: =SUM(D4:D12) -> 349347 | E13: 90620 | F13: 58324 | G13: 62922 | H13: 0 | I13: 634554 | J13: 147701 | K13: 14474 | L13: 127968
A14: CAPITAL ASSETS (200)
A15: Works of Art & Historical Treasures | B15: 210
A16: Land | B16: 220 | M16: 68728
A17: Building & Building Improvements | B17: 230 | M17: 7473258
A18: Site Improvements & Infrastructure | B18: 240 | M18: 533993
A19: Capitalized Equipment | B19: 250 | M19: 1319680
A20: Construction in Progress | B20: 260
A21: Amount Available in Debt Service Funds | B21: 340 | N21: 90620
A22: Amount to be Provided for Payment on Long-Term Debt | B22: 350 | N22: ='Short-Term Long-Term Debt 25'!J49 -> 623728
A23: Total Capital Assets | M23: =SUM(M15:M22) -> 9395659 | N23: =SUM(N21:N22) -> 714348
A24: CURRENT LIABILITIES (400)
A25: Interfund Payables | B25: 410 | F25: 50000 | G25: 32000 | J25: 80000
A26: Intergovernmental Accounts Payable | B26: 420
A27: Other Payables | B27: 430
A28: Contracts Payable | B28: 440
A29: Loans Payable | B29: 460
A30: Salaries & Benefits Payable | B30: 470
A31: Payroll Deductions & Withholdings | B31: 480 | C31: 2301 | F31: 29
A32: Deferred Revenues & Other Current Liabilities | B32: 490
A33: Due to Activity Fund Organizations | B33: 493 | L33: 127968
A34: Total Current Liabilities | C34: =SUM(C25:C33) -> 2301 | D34: =SUM(D25:D33) -> 0 | E34: 0 | F34: 50029 | G34: 32000 | H34: 0 | I34: 0 | J34: 80000 | K34: 0 | L34: =SUM(L33) -> 127968
A35: LONG-TERM LIABILITIES (500)
A36: Long-Term Debt Payable (General Obligation, Revenue, Other) | B36: 511 | N36: ='Short-Term Long-Term Debt 25'!I49 -> 714348
A37: Total Long-Term Liabilities | N37: =SUM(N36:N36) -> 714348
A38: Reserved Fund Balance | B38: 714 | J38: 67701
A39: Unreserved Fund Balance | B39: 730 | C39: 2322269 | D39: 349347 | E39: 90620 | F39: 8295 | G39: 30922 | I39: 634554 | K39: 14474
A40: Investment in General Fixed Assets | M40: 9395659
A41: Total Liabilities and Fund Balance | C41: =(SUM(C34,C37,C38,C39)) -> 2324570 | D41: =SUM(D34,D37,D38:D39) -> 349347 | E41: 90620 | F41: 58324 | G41: 62922 | H41: 0 | I41: 634554 | J41: 147701 | K41: 14474 | L41: 127968 | M41: =SUM(M40) -> 9395659 | N41: =SUM(N37) -> 714348

Sheet Acct Summary 7-8
C1: (10) | D1: (20) | E1: (30) | F1: (40) | G1: (50) | H1: (60) | I1: (70) | J1: (80) | K1: (90)
A2: Description | B2: Acct # | C2: Educational | D2: Operations & Maintenance | E2: Debt Services | F2: Transportation | G2: Municipal Retirement/ Social Security | H2: Capital Projects | I2: Working Cash | J2: Tort | K2: Fire Prevention & Safety
A3: RECEIPTS/REVENUES
A4: Local Sources | B4: 1000 | C4: ='Revenues 9-14'!C109 -> 2764149 | D4: ='Revenues 9-14'!D109 -> 540104 | E4: ='Revenues 9-14'!E109 -> 202434 | F4: ='Revenues 9-14'!F109 -> 120523 | G4: ='Revenues 9-14'!G109 -> 184873 | H4: ='Revenues 9-14'!H109 -> 0 | I4: ='Revenues 9-14'!I109 -> 42930 | J4: ='Revenues 9-14'!J109 -> 416792 | K4: ='Revenues 9-14'!K109 -> 29424
A5: Flow-Through Receipts/Revenues from One District to Another District | B5: 2000 | C5: ='Revenues 9-14'!C114 -> 174947 | D5: ='Revenues 9-14'!D114 -> 0 | F5: ='Revenues 9-14'!F114 -> 0 | G5: ='Revenues 9-14'!G114 -> 0
A6: State Sources | B6: 3000 | C6: ='Revenues 9-14'!C173 -> 579573 | D6: ='Revenues 9-14'!D173 -> 0 | E6: ='Revenues 9-14'!E173 -> 0 | F6: ='Revenues 9-14'!F173 -> 66098 | G6: ='Revenues 9-14'!G173 -> 0 | H6: ='Revenues 9-14'!H173 -> 0 | I6: ='Revenues 9-14'!I173 -> 0 | J6: ='Revenues 9-14'!J173 -> 0 | K6: ='Revenues 9-14'!K173 -> 0
A7: Federal Sources | B7: 4000 | C7: ='Revenues 9-14'!C272 -> 237524 | D7: ='Revenues 9-14'!D272 -> 0 | E7: ='Revenues 9-14'!E272 -> 0 | F7: ='Revenues 9-14'!F272 -> 0 | G7: ='Revenues 9-14'!G272 -> 0 | H7: ='Revenues 9-14'!H272 -> 0 | I7: ='Revenues 9-14'!I272 -> 0 | J7: ='Revenues 9-14'!J272 -> 0 | K7: ='Revenues 9-14'!K272 -> 0
A8: Total Direct Receipts/Revenues | C8: =SUM(C4:C7) -> 3756193 | D8: =SUM(D4:D7) -> 540104 | E8: 202434 | F8: 186621 | G8: 184873 | H8: 0 | I8: 42930 | J8: 416792 | K8: 29424
A9: Receipts/Revenues for "On Behalf" Payments 2 | B9: 3998 | C9: 623740
A10: Total Receipts/Revenues | C10: =SUM(C8:C9) -> 4379933 | D10: =SUM(D8:D9) -> 540104 | E10: 202434 | F10: 186621 | G10: 184873 | H10: 0 | I10: 42930 | J10: 416792 | K10: 29424
A11: DISBURSEMENTS/EXPENDITURES
A12: Instruction | B12: 1000 | C12: ='Expenditures 15-22'!K32 -> 2780810 | G12: ='Expenditures 15-22'!K222 -> 71168
A13: Support Services | B13: 2000 | C13: ='Expenditures 15-22'!K73 -> 922634 | D13: ='Expenditures 15-22'!K128 -> 451815 | F13: ='Expenditures 15-22'!K177 -> 218533 | G13: ='Expenditures 15-22'!K272 -> 122776 | H13: ='Expenditures 15-22'!K295 -> 0 | J13: ='Expenditures 15-22'!K322 -> 500145 | K13: ='Expenditures 15-22'!K340 -> 233020
A14: Community Services | B14: 3000 | C14: ='Expenditures 15-22'!K74 -> 0 | D14: ='Expenditures 15-22'!K129 -> 0 | F14: ='Expenditures 15-22'!K178 -> 0 | G14: ='Expenditures 15-22'!K273 -> 0
A15: Payments to Other Districts & Govermental Units | B15: 4000 | C15: ='Expenditures 15-22'!K101 -> 557332 | D15: ='Expenditures 15-22'!K137 -> 0 | E15: ='Expenditures 15-22'!K153 -> 0 | F15: ='Expenditures 15-22'!K189 -> 0 | G15: ='Expenditures 15-22'!K277 -> 0 | H15: ='Expenditures 15-22'!K302 -> 0 | K15: ='Expenditures 15-22'!K343 -> 0
A16: Debt Service | B16: 5000 | C16: ='Expenditures 15-22'!K111 -> 0 | D16: ='Expenditures 15-22'!K147 -> 0 | E16: ='Expenditures 15-22'!K165 -> 196834 | F16: ='Expenditures 15-22'!K201 -> 0 | G16: ='Expenditures 15-22'!K285 -> 0 | J16: ='Expenditures 15-22'!K328 -> 0 | K16: ='Expenditures 15-22'!K351 -> 0
A17: Total Direct Disbursements/Expenditures | C17: =SUM(C12:C16) -> 4260776 | D17: 451815 | E17: 196834 | F17: 218533 | G17: 193944 | H17: 0 | J17: =SUM(J12:J16) -> 500145 | K17: =SUM(K12:K16) -> 233020
A18: Disbursements/Expenditures for "On Behalf" Payments 2 | B18: 4180 | C18: =C9 -> 623740 | D18: 0 | E18: 0 | F18: 0 | G18: 0 | H18: 0 | J18: =J9 -> 0 | K18: =K9 -> 0
A19: Total Disbursements/Expenditures | C19: =SUM(C17:C18) -> 4884516 | D19: 451815 | E19: 196834 | F19: 218533 | G19: 193944 | H19: 0 | J19: =SUM(J17:J18) -> 500145 | K19: =SUM(K17:K18) -> 233020
A20: Excess of Direct Receipts/Revenues Over (Under) Direct Disbursements/Expenditures 3 | C20: =C8-C17 -> -504583 | D20: =D8-D17 -> 88289 | E20: 5600 | F20: -31912 | G20: -9071 | H20: 0 | I20: 42930 | J20: -83353 | K20: -203596
A21: OTHER SOURCES/USES OF FUNDS
A22: OTHER SOURCES OF FUNDS (7000)
A23: PERMANENT TRANSFER FROM VARIOUS FUNDS
A24: Abolishment or Abatement of the Working Cash Fund | B24: 7110
A25: Transfer of Working Cash Fund Interest | B25: 7120 | C25: 774
A26: Transfer Among Funds | B26: 7130
A27: Transfer of Interest | B27: 7140
A28: Transfer from Capital Project Fund to O&M Fund | B28: 7150
A29: Transfer of Excess Fire Prevention & Safety Tax and Interest Proceeds to Debt Service Fund 4 | B29: 7160
A30: Transfer to Excess Fire Prevention & Safety Bond and Interest Proceeds to Debt Service Fund 4 | B30: 7170
A31: SALE OF BONDS (7200)
A32: Principal on Bonds Sold | B32: 7210
A33: Premium on Bonds Sold | B33: 7220
A34: Accrued Interest on Bonds Sold | B34: 7230
A35: Sale or Compensation for Fixed Assets 5 | B35: 7300 | C35: 739
A36: Transfer to Debt Service to Pay Principal on Capital Leases | B36: 7400 | E36: =SUM(C53:D56,H53:H56) -> 0
A37: Transfer to Debt Service to Pay Interest on Capital Leases | B37: 7500 | E37: =SUM(C57:D60,H57:H60) -> 0
A38: Transfer to Debt Service to Pay Principal on Revenue Bonds | B38: 7600 | E38: =SUM(C61:D64) -> 0
A39: Transfer to Debt Service Fund to Pay Interest on Revenue Bonds | B39: 7700 | E39: =SUM(C65:D68) -> 0
A40: Transfer to Capital Projects Fund | B40: 7800 | H40: =SUM(D69:D72) -> 0
A41: ISBE Loan Proceeds | B41: 7900
A42: Other Sources Not Classified Elsewhere | B42: 7990
A43: Total Other Sources of Funds | C43: =SUM(C24:C42) -> 1513 | D43: =SUM(D24:D42) -> 0 | E43: 0 | F43: 0 | G43: 0 | H43: 0 | I43: 0 | J43: 0 | K43: 0
A44: OTHER USES OF FUNDS (8000)
A45: PERMANENT TRANSFER TO VARIOUS OTHER FUNDS (8100)
A46: Abolishment or Abatement of the Working Cash Fund | B46: 8110 | I46: =C24 -> 0
A47: Transfer of Working Cash Fund Interest | B47: 8120 | I47: =SUM(C25:H25,J25,K25) -> 774
A48: Transfer Among Funds | B48: 8130
A49: Transfer of Interest | B49: 8140
A50: Transfer from Capital Project Fund to O&M Fund | B50: 8150 | H50: =SUM(D28) -> 0
A51: Transfer of Excess Fire Prevention & Safety Tax & Interest Proceeds to O&M Fund | B51: 8160 | K51: =D29 -> 0
A52: Transfer of Excess Fire Prevention & Safety Bond and Interest Proceeds to Debt Service Fund | B52: 8170 | K52: =E30 -> 0
A53: Taxes Pledged to Pay Principal on Capital Leases | B53: 8410
A54: Grants/Reimbursements Pledged to Pay Principal on Capital Leases | B54: 8420
A55: Other Revenues Pledged to Pay Principal on Capital Leases | B55: 8430
A56: Fund Balance Transfers Pledged to Pay Principal on Capital Leases | B56: 8440
A57: Taxes Pledged to Pay Interest on Capital Leases | B57: 8510
A58: Grants/Reimbursements Pledged to Pay Interest on Capital Leases | B58: 8520
A59: Other Revenues Pledged to Pay Interest on Capital Leases | B59: 8530
A60: Fund Balance Transfers Pledged to Pay Interest on Capital Leases | B60: 8540
A61: Taxes Pledged to Pay Principal on Revenue Bonds | B61: 8610
A62: Grants/Reimbursements Pledged to Pay Principal on Revenue Bonds | B62: 8620
A63: Other Revenues Pledged to Pay Principal on Revenue Bonds | B63: 8630
A64: Fund Balance Transfers Pledged to Pay Principal on Revenue Bonds | B64: 8640
A65: Taxes Pledged to Pay Interest on Revenue Bonds | B65: 8710
A66: Grants/Reimbursements Pledged to Pay Interest on Revenue Bonds | B66: 8720
A67: Other Revenues Pledged to Pay Interest on Revenue Bonds | B67: 8730
A68: Fund Balance Transfers Pledged to Pay Interest on Revenue Bonds | B68: 8740
A69: Taxes Transferred to Pay for Capital Projects | B69: 8810
A70: Grants/Reimbursements Pledged to Pay for Capital Projects | B70: 8820
A71: Other Revenues Pledged to Pay for Capital Projects | B71: 8830
A72: Fund Balance Transfers Pledged to Pay for Capital Projects | B72: 8840
A73: Transfer to Debt Service Fund to Pay Principal on ISBE Loans | B73: 8910
A74: Other Uses Not Classified Elsewhere | B74: 8990
A75: Total Other Uses of Funds | C75: =SUM(C46:C74) -> 0 | D75: 0 | E75: 0 | F75: 0 | G75: 0 | H75: 0 | I75: 774 | J75: 0 | K75: 0
A76: Total Other Sources/Uses of Funds 6 | C76: =C43-C75 -> 1513 | D76: 0 | E76: 0 | F76: 0 | G76: 0 | H76: 0 | I76: -774 | J76: 0 | K76: 0
A77: Excess of Receipts/Revenues and Other Sources of Funds (Over/Under) Expenditures/Disbursements and Other Uses of Funds | C77: =C20+C76 -> -503070 | D77: 88289 | E77: 5600 | F77: -31912 | G77: -9071 | H77: 0 | I77: 42156 | J77: -83353 | K77: -203596
A78: Fund Balances - July 1, 2009 | C78: 2825339 | D78: 261058 | E78: 85020 | F78: 40207 | G78: 39993 | I78: 592398 | J78: 151054 | K78: 218070
A79: Other Changes in Fund Balances - Increases (Decreases) (Describe & Itemize)
A80: Fund Balances - June 30, 2010 | C80: =(SUM(C77:C79)) -> 2322269 | D80: =SUM(D77:D79) -> 349347 | E80: =SUM(E77:E79) -> 90620 | F80: 8295 | G80: 30922 | H80: 0 | I80: 634554 | J80: 67701 | K80: 14474
A81: Change in Fund Balance FY09 - FY10 | C81: =(C80-C78) -> -503070 | D81: =(D80-D78) -> 88289 | E81: 5600 | F81: -31912 | G81: -9071 | H81: 0 | I81: 42156 | J81: -83353 | K81: -203596
A82: % Change in Fund Balance FY09 - FY10 | C82: =C81/C80 -> -0.2166286507 | D82: =D81/D80 -> 0.2527257998 | E82: 0.06179651291 | F82: -3.847136829 | G82: -0.2933510122 | I82: 0.06643406235 | J82: -1.23119304 | K82: -14.06632583

Sheet Revenues 9-14
C1: (10) | D1: (20) | E1: (30) | F1: (40) | G1: (50) | H1: (60) | I1: (70) | J1: (80) | K1: (90)
A2: Description | B2: Acct # | C2: Educational | D2: Operations & Maintenance | E2: Debt Services | F2: Transportation | G2: Municipal Retirement/ Social Security | H2: Capital Projects | I2: Working Cash | J2: Tort | K2: Fire Prevention & Safety
A3: RECEIPTS/REVENUES FROM LOCAL SOURCES (1000)
A4: AD VALOREM TAXES LEVIED BY LOCAL EDUCATION AGENCY
A5: Designated Purposes Levies (1110-1120) 7 | C5: 1082358 | D5: 294119 | E5: 202351 | F5: 117648 | G5: 53913 | I5: 29412 | J5: 414536 | K5: 29412
A6: Leasing Purposes Levy 8 | B6: 1130 | C6: 29412
A7: Special Education Purposes Levy | B7: 1140 | C7: 23529
A8: FICA/Medicare Only Purposes Levies | B8: 1150 | G8: 87804
A9: Area Vocational Construction Purposes Levy | B9: 1160
A10: Summer School Purposes Levy | B10: 1170
A11: Other Tax Levies (Describe & Itemize) | B11: 1190
A12: Total Ad Valorem Taxes Levied By District | C12: =SUM(C5:C11) -> 1135299 | D12: 294119 | E12: 202351 | F12: 117648 | G12: 141717 | H12: 0 | I12: 29412 | J12: 414536 | K12: 29412
A13: PAYMENTS IN LIEU OF TAXES
A14: Mobile Home Privilege Tax | B14: 1210
A15: Payments from Local Housing Authorities | B15: 1220
A16: Corporate Personal Property Replacement Taxes 9 | B16: 1230 | C16: 1408021 | D16: 220000 | G16: 43100
A17: Other Payments in Lieu of Taxes (Describe & Itemize) | B17: 1290
A18: Total Payments in Lieu of Taxes | C18: =SUM(C14:C17) -> 1408021 | D18: =SUM(D14:D17) -> 220000 | E18: 0 | F18: 0 | G18: 43100 | H18: 0 | I18: 0 | J18: 0 | K18: 0
A19: TUITION
A20: Regular - Tuition from Pupils or Parents (In State) | B20: 1311
A21: Regular - Tuition from Other Districts (In State) | B21: 1312
A22: Regular - Tuition from Other Sources (In State) | B22: 1313
A23: Regular - Tuition from Other Sources (Out of State) | B23: 1314
A24: Summer Sch - Tuition from Pupils or Parents (In State) | B24: 1321 | C24: 1855
A25: Summer Sch - Tuition from Other Districts (In State) | B25: 1322
A26: Summer Sch - Tuition from Other Sources (In State) | B26: 1323
A27: Summer Sch - Tuition from Other Sources (Out of State) | B27: 1324
A28: CTE - Tuition from Pupils or Parents (In State) | B28: 1331
A29: CTE - Tuition from Other Districts (In State) | B29: 1332
A30: CTE - Tuition from Other Sources (In State) | B30: 1333
A31: CTE - Tuition from Other Sources (Out of State) | B31: 1334
A32: Special Ed - Tuition from Pupils or Parents (In State) | B32: 1341
A33: Special Ed - Tuition from Other Districts (In State) | B33: 1342
A34: Special Ed - Tuition from Other Sources (In State) | B34: 1343
A35: Special Ed - Tuition from Other Sources (Out of State) | B35: 1344
A36: Adult - Tuition from Pupils or Parents (In State) | B36: 1351
A37: Adult - Tuition from Other Districts (In State) | B37: 1352
A38: Adult - Tuition from Other Sources (In State) | B38: 1353
A39: Adult - Tuition from Other Sources (Out of State) | B39: 1354
A40: Total Tuition | C40: =SUM(C20:C39) -> 1855
A41: TRANSPORTATION FEES
A42: Regular -Transp Fees from Pupils or Parents (In State) | B42: 1411
A43: Regular - Transp Fees from Other Districts (In State) | B43: 1412
A44: Regular - Transp Fees from Other Sources (In State) | B44: 1413
A45: Regular - Transp Fees from Co-curricular Activities (In State) | B45: 1415 | F45: 2827
A46: Regular Transp Fees from Other Sources (Out of State) | B46: 1416
A47: Summer Sch - Transp. Fees from Pupils or Parents (In State) | B47: 1421
A48: Summer Sch - Transp. Fees from Other Districts (In State) | B48: 1422
A49: Summer Sch - Transp. Fees from Other Sources (In State) | B49: 1423
A50: Summer Sch - Transp. Fees from Other Sources (Out of State) | B50: 1424
A51: CTE - Transp Fees from Pupils or Parents (In State) | B51: 1431
A52: CTE - Transp Fees from Other Districts (In State) | B52: 1432
A53: CTE - Transp Fees from Other Sources (In State) | B53: 1433
A54: CTE - Transp Fees from Other Sources (Out of State) | B54: 1434
A55: Special Ed - Transp Fees from Pupils or Parents (In State) | B55: 1441
A56: Special Ed - Transp Fees from Other Districts (In State) | B56: 1442
A57: Special Ed - Transp Fees from Other Sources (In State) | B57: 1443
A58: Special Ed - Transp Fees from Other Sources (Out of State) | B58: 1444
A59: Adult - Transp Fees from Pupils or Parents (In State) | B59: 1451
A60: Adult - Transp Fees from Other Districts (In State) | B60: 1452
A61: Adult - Transp Fees from Other Sources (In State) | B61: 1453
A62: Adult - Transp Fees from Other Sources (Out of State) | B62: 1454
A63: Total Transportation Fees | F63: =SUM(F42:F62) -> 2827
A64: EARNINGS ON INVESTMENTS
A65: Interest on Investments | B65: 1510 | C65: 19589 | D65: 120 | E65: 83 | F65: 48 | G65: 56 | I65: 13518 | J65: 167 | K65: 12
A66: Gain or Loss on Sale of Investments | B66: 1520
A67: Total Earnings on Investments | C67: =SUM(C65:C66) -> 19589 | D67: =SUM(D65:D66) -> 120 | E67: 83 | F67: 48 | G67: 56 | H67: 0 | I67: 13518 | J67: 167 | K67: 12
A68: FOOD SERVICE
A69: Sales to Pupils - Lunch | B69: 1611 | C69: 90816
A70: Sales to Pupils - Breakfast | B70: 1612
A71: Sales to Pupils - A la Carte | B71: 1613 | C71: 1853
A72: Sales to Pupils - Other (Describe & Itemize) | B72: 1614 | C72: 3237
A73: Sales to Adults | B73: 1620 | C73: 7303
A74: Other Food Service (Describe & Itemize) | B74: 1690
A75: Total Food Service | C75: =SUM(C69:C74) -> 103209
A76: DISTRICT/SCHOOL ACTIVITY INCOME
A77: Admissions - Athletic | B77: 1711 | C77: 21843
A78: Admissions - Other (Describe & Itemize) | B78: 1719
A79: Fees | B79: 1720 | C79: 15768
A80: Book Store Sales | B80: 1730
A81: Other District/School Activity Revenue (Describe & Itemize) | B81: 1790 | C81: 6436
A82: Total District/School Activity Income | C82: =SUM(C77:C81) -> 44047 | D82: =SUM(D77:D81) -> 0
A83: TEXTBOOK INCOME
A84: Rentals - Regular Textbooks | B84: 1811 | C84: 35568
A85: Rentals - Summer School Textbooks | B85: 1812
A86: Rentals - Adult/Continuing Education Textbooks | B86: 1813
A87: Rentals - Other (Describe & Itemize) | B87: 1819
A88: Sales - Regular Textbooks | B88: 1821
A89: Sales - Summer School Textbooks | B89: 1822
A90: Sales - Adult/Continuing Education Textbooks | B90: 1823
A91: Sales - Other (Describe & Itemize) | B91: 1829
A92: Other (Describe & Itemize) | B92: 1890
A93: Total Textbook Income | C93: =SUM(C84:C92) -> 35568
A94: OTHER REVENUE FROM LOCAL SOURCES
A95: Rentals | B95: 1910 | D95: 1388
A96: Contributions and Donations from Private Sources | B96: 1920 | C96: 1279 | D96: 1000
A97: Impact Fees from Municipal or County Governments | B97: 1930
A98: Services Provided Other Districts | B98: 1940
A99: Refund of Prior Years' Expenditures | B99: 1950 | D99: 2124 | J99: 2089
A100: Payments of Surplus Moneys from TIF Districts | B100: 1960
A101: Drivers' Education Fees | B101: 1970 | C101: 1885
A102: Proceeds from Vendors' Contracts | B102: 1980
A103: School Facility Occupation Tax Proceeds | B103: 1983
A104: Payment from Other Districts | B104: 1991
A105: Sale of Vocational Projects | B105: 1992
A106: Other Local Fees | B106: 1993 | C106: 13182
A107: Other Local Revenues (Describe & Itemize) | B107: 1999 | C107: 215 | D107: 21353
A108: Total Other Revenue from Local Sources | C108: =SUM(C95:C107) -> 16561 | D108: =SUM(D95:D107) -> 25865 | E108: 0 | F108: 0 | G108: 0 | H108: 0 | I108: 0 | J108: 2089 | K108: 0
A109: Total Receipts/Revenues from Local Sources | B109: 1000 | C109: =SUM(C12,C18,C40,C63,C67,C75,C82,C93,C108,) -> 2764149 | D109: 540104 | E109: 202434 | F109: 120523 | G109: 184873 | H109: 0 | I109: 42930 | J109: 416792 | K109: 29424
A110: FLOW-THROUGH RECEIPTS/REVENUES FROM ONE DISTRICT TO ANOTHER DISTRICT (2000)
A111: Flow-through Revenue from State Sources | B111: 2100 | C111: 30035
A112: Flow-through Revenue from Federal Sources | B112: 2200 | C112: 144912
A113: Other Flow-Through (Describe & Itemize) | B113: 2300
A114: Total Flow-Through Receipts/Revenues from One District to Another District | B114: 2000 | C114: =SUM(C111:C113) -> 174947 | D114: =SUM(D111:D113) -> 0 | F114: =SUM(F111:F113) -> 0 | G114: =SUM(G111:G113) -> 0
A115: RECEIPTS/REVENUES FROM STATE SOURCES (3000)
A116: UNRESTRICTED GRANTS-IN-AID
A117: General State Aid- Sec. 18-8.05 | B117: 3001 | C117: 258281
A118: General State Aid - Hold Harmless/Supplemental | B118: 3002
A119: Reorganization Incentives (Accounts 3005-3021) | B119: 3005
A120: Other Unrestricted Grants-In-Aid from State Sources (Describe & Itemize) | B120: 3099
A121: Total Unrestricted Grants-In-Aid | C121: =SUM(C117:C120) -> 258281 | D121: 0 | E121: 0 | F121: 0 | G121: 0 | H121: 0 | J121: =SUM(J117:J120) -> 0 | K121: =SUM(K117:K120) -> 0
A122: RESTRICTED GRANTS-IN-AID
A123: SPECIAL EDUCATION
A124: Special Education - Private Facility Tuition | B124: 3100
A125: Special Education - Extraordinary | B125: 3105 | C125: 85007
A126: Special Education - Personnel | B126: 3110 | C126: 14131
A127: Special Education - Orphanage - Individual | B127: 3120 | C127: 29772
A128: Special Education - Orphanage - Summer | B128: 3130
A129: Special Education - Summer School | B129: 3145 | C129: 93
A130: Special Education - Other (Describe & Itemize) | B130: 3199
A131: Total Special Education | C131: =SUM(C124:C130) -> 129003 | D131: =SUM(D124:D130) -> 0 | F131: =SUM(F124:F130) -> 0
A132: CAREER AND TECHNICAL EDUCATION (CTE)
A133: CTE - Technical Education - Tech Prep | B133: 3200
A134: CTE - Secondary Program Improvement (CTEI) | B134: 3220
A135: CTE - WECEP | B135: 3225
A136: CTE - Agriculture Education | B136: 3235
A137: CTE - Instructor Practicum | B137: 3240
A138: CTE - Student Organizations | B138: 3270
A139: CTE - Other (Describe & Itemize) | B139: 3299
A140: Total Career and Technical Education | C140: =SUM(C133:C139) -> 0 | D140: =SUM(D133:D139) -> 0 | G140: =SUM(G133:G139) -> 0
A141: BILINGUAL EDUCATION
A142: Bilingual Ed - Downstate - TPI and TBE | B142: 3305
A143: Bilingual Education Downstate - Transitional Bilingual Education | B143: 3310
A144: Total Bilingual Ed | C144: =SUM(C142:C143) -> 0 | G144: =SUM(G142:G143) -> 0
A145: State Free Lunch & Breakfast | B145: 3360 | C145: 3141
A146: School Breakfast Initiative | B146: 3365 | C146: 56
A147: Driver Education | B147: 3370 | C147: 6584
A148: Adult Ed (from ICCB) | B148: 3410
A149: Adult Ed - Other (Describe & Itemize) | B149: 3499
A150: TRANSPORTATION
A151: Transportation - Regular/Vocational | B151: 3500 | F151: 16384
A152: Transportation - Special Education | B152: 3510 | F152: 49714
A153: Transportation - Other (Describe & Itemize) | B153: 3599
A154: Total Transportation | C154: =SUM(C151:C153) -> 0 | D154: =SUM(D151:D153) -> 0 | F154: =SUM(F151:F153) -> 66098 | G154: =SUM(G151:G153) -> 0
A155: Learning Improvement - Change Grants | B155: 3610
A156: Scientific Literacy | B156: 3660
A157: Truant Alternative/Optional Education | B157: 3695
A158: Early Childhood - Block Grant | B158: 3705 | C158: 171494
A159: Reading Improvement Block Grant | B159: 3715 | C159: 8268
A160: Reading Improvement Block Grant - Reading Recovery | B160: 3720
A161: Continued Reading Improvement Block Grant | B161: 3725
A162: Continued Reading Improvement Block Grant (2% Set Aside) | B162: 3726
A163: Chicago General Education Block Grant | B163: 3766
A164: Chicago Educational Services Block Grant | B164: 3767
A165: School Safety & Educational Improvement Block Grant | B165: 3775 | C165: 2746
A166: Technology - Learning Technology Centers | B166: 3780
A167: State Charter Schools | B167: 3815
A168: Extended Learning Opportunities - Summer Bridges | B168: 3825
A169: Infrastructure Improvements - Planning/Construction | B169: 3920
A170: School Infrastructure - Maintenance Projects | B170: 3925
A171: Other Restricted Revenue from State Sources (Describe & Itemize) | B171: 3999
A172: Total Restricted Grants-In-Aid | C172: =SUM(C131,C140,C144,C145:C149,C154,C155:C170,C171) -> 321292 | D172: 0 | E172: 0 | F172: 66098 | G172: 0 | H172: 0 | I172: 0 | J172: 0 | K172: 0
A173: Total Receipts from State Sources | B173: 3000 | C173: =SUM(C121,C172) -> 579573 | D173: =SUM(D121,D172) -> 0 | E173: =SUM(E121,E172) -> 0 | F173: =SUM(F121,F172) -> 66098 | G173: 0 | H173: 0 | I173: 0 | J173: 0 | K173: 0
A174: RECEIPTS/REVENUES FROM FEDERAL SOURCES (4000)
A175: UNRESTRICTED GRANTS-IN-AID RECEIVED DIRECTLY FROM FEDERAL GOVT
A176: Federal Impact Aid | B176: 4001
A177: Other Unrestricted Grants-In-Aid Received Directly from the Fed Govt (Describe & Itemize) | B177: 4009
A178: Total Unrestricted Grants-In-Aid Received Directly from the Federal Govt | C178: =SUM(C176:C177) -> 0 | D178: =SUM(D176:D177) -> 0 | E178: 0 | F178: 0 | G178: 0 | H178: 0 | I178: 0 | J178: 0 | K178: 0
A179: RESTRICTED GRANTS-IN-AID RECEIVED DIRECTLY FROM FEDERAL GOVT
A180: Head Start | B180: 4045
A181: Construction (Impact Aid) | B181: 4050
A182: MAGNET | B182: 4060
A183: Other Restricted Grants-In-Aid Received Directly from the Federal Govt (Describe & Itemize) | B183: 4090
A184: Total Restricted Grants-In-Aid Received Directly from Federal Govt | C184: =SUM(C180:C183) -> 0 | D184: =SUM(D180:D183) -> 0 | F184: =SUM(F180:F183) -> 0 | G184: =SUM(G180:G183) -> 0 | H184: =SUM(H180:H183) -> 0 | K184: =SUM(K180:K183) -> 0
A185: RESTRICTED GRANTS-IN-AID RECEIVED FROM FEDERAL GOVT THRU THE STATE
A186: TITLE V
A187: Title V - Innovation and Flexibility Formula | B187: 4100
A188: Title V - District Projects | B188: 4105
A189: Title V - Rural & Low Income Schools | B189: 4107
A190: Title V - Other (Describe & Itemize) | B190: 4199
A191: Total Title V | C191: =SUM(C187:C190) -> 0 | D191: =SUM(D187:D190) -> 0 | F191: =SUM(F187:F190) -> 0 | G191: =SUM(G187:G190) -> 0
A192: FOOD SERVICE
A193: Breakfast Start-Up | B193: 4200
A194: National School Lunch Program | B194: 4210 | C194: 61495
A195: Special Milk Program | B195: 4215
A196: School Breakfast Program | B196: 4220 | C196: 9935
A197: Summer Food Service Admin/Program | B197: 4225
A198: Child & Adult Care Food Program | B198: 4226
A199: Fresh Fruits & Vegetables | B199: 4240
A200: Food Service - Other (Describe & Itemize) | B200: 4299
... 73 more rows

Sheet Expenditures 15-22
C1: (100) | D1: (200) | E1: (300) | F1: (400) | G1: (500) | H1: (600) | I1: (700) | J1: (800) | K1: (900)
A2: Description | B2: Funct # | C2: Salaries | D2: Employee Benefits | E2: Purchased Services | F2: Supplies & Materials | G2: Capital Outlay | H2: Other Objects | I2: Non-Capitalized Equipment | J2: Termination Benefits | K2: Total | L2: Budget
A3: 10 - EDUCATIONAL FUND (ED)
A4: INSTRUCTION (ED)
A5: Regular Programs | B5: 1100 | C5: 1837084 | D5: 160198 | F5: 56117 | G5: 2643 | H5: 55 | K5: =SUM(C5:J5) -> 2056097 | L5: 2095667
A6: Pre-K Programs | B6: 1125 | C6: 167726 | D6: 12159 | E6: 108 | F6: 5530 | K6: =SUM(C6:J6) -> 185523 | L6: 183474
A7: Special Education Programs (Functions 1200-1220) | B7: 1200 | K7: 0
A8: Special Education Programs Pre-K | B8: 1225 | K8: 0
A9: Remedial and Supplemental Programs K-12 | B9: 1250 | C9: 57565 | D9: 13445 | F9: 1250 | K9: 72260 | L9: 66352
A10: Remedial and Supplemental Programs Pre-K | B10: 1275 | K10: 0
A11: Adult/Continuing Education Programs | B11: 1300 | K11: 0
A12: CTE Programs | B12: 1400 | C12: 230757 | D12: 19021 | E12: 1968 | F12: 18859 | G12: 42368 | K12: 312973 | L12: 341273
A13: Interscholastic Programs | B13: 1500 | C13: 105447 | D13: 245 | E13: 20442 | F13: 21860 | H13: 3438 | K13: 151432 | L13: 172224
A14: Summer School Programs | B14: 1600 | C14: 2520 | D14: 5 | K14: 2525 | L14: 2800
A15: Gifted Programs | B15: 1650 | K15: 0
A16: Driver's Education Programs | B16: 1700 | K16: 0
A17: Bilingual Programs | B17: 1800 | K17: 0
A18: Truant Alternative & Optional Programs | B18: 1900 | K18: 0
A19: Pre-K Programs - Private Tuition | B19: 1910 | K19: 0
A20: Regular K-12 Programs - Private Tuition | B20: 1911 | K20: 0
A21: Special Education Programs K-12 - Private Tuition | B21: 1912 | K21: 0
A22: Special Education Programs Pre-K - Tuition | B22: 1913 | K22: 0
A23: Remedial/Supplemental Programs K-12 - Private Tuition | B23: 1914 | K23: 0
A24: Remedial/Supplemental Programs Pre-K - Private Tuition | B24: 1915 | K24: 0
A25: Adult/Continuing Education Programs - Private Tuition | B25: 1916 | K25: 0
A26: CTE Programs - Private Tuition | B26: 1917 | K26: 0
A27: Interscholastic Programs - Private Tuition | B27: 1918 | K27: 0
A28: Summer School Programs - Private Tuition | B28: 1919 | K28: 0
A29: Gifted Programs - Private Tuition | B29: 1920 | K29: 0
A30: Bilingual Programs - Private Tuition | B30: 1921 | K30: 0
A31: Truants Alternative/Optional Ed Progms - Private Tuition | B31: 1922 | K31: 0
A32: Total Instruction 10 | B32: 1000 | C32: =SUM(C5:C31) -> 2401099 | D32: =SUM(D5:D31) -> 205073 | E32: 22518 | F32: 103616 | G32: 45011 | H32: 3493 | I32: 0 | J32: 0 | K32: 2780810 | L32: 2861790
A33: SUPPORT SERVICES (ED)
A34: SUPPORT SERVICES - PUPILS
A35: Attendance & Social Work Services | B35: 2110 | K35: =SUM(C35:J35) -> 0
A36: Guidance Services | B36: 2120 | C36: 43676 | D36: 791 | F36: 3592 | K36: 48059 | L36: 47302
A37: Health Services | B37: 2130 | C37: 10584 | D37: 20 | F37: 465 | K37: 11069 | L37: 11612
A38: Psychological Services | B38: 2140 | K38: 0
A39: Speech Pathology & Audiology Services | B39: 2150 | K39: 0
A40: Other Support Services - Pupils (Describe & Itemize) | B40: 2190 | K40: 0
A41: Total Support Services - Pupils | B41: 2100 | C41: =SUM(C35:C40) -> 54260 | D41: =SUM(D35:D40) -> 811 | E41: 0 | F41: 4057 | G41: 0 | H41: 0 | I41: 0 | J41: 0 | K41: 59128 | L41: 58914
A42: SUPPORT SERVICES - INSTRUCTIONAL STAFF
A43: Improvement of Instruction Services | B43: 2210 | C43: 90 | D43: 13394 | E43: 25002 | F43: 78 | K43: =SUM(C43:J43) -> 38564 | L43: 46450
A44: Educational Media Services | B44: 2220 | C44: 68520 | D44: 4997 | F44: 6546 | K44: =SUM(C44:J44) -> 80063 | L44: 86608
A45: Assessment & Testing | B45: 2230 | K45: =SUM(C45:J45) -> 0
A46: Total Support Services - Instructional Staff | B46: 2200 | C46: =SUM(C43:C45) -> 68610 | D46: =SUM(D43:D45) -> 18391 | E46: 25002 | F46: 6624 | G46: 0 | H46: 0 | I46: 0 | J46: 0 | K46: 118627 | L46: =SUM(L43:L45) -> 133058
A47: SUPPORT SERVICES - GENERAL ADMINISTRATION
A48: Board of Education Services | B48: 2310 | E48: 13460 | F48: 3328 | H48: 2405 | K48: =SUM(C48:J48) -> 19193 | L48: 24125
A49: Executive Administration Services | B49: 2320 | C49: 143633 | D49: 13750 | E49: 125 | F49: 153 | H49: 860 | K49: =SUM(C49:J49) -> 158521 | L49: 145185
A50: Special Area Administration Services | B50: 2330 | K50: =SUM(C50:J50) -> 0
A51: Tort Immunity Services | B51: 2360 - 2370 | K51: =SUM(C51:J51) -> 0
A52: Total Support Services - General Administration | B52: 2300 | C52: =SUM(C48:C51) -> 143633 | D52: =SUM(D48:D51) -> 13750 | E52: 13585 | F52: 3481 | G52: 0 | H52: 3265 | I52: 0 | J52: 0 | K52: 177714 | L52: 169310
A53: SUPPORT SERVICES - SCHOOL ADMINISTRATION
A54: Office of the Principal Services | B54: 2410 | C54: 244453 | D54: 33815 | E54: 265 | F54: 3639 | H54: 597 | K54: =SUM(C54:J54) -> 282769 | L54: 272550
A55: Other Support Services - School Admin (Describe & Itemize) | B55: 2490 | K55: =SUM(C55:J55) -> 0
A56: Total Support Services - School Administration | B56: 2400 | C56: =SUM(C54:C55) -> 244453 | D56: =SUM(D54:D55) -> 33815 | E56: 265 | F56: 3639 | G56: 0 | H56: 597 | I56: 0 | J56: 0 | K56: 282769 | L56: =SUM(L54:L55) -> 272550
A57: SUPPORT SERVICES - BUSINESS
A58: Direction of Business Support Services | B58: 2510 | K58: =SUM(C58:J58) -> 0
A59: Fiscal Services | B59: 2520 | C59: 59963 | D59: 8835 | F59: 428 | H59: 285 | K59: 69511 | L59: 70813
A60: Operation & Maintenance of Plant Services | B60: 2540 | K60: 0
A61: Pupil Transportation Services | B61: 2550 | K61: 0
A62: Food Services | B62: 2560 | C62: 61398 | D62: 5126 | E62: 6060 | F62: 103521 | K62: 176105 | L62: 188431
A63: Internal Services | B63: 2570 | E63: 22190 | F63: 11012 | K63: 33202 | L63: 34600
A64: Total Support Services - Business | B64: 2500 | C64: =SUM(C58:C63) -> 121361 | D64: =SUM(D58:D63) -> 13961 | E64: 28250 | F64: 114961 | G64: 0 | H64: 285 | I64: 0 | J64: 0 | K64: 278818 | L64: 293844
A65: SUPPORT SERVICES - CENTRAL
A66: Direction of Central Support Services | B66: 2610 | K66: =SUM(C66:J66) -> 0
A67: Planning, Research, Development, & Evaluation Services | B67: 2620 | K67: =SUM(C67:J67) -> 0
A68: Information Services | B68: 2630 | E68: 5578 | K68: =SUM(C68:J68) -> 5578 | L68: 5000
A69: Staff Services | B69: 2640 | K69: =SUM(C69:J69) -> 0
A70: Data Processing Services | B70: 2660 | K70: =SUM(C70:J70) -> 0
A71: Total Support Services - Central | B71: 2600 | C71: =SUM(C66:C70) -> 0 | D71: =SUM(D66:D70) -> 0 | E71: 5578 | F71: 0 | G71: 0 | H71: 0 | I71: 0 | J71: 0 | K71: 5578 | L71: =SUM(L66:L70) -> 5000
A72: Other Support Services (Describe & Itemize) | B72: 2900 | K72: =SUM(C72:J72) -> 0
A73: Total Support Services | B73: 2000 | C73: =SUM(C41,C46,C52,C56,C64,C71,C72) -> 632317 | D73: =SUM(D41,D46,D52,D56,D64,D71,D72) -> 80728 | E73: 72680 | F73: 132762 | G73: 0 | H73: 4147 | I73: 0 | J73: 0 | K73: 922634 | L73: =SUM(L41,L46,L52,L56,L64,L71,L72) -> 932676
A74: COMMUNITY SERVICES (ED) | B74: 3000 | K74: =SUM(C74:J74) -> 0 | L74: 860
A75: PAYMENTS TO OTHER DISTRICTS & GOVT UNITS (ED)
A76: PAYMENTS TO OTHER GOVT UNITS (IN-STATE)
A77: Payments for Regular Programs | B77: 4110 | K77: =SUM(C77:J77) -> 0
A78: Payments for Special Education Programs | B78: 4120 | H78: 537308 | K78: 537308 | L78: 665000
A79: Payments for Adult/Continuing Education Programs | B79: 4130 | K79: 0
A80: Payments for CTE Programs | B80: 4140 | K80: 0
A81: Payments for Community College Programs | B81: 4170 | K81: 0
A82: Other Payments to In-State Govt. Units (Describe & Itemize) | B82: 4190 | H82: 19169 | K82: 19169 | L82: 19170
A83: Total Payments to Dist & Other Govt Units (In-State) | B83: 4100 | E83: =SUM(E77:E82) -> 0 | H83: =SUM(H77:H82) -> 556477 | K83: =SUM(K77:K82) -> 556477 | L83: =SUM(L77:L82) -> 684170
A84: Payments for Regular Programs - Tuition | B84: 4210 | H84: 855 | K84: =H84 -> 855
A85: Payments for Special Education Programs - Tuition | B85: 4220 | K85: =H85 -> 0
A86: Payments for Adult/Continuing Education Programs - Tuition | B86: 4230 | K86: 0
A87: Payments for CTE Programs - Tuition | B87: 4240 | K87: 0
A88: Payments for Community College Programs - Tuition | B88: 4270 | K88: 0
A89: Payments for Other Programs - Tuition | B89: 4280 | K89: 0
A90: Other Payments to In-State Govt Units | B90: 4290 | K90: 0
A91: Total Payments to Other District & Govt Units -Tuition (In State) | B91: 4200 | H91: =SUM(H84:H90) -> 855 | K91: 855 | L91: =SUM(L84:L90) -> 0
A92: Payments for Regular Programs - Transfers | B92: 4310 | K92: 0
A93: Payments for Special Education Programs - Transfers | B93: 4320 | K93: 0
A94: Payments for Adult/Continuing Ed Programs - Transfers | B94: 4330 | K94: 0
A95: Payments for CTE Programs - Transfers | B95: 4340 | K95: 0
A96: Payments for Community College Program - Transfers | B96: 4370 | K96: 0
A97: Payments for Other Programs - Transfers | B97: 4380 | K97: 0
A98: Other Payments to In-State Govt Units - Transfers | B98: 4390 | K98: =SUM(E98,H98) -> 0
A99: Total Payments to Other District & Govt Units - Transfers (In-State) | B99: 4300 | E99: =SUM(E92:E98) -> 0 | H99: =SUM(H92:H98) -> 0 | K99: =SUM(K92:K98) -> 0 | L99: =SUM(L92:L98) -> 0
A100: Payments to Other Dist & Govt Units (Out-of-State) | B100: 4400 | K100: =SUM(C100:J100) -> 0
A101: Total Payments to Other District & Govt Units | B101: 4000 | E101: =SUM(E83,E91,E99,E100) -> 0 | H101: =SUM(H83,H91,H99,H100) -> 557332 | K101: =SUM(K83,K91,K99,K100) -> 557332 | L101: =SUM(L83,L91,L99,L100) -> 684170
A102: DEBT SERVICES (ED)
A103: DEBT SERVICES - INTEREST ON SHORT-TERM DEBT
A104: Tax Anticipation Warrants | B104: 5110 | K104: =H104 -> 0
A105: Tax Anticipation Notes | B105: 5120 | K105: =H105 -> 0
A106: Corporate Personal Prop. Repl. Tax Anticipation Notes | B106: 5130 | K106: =H106 -> 0
A107: State Aid Anticipation Certificates | B107: 5140 | K107: =H107 -> 0
A108: Other Interest on Short-Term Debt | B108: 5150 | K108: =H108 -> 0
A109: Total Interest on Short-Term Debt | B109: 5100 | H109: =SUM(H104:H108) -> 0 | K109: =SUM(K104:K108) -> 0 | L109: =SUM(L104:L108) -> 0
A110: Debt Services - Interest on Long-Term Debt | B110: 5200 | K110: =H110 -> 0
A111: Total Debt Services | B111: 5000 | H111: =SUM(H109:H110) -> 0 | K111: =SUM(K109:K110) -> 0 | L111: =SUM(L109,L110) -> 0
A112: PROVISIONS FOR CONTINGENCIES (ED) | B112: 6000
A113: Total Direct Disbursements/Expenditures | C113: =SUM(C32,C73,C74,C101,C111,C112) -> 3033416 | D113: =SUM(D32,D73,D74,D101,D111,D112) -> 285801 | E113: 95198 | F113: 236378 | G113: 45011 | H113: =SUM(H32,H73,H74,H101,H111,H112) -> 564972 | I113: 0 | J113: 0 | K113: 4260776 | L113: =SUM(L32,L73,L74,L101,L111,L112) -> 4479496
A114: Excess (Deficiency) of Receipts/Revenues Over Disbursements/Expenditures | K114: ='Revenues 9-14'!C273-'Expenditures 15-22'!K113 -> -504583
A116: 20 - OPERATIONS & MAINTENANCE FUND (O&M)
A117: SUPPORT SERVICES (O&M)
A118: SUPPORT SERVICES - PUPILS
A119: Other Support Services - Pupils (Describe & Itemize) | B119: 2190 | K119: =SUM(C119:J119) -> 0
A120: SUPPORT SERVICES - BUSINESS
A121: Direction of Business Support Services | B121: 2510 | K121: =SUM(C121:J121) -> 0
A122: Facilities Acquisition & Construction Services | B122: 2530 | K122: =SUM(C122:J122) -> 0
A123: Operation & Maintenance of Plant Services | B123: 2540 | C123: 185312 | D123: 9238 | E123: 61705 | F123: 167094 | G123: 28466 | K123: =SUM(C123:J123) -> 451815 | L123: 469810
A124: Pupil Transportation Services | B124: 2550 | K124: =SUM(C124:J124) -> 0
A125: Food Services | B125: 2560 | K125: =SUM(C125:J125) -> 0
A126: Total Support Services - Business | B126: 2500 | C126: =SUM(C121:C125) -> 185312 | D126: =SUM(D121:D125) -> 9238 | E126: 61705 | F126: 167094 | G126: 28466 | H126: 0 | I126: 0 | J126: 0 | K126: 451815 | L126: 469810
A127: Other Support Services (Describe & Itemize) | B127: 2900 | K127: =SUM(C127:J127) -> 0
A128: Total Support Services | B128: 2000 | C128: =SUM(C119,C126,C127) -> 185312 | D128: =SUM(D119,D126,D127) -> 9238 | E128: 61705 | F128: 167094 | G128: 28466 | H128: 0 | I128: 0 | J128: 0 | K128: 451815 | L128: 469810
A129: COMMUNITY SERVICES (O&M) | B129: 3000 | K129: =SUM(C129:J129) -> 0
A130: PAYMENTS TO OTHER DIST & GOVT UNITS (O&M)
A131: PAYMENTS TO OTHER GOVT UNITS (IN-STATE)
A132: Payments for Special Education Programs | B132: 4120 | K132: =SUM(E132,H132) -> 0
A133: Payments for CTE Programs | B133: 4140 | K133: =SUM(E133,H133) -> 0
A134: Other Payments to In-State Govt. Units (Describe & Itemize) | B134: 4190 | K134: =SUM(E134,H134) -> 0
A135: Total Payments to Other Govt. Units (In-State) | B135: 4100 | E135: =SUM(E132:E134) -> 0 | H135: =SUM(H132:H134) -> 0 | K135: =SUM(K132:K134) -> 0 | L135: =SUM(L132:L134) -> 0
A136: Payments to Other Govt. Units (Out of State) | B136: 4400 | K136: =SUM(E136,H136) -> 0
A137: Total Payments to Other Dist & Govt Units | B137: 4000 | E137: =SUM(E135) -> 0 | H137: =SUM(H135:H136) -> 0 | K137: =SUM(K135,K136) -> 0 | L137: =SUM(L135,L136) -> 0
A138: DEBT SERVICES (O&M) | B138: 5000
A139: DEBT SERVICES - INTEREST ON SHORT-TERM DEBT
A140: Tax Anticipation Warrants | B140: 5110 | K140: =SUM(H140) -> 0
A141: Tax Anticipation Notes | B141: 5120 | K141: =SUM(H141) -> 0
A142: Corporate Personal Prop. Repl. Tax Anticipation Notes | B142: 5130 | K142: =SUM(H142) -> 0
A143: State Aid Anticipation Certificates | B143: 5140 | K143: =SUM(H143) -> 0
A144: Other Interest on Short-Term Debt (Describe & Itemize) | B144: 5150 | K144: =SUM(H144) -> 0
A145: Total Debt Service - Interest on Short-Term Debt | B145: 5100 | H145: =SUM(H140:H144) -> 0 | K145: =SUM(K140:K144) -> 0 | L145: =SUM(L140:L144) -> 0
A146: DEBT SERVICE - INTERST ON LONG-TERM DEBT | B146: 5200 | K146: =SUM(H146) -> 0
A147: Total Debt Services | B147: 5000 | H147: =SUM(H145,H146) -> 0 | K147: =SUM(H147) -> 0 | L147: =SUM(L140:L144) -> 0
A148: PROVISIONS FOR CONTINGENCIES (O&M) | B148: 6000
A149: Total Direct Disbursements/Expenditures | C149: =SUM(C128,C129,C137,C147,C148) -> 185312 | D149: =SUM(D128,D129,D137,D147,D148) -> 9238 | E149: 61705 | F149: 167094 | G149: 28466 | H149: 0 | I149: 0 | J149: 0 | K149: 451815 | L149: =SUM(L128,L137,L147,L148) -> 469810
A150: Excess (Deficiency) of Receipts/Revenues\Over Disbursements/ Expenditures | K150: ='Revenues 9-14'!D273-'Expenditures 15-22'!K149 -> 88289
A152: 30 - DEBT SERVICES (DS)
A153: PAYMENTS TO OTHER DIST & GOVT UNITS (DS) | B153: 4000 | K153: =SUM(H153) -> 0 | L153: 31834
A154: DEBT SERVICES (DS) | B154: 5000
A155: DEBT SERVICES - INTEREST ON SHORT-TERM DEBT
A156: Tax Anticipation Warrants | B156: 5110 | K156: =SUM(C156:J156) -> 0
A157: Tax Anticipation Notes | B157: 5120 | K157: =SUM(C157:J157) -> 0
A158: Corporate Personal Prop. Repl. Tax Anticipation Notes | B158: 5130 | K158: =SUM(C158:J158) -> 0
A159: State Aid Anticipation Certificates | B159: 5140 | K159: =SUM(C159:J159) -> 0
A160: Other Interest on Short-Term Debt (Describe & Itemize) | B160: 5150 | K160: =SUM(C160:J160) -> 0
A161: Total Debt Services - Interest On Short-Term Debt | B161: 5100 | H161: =SUM(H156:H160) -> 0 | K161: =SUM(K156:K160) -> 0 | L161: =SUM(L156:L160) -> 0
A162: DEBT SERVICES - INTEREST ON LONG-TERM DEBT | B162: 5200 | H162: 31334 | K162: =SUM(C162:H162) -> 31334 | L162: 165000
A163: DEBT SERVICES - PAYMENTS OF PRINCIPAL ON LONG-TERM DEBT (Lease/Purchase Principal Retired) 11 | B163: 5300 | H163: 165000 | K163: =SUM(C163:J163) -> 165000
A164: DEBT SERVICES - OTHER (Describe & Itemize) | B164: 5400 | H164: 500 | K164: =SUM(C164:J164) -> 500
A165: Total Debt Services | B165: 5000 | E165: =SUM(E161,E162,E163,E164) -> 0 | H165: =SUM(H161,H162,H163,H164) -> 196834 | K165: =SUM(K161,K162,K163,K164) -> 196834 | L165: =SUM(L161,L162,L163,L164) -> 165000
A166: PROVISION FOR CONTINGENCIES (DS) | B166: 6000
A167: Total Disbursements/ Expenditures | E167: =SUM(E153,E165,E166) -> 0 | H167: =SUM(H153,H165,H166) -> 196834 | K167: =SUM(K153,K165,K166) -> 196834 | L167: =SUM(L153,L165,L166) -> 196834
A168: Excess (Deficiency) of Receipts/Revenues Over Disbursements/Expenditures | K168: ='Revenues 9-14'!E273-'Expenditures 15-22'!K167 -> 5600
A170: 40 - TRANSPORTATION FUND (TR)
A171: SUPPORT SERVICES (TR)
A172: SUPPORT SERVICES - PUPILS
A173: Other Support Services - Pupils (Describe & Itemize) | B173: 2190 | K173: =SUM(C173:J173) -> 0
A174: SUPPORT SERVICES - BUSINESS
A175: Pupil Transportation Services | B175: 2550 | C175: 129111 | D175: 8311 | E175: 4879 | F175: 30091 | G175: 41689 | H175: 4452 | K175: =SUM(C175:J175) -> 218533 | L175: 224180
A176: Other Support Services (Describe & Itemize) | B176: 2900 | K176: =SUM(C176:J176) -> 0
A177: Total Support Services | B177: 2000 | C177: =SUM(C173,C175,C176) -> 129111 | D177: =SUM(D173,D175,D176) -> 8311 | E177: 4879 | F177: 30091 | G177: 41689 | H177: 4452 | I177: 0 | J177: 0 | K177: =SUM(K173,K175,K176) -> 218533 | L177: =SUM(L173, L175:L176) -> 224180
A178: COMMUNITY SERVICES (TR) | B178: 3000 | K178: =SUM(C178:J178) -> 0
A179: PAYMENTS TO OTHER DIST & GOVT UNITS (TR)
A180: PAYMENTS TO OTHER GOVT UNITS (IN-STATE)
A181: Payments for Regular Programs | B181: 4110 | K181: =SUM(E181,H181) -> 0
A182: Payments for Special Education Programs | B182: 4120 | K182: 0
A183: Payments for Adult/Continuing Education Programs | B183: 4130 | K183: 0
A184: Payments for CTE Programs | B184: 4140 | K184: 0
A185: Payments for Community College Programs | B185: 4170 | K185: 0
A186: Other Payments to In-State Govt. Units (Describe & Itemize) | B186: 4190 | K186: 0
A187: Total Payments to Other Govt. Units (In-State) | B187: 4100 | E187: =SUM(E181:E186) -> 0 | H187: =SUM(H181:H186) -> 0 | K187: =SUM(K181:K186) -> 0 | L187: =SUM(L181:L186) -> 0
A188: PAYMENTS TO OTHER GOVT UNITS (OUT-OF-STATE) | B188: 4400 | K188: =SUM(E188,H188) -> 0
A189: Total Payments to Other Dist & Govt Units | B189: 4000 | E189: =SUM(E187,E188) -> 0 | H189: =SUM(H187,H188) -> 0 | K189: =SUM(K187,K188) -> 0 | L189: =SUM(L187,L188) -> 0
A190: DEBT SERVICES (TR)
A191: DEBT SERVICE - INTEREST ON SHORT-TERM DEBT
A192: Tax Anticipation Warrants | B192: 5110 | K192: =SUM(H192) -> 0
A193: Tax Anticipation Notes | B193: 5120 | K193: =SUM(H193) -> 0
A194: Corporate Personal Prop. Repl. Tax Anticipation Notes | B194: 5130 | K194: =SUM(H194) -> 0
A195: State Aid Anticipation Certificates | B195: 5140 | K195: =SUM(H195) -> 0
A196: Other Interest on Short-Term Debt (Describe & Itemize) | B196: 5150 | K196: =SUM(H196) -> 0
A197: Total Debt Services - Interest On Short-Term Debt | B197: 5100 | H197: =SUM(H192:H196) -> 0 | K197: =SUM(K192:K196) -> 0 | L197: =SUM(L192:L196) -> 0
A198: DEBT SERVICES - INTEREST ON LONG-TERM DEBT | B198: 5200 | K198: =SUM(H198) -> 0
A199: DEBT SERVICE - PAYMENTS OF PRINCIPAL ON LONG-TERM DEBT (Lease/Purchase Principal Retired) 11 | B199: 5300 | K199: =SUM(H199) -> 0
A200: DEBT SERVICES - OTHER (Describe & Itemize) | B200: 5400 | K200: =H200 -> 0
A201: Total Debt Services | H201: =SUM(H197,H198,H199,H200) -> 0 | K201: =SUM(K197,K198,K199,K200) -> 0 | L201: =SUM(L197,L198,L199,L200) -> 0
A202: PROVISION FOR CONTINGENCIES (TR) | B202: 6000
A203: Total Disbursements/ Expenditures | C203: =SUM(C177,C178) -> 129111 | D203: =SUM(D177,D178) -> 8311 | E203: =SUM(E177,E178,E189) -> 4879 | F203: =SUM(F177,F178) -> 30091 | G203: =SUM(G177,G178) -> 41689 | H203: =SUM(H177,H178,H189,H201,H202) -> 4452 | I203: =SUM(I177,I178) -> 0 | J203: =SUM(J177,J178) -> 0 | K203: =SUM(K177,K178,K189,K201,K202) -> 218533 | L203: =SUM(L177,L178,L189,L201,L202) -> 224180
... 146 more rows

Sheet ARRA Sched 23
A1: ="District's Accounting Basis is " &AUDITCHECK!D27 -> District's Accounting Basis is CASH | C1: ----RECEIPTS---- | D1: -------------------------------------------------------------------------------------------DISBURSEMENTS------------------------------------------------------------------------------------ | M1: -----------STAFFING------------
D2: (100) | E2: (200) | F2: (300) | G2: (400) | H2: (500) | I2: (600) | J2: (700) | K2: (800) | L2: (900)
A3: ARRA Revenue Source Code | B3: Acct # | C3: ARRA Receipts | D3: Salaries | E3: Employee Benefits | F3: Purchased Services | G3: Supplies & Materials | H3: Capital Outlay | I3: Other | J3: Non-Capitalized Equipment | K3: Termination Benefits | L3: Total Expenditures | M3: # of Staff Impacted by Salary & Benefits | N3: FTE Staff Impacted by Salary & Benefits
A4: Beginning Balance July 1, 2009 | C4: 0
A5: ARRA - General State Aid | B5: 4850 | C5: =SUM('Revenues 9-14'!C230:K230) -> 43243 | D5: 43242 | L5: =SUM(D5:K5) -> 43242
A6: ARRA - Title I Low Income | B6: 4851 | C6: =SUM('Revenues 9-14'!C231:K231) -> 25171 | D6: 25171 | L6: =SUM(D6:K6) -> 25171
A7: ARRA - Title I Neglected - Private | B7: 4852 | C7: =SUM('Revenues 9-14'!C232:K232) -> 0 | L7: 0
A8: ARRA - Title I Delinquent - Private | B8: 4853 | C8: =SUM('Revenues 9-14'!C233:K233) -> 0 | L8: 0
A9: ARRA - Title I School Improvement (Part A) | B9: 4854 | C9: =SUM('Revenues 9-14'!C234:K234) -> 0 | L9: 0
A10: ARRA - Title I School Improvement (Section 1003g) | B10: 4855 | C10: =SUM('Revenues 9-14'!C235:K235) -> 0 | L10: 0
A11: ARRA - IDEA Part B Preschool | B11: 4856 | C11: =SUM('Revenues 9-14'!C236:K236) -> 0 | L11: 0
A12: ARRA - IDEA Part B Flow Through | B12: 4857 | C12: =SUM('Revenues 9-14'!C237:K237) -> 0 | L12: 0
A13: ARRA - Title II D Technology Formula | B13: 4860 | C13: =SUM('Revenues 9-14'!C238:K238) -> 0 | L13: 0
A14: ARRA - Title II D Technology Competitive | B14: 4861 | C14: =SUM('Revenues 9-14'!C239:K239) -> 0 | L14: 0
A15: ARRA - McKenney - Vento Homeless Education | B15: 4862 | C15: =SUM('Revenues 9-14'!C240:K240) -> 0 | L15: 0
A16: ARRA - Child Nutrition Equipment Assistance | B16: 4863 | C16: =SUM('Revenues 9-14'!C241:K241) -> 0 | L16: 0
A17: Impact Aid Construction Formula | B17: 4864 | C17: =SUM('Revenues 9-14'!C242:K242) -> 0 | L17: 0
A18: Impact Aid Construction Competitive | B18: 4865 | C18: =SUM('Revenues 9-14'!C243:K243) -> 0 | L18: 0
A19: QZAB Tax Credits | B19: 4866 | C19: =SUM('Revenues 9-14'!C244:K244) -> 0 | L19: 0
A20: QSCB Tax Credits | B20: 4867 | C20: =SUM('Revenues 9-14'!C245:K245) -> 0 | L20: 0
A21: Build America Bonds Tax Credits | B21: 4868 | C21: =SUM('Revenues 9-14'!C246:K246) -> 0 | L21: 0
A22: Build America Bonds Interest Reimbursement | B22: 4869 | C22: =SUM('Revenues 9-14'!C247:K247) -> 0 | L22: 0
A23: ARRA - General State Aid - Other Govt Services Stabilization | B23: 4870 | C23: =SUM('Revenues 9-14'!C248:K248) -> 14372 | D23: 14372 | L23: 14372
A24: ARRA - Other II | B24: 4871 | C24: =SUM('Revenues 9-14'!C249:K249) -> 0 | L24: 0
A25: ARRA - Other III | B25: 4872 | C25: =SUM('Revenues 9-14'!C250:K250) -> 0 | L25: 0
A26: ARRA - Other IV | B26: 4873 | C26: =SUM('Revenues 9-14'!C251:K251) -> 0 | L26: 0
A27: ARRA - Other V | B27: 4874 | C27: =SUM('Revenues 9-14'!C252:K252) -> 0 | L27: 0
A28: ARRA - Early Childhood | B28: 4875 | C28: =SUM('Revenues 9-14'!C253:K253) -> 0 | L28: 0
A29: ARRA - Other VII | B29: 4876 | C29: =SUM('Revenues 9-14'!C254:K254) -> 0 | L29: 0
A30: ARRA - Other VIII | B30: 4877 | C30: =SUM('Revenues 9-14'!C255:K255) -> 0 | L30: 0
A31: ARRA - Other IX | B31: 4878 | C31: =SUM('Revenues 9-14'!C256:K256) -> 0 | L31: 0
A32: ARRA - Other X | B32: 4879 | C32: =SUM('Revenues 9-14'!C257:K257) -> 0 | L32: 0
A33: ARRA - Other XI | B33: 4880 | C33: =SUM('Revenues 9-14'!C258:K258) -> 0 | L33: 0
A34: Total ARRA Programs | C34: =SUM(C4:C33) -> 82786 | D34: =SUM(D5:D33) -> 82785 | E34: =SUM(E5:E33) -> 0 | F34: 0 | G34: 0 | H34: 0 | I34: 0 | J34: 0 | L34: =SUM(L5:L33) -> 82785 | M34: =SUM(M5:M32) -> 0 | N34: =SUM(N5:N32) -> 0
A35: Ending Balance June 30, 2010 | C35: =SUM(C4+C34)-L34 -> 1
A37: 1 | B37: Were any funds from the State Fiscal Stabilization Fund Program (SFSF) General State-Aid Accounts 4850, line 5 & 4870, line 23).
B38: used for the following non-allowable purposes:
C39: Payments of maintenance costs;
C40: Stadiums or other facilities used for athletic contests, exhibitions or other events for which admission is charged to the general public;
C41: Purchase or upgrade of vehicles;
C42: Improvements of stand-alone facilities whose purpose is not the education of children such as central office administrative buildings;
C43: Financial assistance to students to attend private elementary or secondary schools unless the funds are used to provide special
C44: education and related services to children with disabilities as authorized by the IDEA Act;
C45: School modernization, renovation, or repair that is inconsistent with State Law.
A47: 2 | B47: If any above boxes are checked provide the total amount
B48: of questioned costs and provide an explanation below:

Sheet Tax Sched 24
A1: SCHEDULE OF AD VALOREM TAX RECEIPTS
A2: Description | B2: Taxes Received 7-1-09 Thru 6-30-10 (from 2009 Levy & Prior Levies) * | C2: Taxes Received (from the 2009 Levy) | D2: Taxes Received (from 2008 & Prior Levies) | E2: Total Extimated Taxes (from the 2009 Levy) | F2: Estimated Taxes Due (from the 2009 Levy)
D3: (Column B - C) | F3: (Column E - C)
A4: Educational | B4: ='Revenues 9-14'!C5 -> 1082358 | C4: 484807 | D4: =B4-C4 -> 597551 | E4: 1068896 | F4: =E4-C4 -> 584089
A5: Operations & Maintenance | B5: ='Revenues 9-14'!D5 -> 294119 | C5: 131741 | D5: =B5-C5 -> 162378 | E5: 290461 | F5: =E5-C5 -> 158720
A6: Debt Services ** | B6: ='Revenues 9-14'!E5 -> 202351 | C6: 89742 | D6: 112609 | E6: 197862 | F6: =E6-C6 -> 108120
A7: Transportation | B7: ='Revenues 9-14'!F5 -> 117648 | C7: 52697 | D7: 64951 | E7: 116185 | F7: 63488
A8: Municipal Retirement/Social Security | B8: ='Revenues 9-14'!G5 -> 53913 | C8: 30380 | D8: 23533 | E8: 66980 | F8: 36600
A9: Capital Improvements | B9: ='Revenues 9-14'!H5 -> 0 | D9: 0 | F9: 0
A10: Working Cash | B10: ='Revenues 9-14'!I5 -> 29412 | C10: 13174 | D10: 16238 | E10: 29046 | F10: 15872
A11: Tort Immunity | B11: ='Revenues 9-14'!J5 -> 414536 | C11: 201722 | D11: 212814 | E11: 444754 | F11: 243032
A12: Fire Prevention & Safety | B12: ='Revenues 9-14'!K5 -> 29412 | C12: 13174 | D12: 16238 | E12: 29046 | F12: 15872
A13: Leasing Levy | B13: =SUM('Revenues 9-14'!C6:D6) -> 29412 | C13: 13174 | D13: 16238 | E13: 29046 | F13: 15872
A14: Special Education | B14: =SUM('Revenues 9-14'!C7:D7,'Revenues 9-14'!F7:H7) -> 23529 | C14: 10539 | D14: 12990 | E14: 23237 | F14: 12698
A15: Area Vocational Construction | B15: ='Revenues 9-14'!E9 -> 0 | D15: 0 | F15: 0
A16: Social Security/Medicare Only | B16: ='Revenues 9-14'!G8 -> 87804 | C16: 45345 | D16: 42459 | E16: 99977 | F16: 54632
A17: Summer School | B17: ='Revenues 9-14'!C10 -> 0 | D17: 0 | F17: 0
A18: Other (Describe & Itemize) | B18: =SUM('Revenues 9-14'!C11:K11) -> 0 | D18: 0 | F18: 0
A19: Totals | B19: =SUM(B4:B18) -> 2364494 | C19: =SUM(C4:C18) -> 1086495 | D19: =SUM(D4:D18) -> 1277999 | E19: =SUM(E4:E18) -> 2395490 | F19: =SUM(F4:F18) -> 1308995
A21: * The formulas in column B are unprotected to be overidden when reporting on a ACCRUAL basis.
A22: ** All tax receipts for debt service payments on bonds must be recorded on line 6 (Debt Services).

Sheet Short-Term Long-Term Debt 25
A1: SCHEDULE OF SHORT-TERM DEBT
A2: Description | C2: Outstanding Beginning 07/01/09 | D2: Issued 07/01/09 Through 06/30/10 | E2: Retired 07/01/09 Through 06/30/10 | F2: Outstanding Ending 06/30/10
A3: CORPORATE PERSONAL PROPERTY REPLACEMENT TAX ANTICIPATION NOTES (CPPRT)
A4: Total CPPRT Notes | F4: =SUM(C4+D4)-E4 -> 0
A5: TAX ANTICIPATION WARRANTS (TAW)
A6: Educational Fund | F6: =SUM(C6+D6)-E6 -> 0
A7: Operations & Maintenance Fund | F7: 0
A8: Debt Services - Construction | F8: 0
A9: Debt Services - Working Cash | F9: 0
A10: Debt Services - Refunding Bonds | F10: 0
A11: Transportation Fund | F11: 0
A12: Municipal Retirement/Social Security Fund | F12: 0
A13: Fire Prevention & Safety Fund | F13: 0
A14: Other - (Describe & Itemize) | F14: 0
A15: Total TAWs | C15: =SUM(C6:C14) -> 0 | D15: =SUM(D6:D14) -> 0 | E15: =SUM(E6:E14) -> 0 | F15: =SUM(F6:F14) -> 0
A16: TAX ANTICIPATION NOTES (TAN)
A17: Educational Fund | F17: =SUM(C17+D17)-E17 -> 0
A18: Operations & Maintenance Fund | F18: =SUM(C18+D18)-E18 -> 0
A19: Fire Prevention & Safety Fund | F19: =SUM(C19+D19)-E19 -> 0
A20: Other - (Describe & Itemize) | F20: =SUM(C20+D20)-E20 -> 0
A21: Total TANs | C21: =SUM(C17:C20) -> 0 | D21: =SUM(D17:D20) -> 0 | E21: =SUM(E17:E20) -> 0 | F21: =SUM(F17:F20) -> 0
A22: TEACHERS'/EMPLOYEES' ORDERS (T/EO)
A23: Total T/EOs (Educational, Operations & Maintenance, & Transportation Funds) | F23: =SUM(C23+D23)-E23 -> 0
A24: GENERAL STATE-AID ANTICIPATION CERTIFICATES (GSAAC)
A25: Total GSAACs (All Funds) | F25: =SUM(C25+D25)-E25 -> 0
A26: OTHER SHORT-TERM BORROWING
A27: Total Other Short-Term Borrowing (Describe & Itemize) | F27: =SUM(C27+D27)-E27 -> 0
A29: SCHEDULE OF LONG-TERM DEBT
A30: Identification or Name of Issue | B30: Date of Issue (mm/dd/yy) | C30: Amount of Original Issue | D30: Type of Issue * | E30: Outstanding 07/1/09 | F30: Issued 7/1/09 thru 6/30/10 | G30: Difference With page 7, line 32 | H30: Retired 7/1/09 thru 6/30/10 | I30: Outstanding 6/30/10 | J30: Amount to be Provided for Payment on Long-Term Debt
A31: 2007 Life Safety Bonds | B31: 2007-06-01 | C31: 825000 | D31: 4 | E31: 710000 | H31: 165000 | I31: =((E31+F31)-H31)+G31 -> 545000 | J31: 454380
I32: =((E32+F32)-H32)+G32 -> 0
A33: STRLP - Tech Loan - Educ Fund | E33: 46518 | H33: 18330 | I33: =((E33+F33)-H33)+G33 -> 28188 | J33: 28188
A34: Capital Bus Lease - Trans Fund | E34: 102653 | H34: 24053 | I34: 78600 | J34: 78600
A35: Capital Bus Lease - Trans Fund | E35: 0 | G35: 80196 | H35: 17636 | I35: 62560 | J35: 62560
I36: 0
I37: 0
I38: 0
I39: 0
I40: 0
I41: 0
I42: 0
I43: 0
I44: 0
I45: 0
I46: 0
I47: 0
I48: 0
C49: =SUM(C31:C48) -> 825000 | E49: =SUM(E31:E48) -> 859171 | F49: 0 | G49: 80196 | H49: 225019 | I49: 714348 | J49: 623728
A51: * Each type of debt issued must be identified separately with the amount:
A52: 1. Working Cash Fund Bonds | B52: 4. Fire Prevent, Safety, Environmental and Energy Bonds | E52: 7. Other
A53: 2. Funding Bonds | B53: 5. Tort Judgment Bonds | E53: 8. Other
A54: 3. Refunding Bonds | B54: 6. Building Bonds | E54: 9. Other

Sheet Rest Tax Levies-Tort Im 26
A1: SCHEDULE OF RESTRICTED LOCAL TAX LEVIES AND SELECTED REVENUE SOURCES
A2: Description | F2: Account No | G2: Tort Immunity a | H2: Special Education | I2: Area Vocational Construction | J2: School Facility Occupation Taxes b | K2: Driver Education
A3: Cash Basis Fund Balance as of July 1, 2009 | H3: 0
A4: RECEIPTS:
A5: Ad Valorem Taxes Received by District | F5: 10, 20, 40 or 50-1100 | H5: 23529
A6: Earnings on Investments | F6: 10, 20, 40, 50 or 60-1500
A7: Drivers' Education Fees | F7: 10-1970 | K7: ='Revenues 9-14'!C101 -> 1885
A8: School Facility Occupation Tax Proceeds | F8: 30 or 60-1983 | J8: =SUM('Revenues 9-14'!E103,'Revenues 9-14'!G103) -> 0
A9: Driver Education | F9: 10 or 20-3370 | K9: =SUM('Revenues 9-14'!C147:D147) -> 6584
A10: Other Receipts (Describe & Itemize on tab "Itemization 32") | F10: --
A11: Sale of Bonds | F11: 10, 20, 40 or 60-7200
A12: Total Receipts | G12: =SUM(G5:G11) -> 0 | H12: =SUM(H5:H11) -> 23529 | I12: =SUM(I5:I11) -> 0 | J12: =SUM(J5:J11) -> 0 | K12: =SUM(K5:K11) -> 8469
A13: DISBURSEMENTS:
A14: Instruction | F14: 10 or 50-1000 | H14: 23529 | K14: 8469
A15: Facilities Acquisition & Construction Services | F15: 20 or 60-2530
A16: Tort Immunity Services | F16: 10, 20, 40-2360-2370
A17: DEBT SERVICE
A18: Debt Services - Interest on Long-Term Debt | F18: 30-5200
A19: Debt Services - Payments of Principal on Long-Term Debt (Lease/Purchase Principal Retired) | F19: 30-5300
A20: Debt Services Other (Describe & Itemize on tab "Itemization 32") | F20: 30-5400
A21: Total Debt Services | J21: =SUM(J18:J20) -> 0
A22: Other Disbursements (Describe & Itemize on tab "Itemization 32") | F22: --
A23: Total Disbursements | G23: =SUM(G14:G16,G21,G22) -> 0 | H23: =SUM(H14:H16,H21,H22) -> 23529 | I23: =SUM(I14:I16,I21,I22) -> 0 | J23: =SUM(J14:J16,J21,J22) -> 0 | K23: =SUM(K14:K16,K21,K22) -> 8469
A24: Ending Cash Basis Fund Balance as of June 30, 2010 | G24: =SUM(G3,G12)-G23 -> 0 | H24: =SUM(H3,H12)-H23 -> 0 | I24: =SUM(I3,I12)-I23 -> 0 | J24: =SUM(J3,J12)-J23 -> 0 | K24: =SUM(K3,K12)-K23 -> 0
A25: Reserved Fund Balance | F25: 714
A26: Unreserved Fund Balance | F26: 730 | G26: =G24-G25 -> 0 | H26: =H24-H25 -> 0 | I26: =I24-I25 -> 0 | J26: =J24-J25 -> 0 | K26: =K24-K25 -> 0
A28: SCHEDULE OF TORT IMMUNITY EXPENDITURES a
A30: Yes | C30: No | E30: Has the entity established an insurance reserve pursuant to 745 ILCS 10/9-103?
E31: If yes, list in the aggregate the following: | F31: Total Claims Payments:
F32: Total Reserve Remaining:
A33: Using the following categories, list all other Tort Immunity expenditures not
A34: included in line 30 above. Include the total dollar amount for each category.
A35: Expenditures:
A36: Workers' Compensation Act and/or Workers' Occupational Disease Act
A37: Unemployment Insurance Act
A38: Insurance (Regular or Self-Insurance)
A39: Risk Management and Claims Service
A40: Judgments/Settlements
A41: Educational, Inspectional, Supervisory Services Related to Loss Prevention and/or Reduction
A42: Reciprocal Insurance Payments (Insurance Code 72, 76, and 81)
A43: Legal Services
A44: Principal and Interest on Tort Bonds
A46: a | B46: Schedules for Tort Immunity are to be completed only if expenditures have been reported in any fund other than the Tort Immunity Fund (80) during FY10 as a result of existing (restricted) fund balances
B47: in those other funds that are being spent down. Cell G6 above should include interest earnings only from these restricted tort immunity monies and only if reported in a fund other than Tort Immunity Fund (80).
A48: b | B48: 55 ILCS 5/5-1006.7

Sheet Cap Outlay Deprec 27
A3: Schedule of Capital Outlay and Depreciation
A4: Description of Assets | B4: Acct # | C4: Cost 7-1-09 | D4: Add: Additions 2009-10 | E4: Less: Deletions 2009-10 | F4: Cost 6-30-10 | G4: Life In Years | H4: Accumulated Depreciation 7-1-09 | I4: Add: Depreciation Allowable 2009-10 | J4: Less: Depreciation Deletions 2009-10 | K4: Accumulated Depreciation 6-30-10 | L4: Balance Undepreciated 6-30-10
A5: Works of Art & Historical Treasures | B5: 210 | F5: =(C5+D5)-E5 -> 0 | K5: =(H5+I5)-J5 -> 0 | L5: =F5-K5 -> 0
A6: Land | B6: 220
A7: Non-Depreciable Land | B7: 221 | C7: 68728 | F7: =(C7+D7)-E7 -> 68728 | L7: =F7-K7 -> 68728
A8: Depreciable Land | B8: 222 | F8: =(C8+D8)-E8 -> 0 | G8: 50 | K8: =(H8+I8)-J8 -> 0 | L8: =F8-K8 -> 0
A9: Buildings | B9: 230
A10: Permanent Buildings | B10: 231 | C10: 7200721 | D10: 272537 | F10: =(C10+D10)-E10 -> 7473258 | G10: 50 | H10: 3570986 | I10: 149466 | K10: =(H10+I10)-J10 -> 3720452 | L10: =F10-K10 -> 3752806
A11: Temporary Buildings | B11: 232 | F11: =(C11+D11)-E11 -> 0 | G11: 25 | K11: =(H11+I11)-J11 -> 0 | L11: =F11-K11 -> 0
A12: Improvements Other than Buildings (Infrastructure) | B12: 240 | C12: 541397 | D12: 890 | E12: 8294 | F12: =(C12+D12)-E12 -> 533993 | G12: 20 | H12: 178047 | I12: 26700 | J12: 8294 | K12: =(H12+I12)-J12 -> 196453 | L12: =F12-K12 -> 337540
A13: Capitalized Equipment | B13: 250
A14: 10 Yr Schedule | B14: 251 | C14: 735782 | D14: 48206 | E14: 145004 | F14: =(C14+D14)-E14 -> 638984 | G14: 10 | H14: 425637 | I14: 117898 | J14: 145004 | K14: =(H14+I14)-J14 -> 398531 | L14: =F14-K14 -> 240453
A15: 5 Yr Schedule | B15: 252 | C15: 639007 | D15: 41689 | F15: =(C15+D15)-E15 -> 680696 | G15: 5 | H15: 555752 | I15: 66223 | K15: =(H15+I15)-J15 -> 621975 | L15: =F15-K15 -> 58721
A16: 3 Yr Schedule | B16: 253 | F16: =(C16+D16)-E16 -> 0 | G16: 3 | K16: =(H16+I16)-J16 -> 0 | L16: =F16-K16 -> 0
A17: Construction in Progress | B17: 260 | C17: 21505 | E17: 21505 | F17: =(C17+D17)-E17 -> 0 | G17: -- | L17: =F17-K17 -> 0
A18: Total Capital Assets | B18: 200 | C18: =SUM(C5,C7:C8,C10:C12,C14:C17) -> 9207140 | D18: =SUM(D5,D7:D8,D10:D12,D14:D17) -> 363322 | E18: =SUM(E5,E7:E8,E10:E12,E14:E17) -> 174803 | F18: =SUM(F5,F7:F8,F10:F12,F14:F17) -> 9395659 | H18: =SUM(H5,H8,H10:H12,H14:H16,) -> 4730422 | I18: =SUM(I5,I8,I10:I12,I14:I16,) -> 360287 | J18: =SUM(J5,J8,J10:J12,J14:J16,) -> 153298 | K18: =(H18+I18)-J18 -> 4937411 | L18: =F18-K18 -> 4458248
A19: Non-Capitalized Equipment | B19: 700 | F19: =SUM('Expenditures 15-22'!I113,'Expenditures 15-22'!I149,'Expenditures 15-22'!I203,'Expenditures 15-22'!I304,'Expenditures 15-22'!I330,'Expenditures 15-22'!I353) -> 0 | G19: 10 | I19: =F19/G19 -> 0
A20: Allowable Depreciation | I20: =SUM(I18,I19) -> 360287

Sheet PCTC-OEPP 28-29
A1: ESTIMATED OPERATING EXPENSE PER PUPIL (OEPP)/PER CAPITA TUITION CHARGE (PCTC) COMPUTATIONS (2009-10)
A2: This schedule is completed for school districts only.
A4: Fund | B4: Sheet, Row | D4: ACCOUNT NO - TITLE | F4: Amount
A6: OPERATING EXPENSE PER PUPIL
A7: EXPENDITURES:
A8: ED | B8: Expenditures 15-22, L113 | D8: Total Expenditures | E8: $ | F8: ='Expenditures 15-22'!K113 -> 4260776
A9: O&M | B9: Expenditures 15-22, L149 | D9: Total Expenditures | F9: ='Expenditures 15-22'!K149 -> 451815
A10: DS | B10: Expenditures 15-22, L167 | D10: Total Expenditures | F10: ='Expenditures 15-22'!K167 -> 196834
A11: TR | B11: Expenditures 15-22, L203 | D11: Total Expenditures | F11: ='Expenditures 15-22'!K203 -> 218533
A12: MR/SS | B12: Expenditures 15-22, L287 | D12: Total Expenditures | F12: ='Expenditures 15-22'!K287 -> 193944
A13: TORT | B13: Expenditures 15-22, L330 | D13: Total Expenditures | F13: ='Expenditures 15-22'!K330 -> 500145
D14: Total Expenditures | E14: $ | F14: =SUM(F8:F13) -> 5822047
A16: LESS RECEIPTS/REVENUES OR DISBURSEMENTS/EXPENDITURES NOT APPLICABLE TO THE REGULAR K-12 PROGRAM:
A18: TR | B18: Revenues 9-14, L43, Col F | C18: ='Revenues 9-14'!B43 -> 1412 | D18: ='Revenues 9-14'!A43 -> Regular - Transp Fees from Other Districts (In State) | E18: $ | F18: ='Revenues 9-14'!F43 -> 0
A19: TR | B19: Revenues 9-14, L47, Col F | C19: ='Revenues 9-14'!B47 -> 1421 | D19: ='Revenues 9-14'!A47 -> Summer Sch - Transp. Fees from Pupils or Parents (In State) | F19: ='Revenues 9-14'!F47 -> 0
A20: TR | B20: Revenues 9-14, L48, Col F | C20: ='Revenues 9-14'!B48 -> 1422 | D20: ='Revenues 9-14'!A48 -> Summer Sch - Transp. Fees from Other Districts (In State) | F20: ='Revenues 9-14'!F48 -> 0
A21: TR | B21: Revenues 9-14, L49, Col F | C21: ='Revenues 9-14'!B49 -> 1423 | D21: ='Revenues 9-14'!A49 -> Summer Sch - Transp. Fees from Other Sources (In State) | F21: ='Revenues 9-14'!F49 -> 0
A22: TR | B22: Revenues 9-14, L50 Col F | C22: ='Revenues 9-14'!B50 -> 1424 | D22: ='Revenues 9-14'!A50 -> Summer Sch - Transp. Fees from Other Sources (Out of State) | F22: ='Revenues 9-14'!F50 -> 0
A23: TR | B23: Revenues 9-14, L52, Col F | C23: ='Revenues 9-14'!B52 -> 1432 | D23: ='Revenues 9-14'!A52 -> CTE - Transp Fees from Other Districts (In State) | F23: ='Revenues 9-14'!F52 -> 0
A24: TR | B24: Revenues 9-14, L56, Col F | C24: ='Revenues 9-14'!B56 -> 1442 | D24: ='Revenues 9-14'!A56 -> Special Ed - Transp Fees from Other Districts (In State) | F24: ='Revenues 9-14'!F56 -> 0
A25: TR | B25: Revenues 9-14, L59, Col F | C25: ='Revenues 9-14'!B59 -> 1451 | D25: ='Revenues 9-14'!A59 -> Adult - Transp Fees from Pupils or Parents (In State) | F25: ='Revenues 9-14'!F59 -> 0
A26: TR | B26: Revenues 9-14, L60, Col F | C26: ='Revenues 9-14'!B60 -> 1452 | D26: ='Revenues 9-14'!A60 -> Adult - Transp Fees from Other Districts (In State) | F26: ='Revenues 9-14'!F60 -> 0
A27: TR | B27: Revenues 9-14, L61, Col F | C27: ='Revenues 9-14'!B61 -> 1453 | D27: ='Revenues 9-14'!A61 -> Adult - Transp Fees from Other Sources (In State) | F27: ='Revenues 9-14'!F61 -> 0
A28: TR | B28: Revenues 9-14, L62, Col F | C28: ='Revenues 9-14'!B62 -> 1454 | D28: ='Revenues 9-14'!A62 -> Adult - Transp Fees from Other Sources (Out of State) | F28: ='Revenues 9-14'!F62 -> 0
A29: O&M | B29: Revenues 9-14, L148, Col D | C29: ='Revenues 9-14'!B148 -> 3410 | D29: ='Revenues 9-14'!A148 -> Adult Ed (from ICCB) | F29: ='Revenues 9-14'!D148 -> 0
A30: O&M-TR | B30: Revenues 9-14, L149, Col D & F | C30: ='Revenues 9-14'!B149 -> 3499 | D30: ='Revenues 9-14'!A149 -> Adult Ed - Other (Describe & Itemize) | F30: =('Revenues 9-14'!D149+'Revenues 9-14'!F149) -> 0
A31: O&M-TR | B31: Revenues 9-14, L218, Col D,F | C31: ='Revenues 9-14'!B218 -> 4600 | D31: ='Revenues 9-14'!A218 -> Fed - Spec Education - Preschool Flow-Through | F31: =SUM('Revenues 9-14'!D218,'Revenues 9-14'!F218) -> 0
A32: O&M-TR | B32: Revenues 9-14, L219, Col D,F | C32: ='Revenues 9-14'!B219 -> 4605 | D32: ='Revenues 9-14'!A219 -> Fed - Spec Education - Preschool Discretionary | F32: =SUM('Revenues 9-14'!D219,'Revenues 9-14'!F219) -> 0
A33: O&M | B33: Revenues 9-14, L229, Col D | C33: ='Revenues 9-14'!B229 -> 4810 | D33: ='Revenues 9-14'!A229 -> Federal - Adult Education | F33: ='Revenues 9-14'!D229 -> 0
A34: ED | B34: Expenditures 15-22, L6, Col K - (G+I) | C34: ='Expenditures 15-22'!B6 -> 1125 | D34: ='Expenditures 15-22'!A6 -> Pre-K Programs | F34: ='Expenditures 15-22'!K6-SUM('Expenditures 15-22'!G6,'Expenditures 15-22'!I6) -> 185523
A35: ED | B35: Expenditures 15-22, L8, Col K - (G+I) | C35: ='Expenditures 15-22'!B8 -> 1225 | D35: ='Expenditures 15-22'!A8 -> Special Education Programs Pre-K | F35: ='Expenditures 15-22'!K8-SUM('Expenditures 15-22'!G8+'Expenditures 15-22'!I8) -> 0
A36: ED | B36: Expenditures 15-22, L10, Col K - (G+I) | C36: ='Expenditures 15-22'!B10 -> 1275 | D36: ='Expenditures 15-22'!A10 -> Remedial and Supplemental Programs Pre-K | F36: ='Expenditures 15-22'!K10-SUM('Expenditures 15-22'!G10,'Expenditures 15-22'!I10) -> 0
A37: ED | B37: Expenditures 15-22, L11, Col K - (G+I) | C37: ='Expenditures 15-22'!B11 -> 1300 | D37: ='Expenditures 15-22'!A11 -> Adult/Continuing Education Programs | F37: ='Expenditures 15-22'!K11-SUM('Expenditures 15-22'!G11+'Expenditures 15-22'!I11) -> 0
A38: ED | B38: Expenditures 15-22, L14, Col K - (G+I) | C38: ='Expenditures 15-22'!B14 -> 1600 | D38: ='Expenditures 15-22'!A14 -> Summer School Programs | F38: ='Expenditures 15-22'!K14-SUM('Expenditures 15-22'!G14,'Expenditures 15-22'!I14) -> 2525
A39: ED | B39: Expenditures 15-22, L19, Col K | C39: ='Expenditures 15-22'!B19 -> 1910 | D39: ='Expenditures 15-22'!A19 -> Pre-K Programs - Private Tuition | F39: ='Expenditures 15-22'!K19 -> 0
A40: ED | B40: Expenditures 15-22, L20, Col K | C40: ='Expenditures 15-22'!B20 -> 1911 | D40: ='Expenditures 15-22'!A20 -> Regular K-12 Programs - Private Tuition | F40: ='Expenditures 15-22'!K20 -> 0
A41: ED | B41: Expenditures 15-22, L21, Col K | C41: ='Expenditures 15-22'!B21 -> 1912 | D41: ='Expenditures 15-22'!A21 -> Special Education Programs K-12 - Private Tuition | F41: ='Expenditures 15-22'!K21 -> 0
A42: ED | B42: Expenditures 15-22, L22, Col K | C42: ='Expenditures 15-22'!B22 -> 1913 | D42: ='Expenditures 15-22'!A22 -> Special Education Programs Pre-K - Tuition | F42: ='Expenditures 15-22'!K22 -> 0
A43: ED | B43: Expenditures 15-22, L23, Col K | C43: ='Expenditures 15-22'!B23 -> 1914 | D43: ='Expenditures 15-22'!A23 -> Remedial/Supplemental Programs K-12 - Private Tuition | F43: ='Expenditures 15-22'!K23 -> 0
A44: ED | B44: Expenditures 15-22, L24, Col K | C44: ='Expenditures 15-22'!B24 -> 1915 | D44: ='Expenditures 15-22'!A24 -> Remedial/Supplemental Programs Pre-K - Private Tuition | F44: ='Expenditures 15-22'!K24 -> 0
A45: ED | B45: Expenditures 15-22, L25, Col K | C45: ='Expenditures 15-22'!B25 -> 1916 | D45: ='Expenditures 15-22'!A25 -> Adult/Continuing Education Programs - Private Tuition | F45: ='Expenditures 15-22'!K25 -> 0
A46: ED | B46: Expenditures 15-22, L26, Col K | C46: ='Expenditures 15-22'!B26 -> 1917 | D46: ='Expenditures 15-22'!A26 -> CTE Programs - Private Tuition | F46: ='Expenditures 15-22'!K26 -> 0
A47: ED | B47: Expenditures 15-22, L27, Col K | C47: ='Expenditures 15-22'!B27 -> 1918 | D47: ='Expenditures 15-22'!A27 -> Interscholastic Programs - Private Tuition | F47: ='Expenditures 15-22'!K27 -> 0
A48: ED | B48: Expenditures 15-22, L28, Col K | C48: ='Expenditures 15-22'!B28 -> 1919 | D48: ='Expenditures 15-22'!A28 -> Summer School Programs - Private Tuition | F48: ='Expenditures 15-22'!K28 -> 0
A49: ED | B49: Expenditures 15-22, L29, Col K | C49: ='Expenditures 15-22'!B29 -> 1920 | D49: ='Expenditures 15-22'!A29 -> Gifted Programs - Private Tuition | F49: ='Expenditures 15-22'!K29 -> 0
A50: ED | B50: Expenditures 15-22, L30, Col K | C50: ='Expenditures 15-22'!B30 -> 1921 | D50: ='Expenditures 15-22'!A30 -> Bilingual Programs - Private Tuition | F50: ='Expenditures 15-22'!K30 -> 0
A51: ED | B51: Expenditures 15-22, L31, Col K | C51: ='Expenditures 15-22'!B31 -> 1922 | D51: ='Expenditures 15-22'!A31 -> Truants Alternative/Optional Ed Progms - Private Tuition | F51: ='Expenditures 15-22'!K31 -> 0
A52: ED | B52: Expenditures 15-22, L74, Col K - (G+I) | C52: ='Expenditures 15-22'!B74 -> 3000 | D52: Community Services | F52: ='Expenditures 15-22'!K74-SUM('Expenditures 15-22'!G74,'Expenditures 15-22'!I74) -> 0
A53: ED | B53: Expenditures 15-22, L101, Col K | C53: ='Expenditures 15-22'!B101 -> 4000 | D53: ='Expenditures 15-22'!A101 -> Total Payments to Other District & Govt Units | F53: ='Expenditures 15-22'!K101 -> 557332
A54: ED | B54: Expenditures 15-22, L113, Col G | C54: - | D54: Capital Outlay | F54: ='Expenditures 15-22'!G113 -> 45011
A55: ED | B55: Expenditures 15-22, L113, Col I | C55: - | D55: Non-Capitalized Equipment | F55: ='Expenditures 15-22'!I113 -> 0
A56: O&M | B56: Expenditures 15-22, L129, Col K - (G+I) | C56: ='Expenditures 15-22'!B129 -> 3000 | D56: Community Services | F56: ='Expenditures 15-22'!K129-SUM('Expenditures 15-22'!G129+'Expenditures 15-22'!I129) -> 0
A57: O&M | B57: Expenditures 15-22, L137, Col K | C57: ='Expenditures 15-22'!B137 -> 4000 | D57: ='Expenditures 15-22'!A137 -> Total Payments to Other Dist & Govt Units | F57: ='Expenditures 15-22'!K137-'Expenditures 15-22'!I137 -> 0
A58: O&M | B58: Expenditures 15-22, L149, Col G | C58: - | D58: Capital Outlay | F58: ='Expenditures 15-22'!G149 -> 28466
A59: O&M | B59: Expenditures 15-22, L149, Col I | C59: - | D59: Non-Capitalized Equipment | F59: ='Expenditures 15-22'!I149 -> 0
A60: DS | B60: Expenditures 15-22, L153, Col K | C60: 4000 | D60: Payments to Other Dist & Govt Units | F60: ='Expenditures 15-22'!K153 -> 0
A61: DS | B61: Expenditures 15-22, L163, Col K | C61: ='Expenditures 15-22'!B163 -> 5300 | D61: Debt Service - Payments of Principal on Long-Term Debt | F61: ='Expenditures 15-22'!K163 -> 165000
A62: TR | B62: Expenditures 15-22, L178, Col K - (G+I) | C62: ='Expenditures 15-22'!B178 -> 3000 | D62: Community Services | F62: ='Expenditures 15-22'!K178-SUM('Expenditures 15-22'!G178,'Expenditures 15-22'!I178) -> 0
A63: TR | B63: Expenditures 15-22, L189, Col K | C63: ='Expenditures 15-22'!B189 -> 4000 | D63: ='Expenditures 15-22'!A189 -> Total Payments to Other Dist & Govt Units | F63: ='Expenditures 15-22'!K189 -> 0
A64: TR | B64: Expenditures 15-22, L199, Col K | C64: ='Expenditures 15-22'!B199 -> 5300 | D64: Debt Service - Payments of Principal on Long-Term Debt | F64: ='Expenditures 15-22'!K199 -> 0
A65: TR | B65: Expenditures 15-22, L203, Col G | C65: - | D65: Capital Outlay | F65: ='Expenditures 15-22'!G203 -> 41689
A66: TR | B66: Expenditures 15-22, L203, Col I | C66: - | D66: Non-Capitalized Equipment | F66: ='Expenditures 15-22'!I203 -> 0
A67: MR/SS | B67: Expenditures 15-22, L209, Col K | C67: ='Expenditures 15-22'!B209 -> 1125 | D67: ='Expenditures 15-22'!A209 -> Pre-K Programs | F67: ='Expenditures 15-22'!K209 -> 9228
A68: MR/SS | B68: Expenditures 15-22, L211, Col K | C68: ='Expenditures 15-22'!B211 -> 1225 | D68: ='Expenditures 15-22'!A211 -> Special Education Programs - Pre-K | F68: ='Expenditures 15-22'!K211 -> 0
A69: MR/SS | B69: Expenditures 15-22, L213, Col K | C69: ='Expenditures 15-22'!B213 -> 1275 | D69: ='Expenditures 15-22'!A213 -> Remedial and Supplemental Programs - Pre-K | F69: ='Expenditures 15-22'!K213 -> 0
A70: MR/SS | B70: Expenditures 15-22, L214, Col K | C70: ='Expenditures 15-22'!B214 -> 1300 | D70: ='Expenditures 15-22'!A214 -> Adult/Continuing Education Programs | F70: ='Expenditures 15-22'!K214 -> 0
A71: MR/SS | B71: Expenditures 15-22, L217, Col K | C71: ='Expenditures 15-22'!B217 -> 1600 | D71: ='Expenditures 15-22'!A217 -> Summer School Programs | F71: ='Expenditures 15-22'!K217 -> 10
A72: MR/SS | B72: Expenditures 15-22, L273, Col K | C72: ='Expenditures 15-22'!B273 -> 3000 | D72: Community Services | F72: ='Expenditures 15-22'!K273 -> 0
A73: MR/SS | B73: Expenditures 15-22, L277, Col K | C73: ='Expenditures 15-22'!B277 -> 4000 | D73: ='Expenditures 15-22'!A277 -> Total Payments to Other Dist & Govt Units | F73: ='Expenditures 15-22'!K277 -> 0
D75: Total Deductions | E75: $ | F75: =SUM(F18:F73) -> 1034784
D76: Total Operating Expenses (Regular K-12) | F76: =(F14-F75) -> 4787263
D77: 9 Mo ADA (See the General State Aid Claim for 2010-2011 (ISBE 54-33, L12) | F77: 623.54
D78: Estimated OEPP | E78: $ | F78: =IF(F77>0,F76/F77," Complete Line 78") -> 7677.55557
A80: PER CAPITA TUITION CHARGE
A82: LESS OFFSETTING RECEIPTS/REVENUES:
A83: TR | B83: Revenues 9-14, L42, Col F | C83: ='Revenues 9-14'!B42 -> 1411 | D83: ='Revenues 9-14'!A42 -> Regular -Transp Fees from Pupils or Parents (In State) | E83: $ | F83: ='Revenues 9-14'!F42 -> 0
A84: TR | B84: Revenues 9-14, L44, Col F | C84: ='Revenues 9-14'!B44 -> 1413 | D84: ='Revenues 9-14'!A44 -> Regular - Transp Fees from Other Sources (In State) | F84: ='Revenues 9-14'!F44 -> 0
A85: TR | B85: Revenues 9-14, L45, Col F | C85: ='Revenues 9-14'!B45 -> 1415 | D85: ='Revenues 9-14'!A45 -> Regular - Transp Fees from Co-curricular Activities (In State) | F85: ='Revenues 9-14'!F45 -> 2827
A86: TR | B86: Revenues 9-14, L46, Col F | C86: 1416 | D86: ='Revenues 9-14'!A46 -> Regular Transp Fees from Other Sources (Out of State) | F86: ='Revenues 9-14'!F46 -> 0
A87: TR | B87: Revenues 9-14, L51, Col F | C87: ='Revenues 9-14'!B51 -> 1431 | D87: ='Revenues 9-14'!A51 -> CTE - Transp Fees from Pupils or Parents (In State) | F87: ='Revenues 9-14'!F51 -> 0
A88: TR | B88: Revenues 9-14, L53, Col F | C88: ='Revenues 9-14'!B53 -> 1433 | D88: ='Revenues 9-14'!A53 -> CTE - Transp Fees from Other Sources (In State) | F88: ='Revenues 9-14'!F53 -> 0
A89: TR | B89: Revenues 9-14, L54, Col F | C89: ='Revenues 9-14'!B54 -> 1434 | D89: ='Revenues 9-14'!A54 -> CTE - Transp Fees from Other Sources (Out of State) | F89: ='Revenues 9-14'!F54 -> 0
A90: TR | B90: Revenues 9-14, L55, Col F | C90: ='Revenues 9-14'!B55 -> 1441 | D90: ='Revenues 9-14'!A55 -> Special Ed - Transp Fees from Pupils or Parents (In State) | F90: ='Revenues 9-14'!F55 -> 0
A91: TR | B91: Revenues 9-14, L57, Col F | C91: ='Revenues 9-14'!B57 -> 1443 | D91: ='Revenues 9-14'!A57 -> Special Ed - Transp Fees from Other Sources (In State) | F91: ='Revenues 9-14'!F57 -> 0
A92: TR | B92: Revenues 9-14, L58, Col F | C92: ='Revenues 9-14'!B58 -> 1444 | D92: ='Revenues 9-14'!A58 -> Special Ed - Transp Fees from Other Sources (Out of State) | F92: ='Revenues 9-14'!F58 -> 0
A93: ED | B93: Revenues 9-14, L75, Col C | C93: 1600 | D93: ='Revenues 9-14'!A75 -> Total Food Service | F93: ='Revenues 9-14'!C75 -> 103209
A94: ED-O&M | B94: Revenues 9-14, L82, Col C,D | C94: 1700 | D94: ='Revenues 9-14'!A82 -> Total District/School Activity Income | F94: =SUM('Revenues 9-14'!C82,'Revenues 9-14'!D82) -> 44047
A95: ED | B95: Revenues 9-14, L84, Col C | C95: ='Revenues 9-14'!B84 -> 1811 | D95: ='Revenues 9-14'!A84 -> Rentals - Regular Textbooks | F95: ='Revenues 9-14'!C84 -> 35568
A96: ED | B96: Revenues 9-14, L87, Col C | C96: ='Revenues 9-14'!B87 -> 1819 | D96: ='Revenues 9-14'!A87 -> Rentals - Other (Describe & Itemize) | F96: ='Revenues 9-14'!C87 -> 0
A97: ED | B97: Revenues 9-14, L88, Col C | C97: ='Revenues 9-14'!B88 -> 1821 | D97: ='Revenues 9-14'!A88 -> Sales - Regular Textbooks | F97: ='Revenues 9-14'!C88 -> 0
A98: ED | B98: Revenues 9-14, L91, Col C | C98: ='Revenues 9-14'!B91 -> 1829 | D98: ='Revenues 9-14'!A91 -> Sales - Other (Describe & Itemize) | F98: ='Revenues 9-14'!C91 -> 0
A99: ED | B99: Revenues 9-14, L92, Col C | C99: ='Revenues 9-14'!B92 -> 1890 | D99: ='Revenues 9-14'!A92 -> Other (Describe & Itemize) | F99: ='Revenues 9-14'!C92 -> 0
A100: ED-O&M | B100: Revenues 9-14, L95, Col C,D | C100: ='Revenues 9-14'!B95 -> 1910 | D100: ='Revenues 9-14'!A95 -> Rentals | F100: =SUM('Revenues 9-14'!C95:D95) -> 1388
A101: ED-O&M-TR | B101: Revenues 9-14, L98, Col C,D,F | C101: ='Revenues 9-14'!B98 -> 1940 | D101: ='Revenues 9-14'!A98 -> Services Provided Other Districts | F101: =SUM('Revenues 9-14'!C98,'Revenues 9-14'!D98,'Revenues 9-14'!F98) -> 0
A102: ED-O&M-DS-TR-MR/SS | B102: Revenues 9-14, L104, Col C,D,E,F,G | C102: ='Revenues 9-14'!B104 -> 1991 | D102: ='Revenues 9-14'!A104 -> Payment from Other Districts | F102: =SUM('Revenues 9-14'!C104,'Revenues 9-14'!D104,'Revenues 9-14'!E104,'Revenues 9-14'!F104,'Revenues 9-14'!G104) -> 0
A103: ED | B103: Revenues 9-14, L106, Col C | C103: ='Revenues 9-14'!B106 -> 1993 | D103: ='Revenues 9-14'!A106 -> Other Local Fees | F103: =('Revenues 9-14'!C106) -> 13182
A104: ED-O&M-TR | B104: Revenues 9-14, L131, Col C,D,F | C104: 3100 | D104: ='Revenues 9-14'!A131 -> Total Special Education | F104: =SUM('Revenues 9-14'!C131:D131,'Revenues 9-14'!F131) -> 129003
A105: ED-O&M-MR/SS | B105: Revenues 9-14, L133, Col C,D,G | C105: 3200 | D105: ='Revenues 9-14'!A140 -> Total Career and Technical Education | F105: =SUM('Revenues 9-14'!C140,'Revenues 9-14'!D140,'Revenues 9-14'!G140) -> 0
A106: ED-MR/SS | B106: Revenues 9-14, L144, Col C,G | C106: 3300 | D106: ='Revenues 9-14'!A144 -> Total Bilingual Ed | F106: =SUM('Revenues 9-14'!C144,'Revenues 9-14'!G144) -> 0
A107: ED | B107: Revenues 9-14, L145, Col C | C107: ='Revenues 9-14'!B145 -> 3360 | D107: ='Revenues 9-14'!A145 -> State Free Lunch & Breakfast | F107: ='Revenues 9-14'!C145 -> 3141
A108: ED-O&M-MR/SS | B108: Revenues 9-14, L146, Col C,D,G | C108: ='Revenues 9-14'!B146 -> 3365 | D108: ='Revenues 9-14'!A146 -> School Breakfast Initiative | F108: =SUM('Revenues 9-14'!C146,'Revenues 9-14'!D146,'Revenues 9-14'!G146) -> 56
A109: ED-O&M | B109: Revenues 9-14, L147,Col C,D | C109: ='Revenues 9-14'!B147 -> 3370 | D109: ='Revenues 9-14'!A147 -> Driver Education | F109: =SUM('Revenues 9-14'!C147,'Revenues 9-14'!D147) -> 6584
A110: ED-O&M-TR-MR/SS | B110: Revenues 9-14, L154, Col C,D,F,G | C110: 3500 | D110: ='Revenues 9-14'!A154 -> Total Transportation | F110: =SUM('Revenues 9-14'!C154,'Revenues 9-14'!D154,'Revenues 9-14'!F154,'Revenues 9-14'!G154) -> 66098
A111: ED | B111: Revenues 9-14, L155, Col C | C111: ='Revenues 9-14'!B155 -> 3610 | D111: ='Revenues 9-14'!A155 -> Learning Improvement - Change Grants | F111: ='Revenues 9-14'!C155 -> 0
A112: ED-O&M-TR-MR/SS | B112: Revenues 9-14, L156, Col C,D,F,G | C112: ='Revenues 9-14'!B156 -> 3660 | D112: ='Revenues 9-14'!A156 -> Scientific Literacy | F112: =SUM('Revenues 9-14'!C156,'Revenues 9-14'!D156,'Revenues 9-14'!F156,'Revenues 9-14'!G156) -> 0
A113: ED-TR-MR/SS | B113: Revenues 9-14, L157, Col C,F,G | C113: ='Revenues 9-14'!B157 -> 3695 | D113: ='Revenues 9-14'!A157 -> Truant Alternative/Optional Education | F113: =SUM('Revenues 9-14'!C157,'Revenues 9-14'!F157,'Revenues 9-14'!G157) -> 0
A114: ED-TR-MR/SS | B114: Revenues 9-14, L159, Col C,F,G | C114: ='Revenues 9-14'!B159 -> 3715 | D114: ='Revenues 9-14'!A159 -> Reading Improvement Block Grant | F114: =SUM('Revenues 9-14'!C159,'Revenues 9-14'!F159,'Revenues 9-14'!G159) -> 8268
A115: ED-TR-MR/SS | B115: Revenues 9-14, L160, Col C,F,G | C115: ='Revenues 9-14'!B160 -> 3720 | D115: ='Revenues 9-14'!A160 -> Reading Improvement Block Grant - Reading Recovery | F115: =SUM('Revenues 9-14'!C160,'Revenues 9-14'!F160,'Revenues 9-14'!G160) -> 0
A116: ED-TR-MR/SS | B116: Revenues 9-14, L161, Col C,F,G | C116: ='Revenues 9-14'!B161 -> 3725 | D116: ='Revenues 9-14'!A161 -> Continued Reading Improvement Block Grant | F116: =SUM('Revenues 9-14'!C161,'Revenues 9-14'!F161,'Revenues 9-14'!G161) -> 0
A117: ED-TR-MR/SS | B117: Revenues 9-14, L162, Col C,F,G | C117: ='Revenues 9-14'!B162 -> 3726 | D117: ='Revenues 9-14'!A162 -> Continued Reading Improvement Block Grant (2% Set Aside) | F117: =SUM('Revenues 9-14'!C162,'Revenues 9-14'!F162,'Revenues 9-14'!G162) -> 0
A118: ED-O&M-TR-MR/SS | B118: Revenues 9-14, L163, Col C,D,F,G | C118: ='Revenues 9-14'!B163 -> 3766 | D118: ='Revenues 9-14'!A163 -> Chicago General Education Block Grant | F118: =SUM('Revenues 9-14'!C163,'Revenues 9-14'!D163,'Revenues 9-14'!F163,'Revenues 9-14'!G163) -> 0
A119: ED-O&M-TR-MR/SS | B119: Revenues 9-14, L164, Col C,D,F,G | C119: ='Revenues 9-14'!B164 -> 3767 | D119: ='Revenues 9-14'!A164 -> Chicago Educational Services Block Grant | F119: =SUM('Revenues 9-14'!C164,'Revenues 9-14'!D164,'Revenues 9-14'!F164,'Revenues 9-14'!G164) -> 0
A120: ED-O&M-DS-TR-MR/SS | B120: Revenues 9-14, L165, Col C,D,E,F,G | C120: ='Revenues 9-14'!B165 -> 3775 | D120: ='Revenues 9-14'!A165 -> School Safety & Educational Improvement Block Grant | F120: =SUM('Revenues 9-14'!C165,'Revenues 9-14'!D165,'Revenues 9-14'!E165,'Revenues 9-14'!F165,'Revenues 9-14'!G165) -> 2746
A121: ED-O&M-DS-TR-MR/SS | B121: Revenues 9-14, L166, Col C,D,E,F,G | C121: ='Revenues 9-14'!B166 -> 3780 | D121: ='Revenues 9-14'!A166 -> Technology - Learning Technology Centers | F121: =SUM('Revenues 9-14'!C166:G166) -> 0
A122: ED-TR | B122: Revenues 9-14, L167, Col C,F | C122: ='Revenues 9-14'!B167 -> 3815 | D122: ='Revenues 9-14'!A167 -> State Charter Schools | F122: =SUM('Revenues 9-14'!C167,'Revenues 9-14'!F167) -> 0
A123: O&M | B123: Revenues 9-14, L170, Col D | C123: ='Revenues 9-14'!B170 -> 3925 | D123: ='Revenues 9-14'!A170 -> School Infrastructure - Maintenance Projects | F123: ='Revenues 9-14'!D170 -> 0
A124: ED-O&M-DS-TR-MR/SS-Tort | B124: Revenues 9-14, L171, Col C-G,J | C124: ='Revenues 9-14'!B171 -> 3999 | D124: Other Restricted Revenue from State Sources | F124: =SUM('Revenues 9-14'!C171:G171,'Revenues 9-14'!J171) -> 0
A125: ED | B125: Revenues 9-14, L180, Col C | C125: ='Revenues 9-14'!B180 -> 4045 | D125: ='Revenues 9-14'!A180 & " (Subtract)" -> Head Start (Subtract) | F125: =SUM(-'Revenues 9-14'!C180) -> 0
A126: ED-O&M-TR-MR/SS | B126: Revenues 9-14, L184, Col C,D,F,G | C126: - | D126: =('Revenues 9-14'!A184) -> Total Restricted Grants-In-Aid Received Directly from Federal Govt | F126: =SUM('Revenues 9-14'!C184,'Revenues 9-14'!D184,'Revenues 9-14'!F184,'Revenues 9-14'!G184) -> 0
A127: ED-O&M-TR-MR/SS | B127: Revenues 9-14, L191, Col C,D,F,G | C127: - | D127: ='Revenues 9-14'!A191 -> Total Title V | F127: =SUM('Revenues 9-14'!C191,'Revenues 9-14'!D191,'Revenues 9-14'!F191,'Revenues 9-14'!G191) -> 0
A128: ED-MR/SS | B128: Revenues 9-14, L201, Col C,G | C128: - | D128: ='Revenues 9-14'!A201 -> Total Food Service | F128: =SUM('Revenues 9-14'!C201,'Revenues 9-14'!G201) -> 71430
A129: ED-O&M-TR-MR/SS | B129: Revenues 9-14, L211, Col C,D,F,G | C129: - | D129: ='Revenues 9-14'!A211 -> Total Title I | F129: =SUM('Revenues 9-14'!C211,'Revenues 9-14'!D211,'Revenues 9-14'!F211,'Revenues 9-14'!G211) -> 52555
A130: ED-O&M-TR-MR/SS | B130: Revenues 9-14, L216, Col C,D,F,G | C130: - | D130: ='Revenues 9-14'!A216 -> Total Title IV | F130: =SUM('Revenues 9-14'!C216,'Revenues 9-14'!D216,'Revenues 9-14'!F216,'Revenues 9-14'!G216) -> 1383
A131: ED-O&M-TR-MR/SS | B131: Revenues 9-14, L220, Col C,D,F,G | C131: ='Revenues 9-14'!B220 -> 4620 | D131: ='Revenues 9-14'!A220 -> Fed - Spec Education - IDEA - Flow Through/Low Incidence | F131: =SUM('Revenues 9-14'!C220:D220,'Revenues 9-14'!F220:G220) -> 0
A132: ED-O&M-TR-MR/SS | B132: Revenues 9-14, L221, Col C,D,F,G | C132: ='Revenues 9-14'!B221 -> 4625 | D132: ='Revenues 9-14'!A221 -> Fed - Spec Education - IDEA - Room & Board | F132: =SUM('Revenues 9-14'!C221,'Revenues 9-14'!D221,'Revenues 9-14'!F221,'Revenues 9-14'!G221) -> 1841
A133: ED-O&M-TR-MR/SS | B133: Revenues 9-14, L222, Col C,D,F,G | C133: ='Revenues 9-14'!B222 -> 4630 | D133: ='Revenues 9-14'!A222 -> Fed - Spec Education - IDEA - Discretionary | F133: =SUM('Revenues 9-14'!C222:D222,'Revenues 9-14'!F222:G222) -> 0 | G133: 6297
A134: ED-O&M-TR-MR/SS | B134: Revenues 9-14, L223, Col C,D,F,G | C134: ='Revenues 9-14'!B223 -> 4699 | D134: ='Revenues 9-14'!A223 -> Fed - Spec Education - IDEA - Other (Describe & Itemize) | F134: =SUM('Revenues 9-14'!C223:D223,'Revenues 9-14'!F223:G223) -> 0
A135: ED-O&M-MR/SS | B135: Revenues 9-14, L228, Col C,D,G | C135: 4700 | D135: ='Revenues 9-14'!A228 -> Total CTE - Perkins | F135: =SUM('Revenues 9-14'!C228,'Revenues 9-14'!D228,'Revenues 9-14'!G228) -> 0 | G135: 6303
A136: ED-O&M-TR-MR/SS-Tort | B136: Revenue-L230, Col C,D,F,G | C136: 4851 | D136: ='Revenues 9-14'!A231 -> ARRA - Title I - Low Income | F136: =SUM('Revenues 9-14'!$C$231:$D$231,'Revenues 9-14'!$F$231:$G$231) -> 25171
A137: ED-O&M-TR-MR/SS-Tort | B137: Revenue-L231, Col C,D,E,F,G,J | C137: 4852 | D137: ='Revenues 9-14'!A232 -> ARRA - Title I - Neglected, Private | F137: =SUM('Revenues 9-14'!C232:G232,'Revenues 9-14'!J232) -> 0
A138: ED-O&M-TR-MR/SS-Tort | B138: Revenue L232, Col C,D,E,F,G,J | C138: 4853 | D138: ='Revenues 9-14'!A233 -> ARRA - Title I - Delinquent, Private | F138: =SUM('Revenues 9-14'!C233:G233,'Revenues 9-14'!J233) -> 0
A139: ED-O&M-TR-MR/SS-Tort | B139: Revenue L233, Col C,D,E,F,G,J | C139: 4854 | D139: ='Revenues 9-14'!A234 -> ARRA - Title I - School Improvement (Part A) | F139: =SUM('Revenues 9-14'!C234:G234,'Revenues 9-14'!J234) -> 0
A140: ED-O&M-TR-MR/SS-Tort | B140: Revenue L234, Col C,D,E,F,G,J | C140: 4855 | D140: ='Revenues 9-14'!A235 -> ARRA - Title I - School Improvement (Section 1003g) | F140: =SUM('Revenues 9-14'!C235:G235,'Revenues 9-14'!J235) -> 0
A141: ED-O&M-TR-MR/SS-Tort | B141: Revenue L235, Col C,D,E,F,G,J | C141: 4856 | D141: ='Revenues 9-14'!A236 -> ARRA - IDEA - Part B - Preschool | F141: =SUM('Revenues 9-14'!C236:G236,'Revenues 9-14'!J236) -> 0
A142: ED-O&M-TR-MR/SS-Tort | B142: Revenue L236, Col C,D,E,F,G,J | C142: 4857 | D142: ='Revenues 9-14'!A237 -> ARRA - IDEA - Part B - Flow-Through | F142: =SUM('Revenues 9-14'!C237:G237,'Revenues 9-14'!J237) -> 0
A143: ED-O&M-TR-MR/SS-Tort | B143: Revenue L237, Col C,D,E,F,G,J | C143: 4860 | D143: ='Revenues 9-14'!A238 -> ARRA - Title IID - Technology-Formula | F143: =SUM('Revenues 9-14'!C238:G238,'Revenues 9-14'!J238) -> 0
A144: ED-O&M-TR-MR/SS-Tort | B144: Revenue L238, Col C,D,E,F,G,J | C144: 4861 | D144: ='Revenues 9-14'!A239 -> ARRA - Title IID - Technology-Competitive | F144: =SUM('Revenues 9-14'!C239:G239,'Revenues 9-14'!J239) -> 0
A145: ED-O&M-TR-MR/SS | B145: Revenue L239, Col C, D,F,G | C145: 4862 | D145: ='Revenues 9-14'!A240 -> ARRA - McKinney - Vento Homeless Education | F145: =SUM('Revenues 9-14'!C240:G240,'Revenues 9-14'!J240) -> 0
A146: ED-O&M-TR-MR/SS-Tort | B146: Revenue L243, Col C,D,E,F,G,J | C146: 4866 | D146: ='Revenues 9-14'!A244 -> Qualified Zone Academy Bond Tax Credits | F146: =SUM('Revenues 9-14'!C244:G244,'Revenues 9-14'!J244) -> 0
A147: ED-O&M-TR-MR/SS-Tort | B147: Revenue L244, Col C,D,E,F,G,J | C147: 4867 | D147: ='Revenues 9-14'!A245 -> Qualified School Construction Bond Credits | F147: =SUM('Revenues 9-14'!C245:G245,'Revenues 9-14'!J245) -> 0
A148: ED-O&M-TR-MR/SS-Tort | B148: Revenue L245, Col C,D,E,F,G,J | C148: 4868 | D148: ='Revenues 9-14'!A246 -> Build America Bond Tax Credits | F148: =SUM('Revenues 9-14'!C246:G246,'Revenues 9-14'!J246) -> 0
A149: ED-O&M-TR-MR/SS-Tort | B149: Revenue L246, Col C,D,E,F,G,J | C149: 4869 | D149: ='Revenues 9-14'!A247 -> Build America Bond Interest Reimbursement | F149: =SUM('Revenues 9-14'!C247:G247,'Revenues 9-14'!J247) -> 0
A150: ED-O&M-TR-MR/SS-Tort | B150: Revenue L248, Col C,D,E,F,G,J | C150: 4871 | D150: ='Revenues 9-14'!A249 -> Other ARRA Funds - II | F150: =SUM('Revenues 9-14'!C249:G249,'Revenues 9-14'!J249) -> 0
A151: ED-O&M-TR-MR/SS-Tort | B151: Revenue L249, Col C,D,E,F,G,J | C151: 4872 | D151: ='Revenues 9-14'!A250 -> Other ARRA Funds - III | F151: =SUM('Revenues 9-14'!C250:G250,'Revenues 9-14'!J250) -> 0
A152: ED-O&M-TR-MR/SS-Tort | B152: Revenue L250, Col C,D,E,F,G,J | C152: 4873 | D152: ='Revenues 9-14'!A251 -> Other ARRA Funds - IV | F152: =SUM('Revenues 9-14'!C251:G251,'Revenues 9-14'!J251) -> 0
A153: ED-O&M-TR-MR/SS-Tort | B153: Revenue L251, Col C,D,E,F,G,J | C153: 4874 | D153: ='Revenues 9-14'!A252 -> Other ARRA Funds - V | F153: =SUM('Revenues 9-14'!C252:G252,'Revenues 9-14'!J252) -> 0
A154: ED-O&M-TR-MR/SS-Tort | B154: Revenue L252, Col C,D,E,F,G,J | C154: 4875 | D154: ='Revenues 9-14'!A253 -> ARRA - Early Childhood | F154: =SUM('Revenues 9-14'!C253:G253,'Revenues 9-14'!J253) -> 0
A155: ED-O&M-TR-MR/SS-Tort | B155: Revenue L253, Col C,D,E,F,G,J | C155: 4876 | D155: ='Revenues 9-14'!A254 -> Other ARRA Funds VII | F155: =SUM('Revenues 9-14'!C254:G254,'Revenues 9-14'!J254) -> 0
A156: ED-O&M-TR-MR/SS-Tort | B156: Revenue L254, Col C,D,E,F,G,J | C156: 4877 | D156: ='Revenues 9-14'!A255 -> Other ARRA Funds VIII | F156: =SUM('Revenues 9-14'!C255:G255,'Revenues 9-14'!J255) -> 0
A157: ED-O&M-TR-MR/SS-Tort | B157: Revenue L255, Col C,D,E,F,G,J | C157: 4878 | D157: ='Revenues 9-14'!A256 -> Other ARRA Funds IX | F157: =SUM('Revenues 9-14'!C256:G256,'Revenues 9-14'!J256) -> 0
A158: ED-O&M-TR-MR/SS-Tort | B158: Revenue L256, Col C,D,E,F,G,J | C158: 4879 | D158: ='Revenues 9-14'!A257 -> Other ARRA Funds X | F158: =SUM('Revenues 9-14'!C257:G257,'Revenues 9-14'!J257) -> 0
A159: ED-O&M-TR-MR/SS-Tort | B159: Revenue L257, Col C,D,E,F,G,J | C159: 4880 | D159: ='Revenues 9-14'!A258 -> Other ARRA Funds XI | F159: =SUM('Revenues 9-14'!C258:G258,'Revenues 9-14'!J258) -> 0
A160: ED-O&M-DS-TR-MR/SS-Tort | B160: Revenue Adjustments within range of C232 thru J259 | C160: 4800 | D160: Total ARRA Program Adjustments | F160: =SUM(F136:F159) -> 25171
A161: ED,O&M,MR/SS | B161: Revenues 9-14, L260, Col C,D,G | C161: ='Revenues 9-14'!B260 -> 4904 | D161: ='Revenues 9-14'!A260 -> Advanced Placement Fee/International Baccalaureate | F161: =SUM('Revenues 9-14'!C260,'Revenues 9-14'!D260,'Revenues 9-14'!G260) -> 0
A162: ED-TR-MR/SS | B162: Revenues 9-14, L261, Col C,F,G | C162: ='Revenues 9-14'!B261 -> 4905 | D162: ='Revenues 9-14'!A261 -> Emergency Immigrant Assistance | F162: =SUM('Revenues 9-14'!C261,'Revenues 9-14'!F261,'Revenues 9-14'!G261) -> 0 | G162: 6306
A163: ED-TR-MR/SS | B163: Revenues 9-14, L262, Col C,F,G | C163: ='Revenues 9-14'!B262 -> 4909 | D163: ='Revenues 9-14'!A262 -> Title III - English Language Acquisition | F163: =SUM('Revenues 9-14'!C262,'Revenues 9-14'!F262,'Revenues 9-14'!G262) -> 0
A164: ED-TR-MR/SS | B164: Revenues 9-14, L263, Col C,F,G | C164: ='Revenues 9-14'!B263 -> 4910 | D164: ='Revenues 9-14'!A263 -> Learn & Serve America | F164: =SUM('Revenues 9-14'!C263,'Revenues 9-14'!F263,'Revenues 9-14'!G263) -> 0
A165: ED-O&M-TR-MR/SS | B165: Revenues 9-14, L264, Col C,D,F,G | C165: ='Revenues 9-14'!B264 -> 4920 | D165: ='Revenues 9-14'!A264 -> McKinney Education for Homeless Children | F165: =SUM('Revenues 9-14'!C264,'Revenues 9-14'!D264,'Revenues 9-14'!F264,'Revenues 9-14'!G264) -> 0
A166: ED-O&M-TR-MR/SS | B166: Revenues 9-14, L265, Col C,D,F,G | C166: ='Revenues 9-14'!B265 -> 4930 | D166: ='Revenues 9-14'!A265 -> Title II - Eisenhower Professional Development Formula | F166: =SUM('Revenues 9-14'!C265:D265,'Revenues 9-14'!F265,'Revenues 9-14'!G265) -> 0
A167: ED-O&M-TR-MR/SS | B167: Revenues 9-14, L266, Col C,D,F,G | C167: ='Revenues 9-14'!B266 -> 4932 | D167: ='Revenues 9-14'!A266 -> Title II - Teacher Quality | F167: =SUM('Revenues 9-14'!C266,'Revenues 9-14'!D266,'Revenues 9-14'!F266,'Revenues 9-14'!G266) -> 21774
A168: ED-O&M-TR-MR/SS | B168: Revenues 9-14, L267, Col C,D,F,G | C168: ='Revenues 9-14'!B267 -> 4960 | D168: ='Revenues 9-14'!A267 -> Federal Charter Schools | F168: =SUM('Revenues 9-14'!C267:D267,'Revenues 9-14'!F267:G267) -> 0
A169: ED-O&M-TR-MR/SS | B169: Revenues 9-14, L268, Col C,D,F,G | C169: ='Revenues 9-14'!B268 -> 4991 | D169: ='Revenues 9-14'!A268 -> Medicaid Matching Funds - Administrative Outreach | F169: =SUM('Revenues 9-14'!C268:D268,'Revenues 9-14'!F268:G268) -> 1128 | G169: 6320
A170: ED-O&M-TR-MR/SS | B170: Revenues 9-14, L269, Col C,D,F,G | C170: ='Revenues 9-14'!B269 -> 4992 | D170: ='Revenues 9-14'!A269 -> Medicaid Matching Funds - Fee-for-Service Program | F170: =SUM('Revenues 9-14'!C269:D269,'Revenues 9-14'!F269:G269) -> 4180
A171: ED-O&M-TR-MR/SS | B171: Revenues 9-14, L270, Col C,D,F,G | C171: ='Revenues 9-14'!B270 -> 4998 | D171: ='Revenues 9-14'!A270 -> Other Restricted Revenue from Federal Sources (Describe & Itemize) | F171: =SUM('Revenues 9-14'!C270:D270,'Revenues 9-14'!F270:G270) -> 447
D173: Total Allowance for PCTC Computation | E173: $ | F173: =SUM(F83:F135,F160:F171) -> 596026
D174: Net Operating Expense for PCTC Computation | F174: ='PCTC-OEPP 28-29'!F76-F173 -> 4191237
D175: Total Depreciation Allowance (from page 27, Col I) | F175: ='Cap Outlay Deprec 27'!I20 -> 360287
D176: Total Allowance for PCTC Computation | F176: =F174+F175 -> 4551524
D177: 9 Mo ADA | F177: ='PCTC-OEPP 28-29'!F77 -> 623.54
D178: Total Estimated PCTC | E178: $ | F178: =F176/F177 -> 7299.490009 | G178: 6323
G179: 6326

Sheet ICR Computation 30
A1: ESTIMATED INDIRECT COST RATE DATA
A2: SECTION I
A3: Financial Data To Assist Indirect Cost Rate Determination PROGRAM YEAR 2012
A4: (Source document for the computation of the Indirect Cost Rate is found in the "Expenditures 15-22" tab.)
A5: ALL OBJECTS EXCLUDE CAPITAL OUTLAY. With the exception of line 12, enter the disbursements/expenditures included within the following functions charged directly to and reimbursed from federal grant programs. Also, include all amounts paid to or for other employees within each function that work with specific federal grant programs in the same capacity as those charged to and reimbursed from the same federal grant programs. For example, if a district received funding for a Title I clerk, all other salaries for Title I clerks performing like duties in that function must be included. Include any benefits and/or purchased services paid on or to persons whose salaries are classified as direct costs in the function listed.
A6: Support Services - Direct Costs (1-2000) and (5-2000)
A7: Direction of Business Support Services (1-2510) and (5-2510)
A8: Fiscal Services (1-2520) and (5-2520)
A9: Operation and Maintenance of Plant Services (1, 2, and 5-2540)
A10: Food Services (1-2560) Must be less than (P16, Col E-F, L62) | E10: 101765
A11: Value of Commodities Received for Fiscal Year 2010 (Include the value of commodities when determining if an A-133 is required). | E11: 15107
A12: Internal Services (1-2570) and (5-2570)
A13: Staff Services (1-2640) and (5-2640)
A14: Data Processing Services (1-2660) and (5-2660)
A15: SECTION II
A16: Estimated Indirect Cost Rate for Federal Program Year 2012 (Data subject to adjustment for "carry-forward" or "termination benefit" totals)
D17: Restricted Program | F17: Unrestricted Program
C18: Function | D18: Indirect Costs | E18: Direct Costs | F18: Indirect Costs | G18: Direct Costs
A19: Instruction | C19: 1000 | E19: ='Expenditures 15-22'!K32-SUM('Expenditures 15-22'!G32,'Expenditures 15-22'!I32)+'Expenditures 15-22'!D222 -> 2806967 | G19: ='Expenditures 15-22'!K32-SUM('Expenditures 15-22'!G32,'Expenditures 15-22'!I32)+'Expenditures 15-22'!D222 -> 2806967
A20: Support Services:
A21: Pupil | C21: 2100 | E21: ='Expenditures 15-22'!K41-SUM('Expenditures 15-22'!G41,'Expenditures 15-22'!I41)+'Expenditures 15-22'!K119-SUM('Expenditures 15-22'!G119,'Expenditures 15-22'!I119)+'Expenditures 15-22'!K173-SUM('Expenditures 15-22'!G173,'Expenditures 15-22'!I173)+'Expenditures 15-22'!D231 -> 64544 | G21: ='Expenditures 15-22'!K41-SUM('Expenditures 15-22'!G41,'Expenditures 15-22'!I41)+'Expenditures 15-22'!K119-SUM('Expenditures 15-22'!G119,'Expenditures 15-22'!I119)+'Expenditures 15-22'!K173-SUM('Expenditures 15-22'!G173,'Expenditures 15-22'!I173)+'Expenditures 15-22'!D231 -> 64544
A22: Instructional Staff | C22: 2200 | E22: ='Expenditures 15-22'!K46-SUM('Expenditures 15-22'!G46,'Expenditures 15-22'!I46)+'Expenditures 15-22'!D236 -> 120500 | G22: ='Expenditures 15-22'!K46-SUM('Expenditures 15-22'!G46,'Expenditures 15-22'!I46)+'Expenditures 15-22'!D236 -> 120500
A23: General Admin. | C23: 2300 | E23: ='Expenditures 15-22'!K52-SUM('Expenditures 15-22'!G52,'Expenditures 15-22'!I52)+'Expenditures 15-22'!D250+'Expenditures 15-22'!K322-SUM('Expenditures 15-22'!G322,'Expenditures 15-22'!I322) -> 696123 | G23: ='Expenditures 15-22'!K52-SUM('Expenditures 15-22'!G52,'Expenditures 15-22'!I52)+'Expenditures 15-22'!D250+'Expenditures 15-22'!K322-SUM('Expenditures 15-22'!G322,'Expenditures 15-22'!I322) -> 696123
A24: School Admin | C24: 2400 | E24: ='Expenditures 15-22'!K56-SUM('Expenditures 15-22'!G56,'Expenditures 15-22'!I56)+'Expenditures 15-22'!D254 -> 305463 | G24: ='Expenditures 15-22'!K56-SUM('Expenditures 15-22'!G56,'Expenditures 15-22'!I56)+'Expenditures 15-22'!D254 -> 305463
A25: Business:
A26: Direction of Business Spt. Srv. | C26: 2510 | D26: ='Expenditures 15-22'!K58-SUM('Expenditures 15-22'!G58,'Expenditures 15-22'!I58)+'Expenditures 15-22'!D256-E7 -> 0 | E26: ='Expenditures 15-22'!K121-SUM('Expenditures 15-22'!G121,'Expenditures 15-22'!I121)+E7 -> 0 | F26: ='Expenditures 15-22'!K58-SUM('Expenditures 15-22'!G58,'Expenditures 15-22'!I58)+'Expenditures 15-22'!D256-E7 -> 0 | G26: ='Expenditures 15-22'!K121-SUM('Expenditures 15-22'!G121,'Expenditures 15-22'!I121)+E7 -> 0
A27: Fiscal Services | C27: 2520 | D27: ='Expenditures 15-22'!K59-SUM('Expenditures 15-22'!G59,'Expenditures 15-22'!I59)+'Expenditures 15-22'!D257-E8 -> 80080 | E27: =E8 -> 0 | F27: ='Expenditures 15-22'!K59-SUM('Expenditures 15-22'!G59,'Expenditures 15-22'!I59)+'Expenditures 15-22'!D257-E8 -> 80080 | G27: =E8 -> 0
A28: Oper. & Maint. Plant Services | C28: 2540 | E28: ='Expenditures 15-22'!K60-SUM('Expenditures 15-22'!G60,'Expenditures 15-22'!I60)+'Expenditures 15-22'!K123-SUM('Expenditures 15-22'!G123,'Expenditures 15-22'!I123)+'Expenditures 15-22'!D259 -> 455269 | F28: ='Expenditures 15-22'!K60-SUM('Expenditures 15-22'!G60,'Expenditures 15-22'!I60)+'Expenditures 15-22'!K123-SUM('Expenditures 15-22'!G123,'Expenditures 15-22'!I123)+'Expenditures 15-22'!D259-E9 -> 455269 | G28: =E9 -> 0
A29: Pupil Transportation | C29: 2550 | E29: ='Expenditures 15-22'!K61-SUM('Expenditures 15-22'!G61,'Expenditures 15-22'!I61)+'Expenditures 15-22'!K124-SUM('Expenditures 15-22'!G124,'Expenditures 15-22'!I124)+'Expenditures 15-22'!K175-SUM('Expenditures 15-22'!G175,'Expenditures 15-22'!I175)+'Expenditures 15-22'!D260 -> 196494 | G29: ='Expenditures 15-22'!K61-SUM('Expenditures 15-22'!G61,'Expenditures 15-22'!I61)+'Expenditures 15-22'!K124-SUM('Expenditures 15-22'!G124,'Expenditures 15-22'!I124)+'Expenditures 15-22'!K175-SUM('Expenditures 15-22'!G175,'Expenditures 15-22'!I175)+'Expenditures 15-22'!D260 -> 196494
A30: Food Services | C30: 2560 | E30: ='Expenditures 15-22'!K62-SUM('Expenditures 15-22'!G62,'Expenditures 15-22'!I62)+'Expenditures 15-22'!D261-E10 -> 86730 | G30: ='Expenditures 15-22'!K62-SUM('Expenditures 15-22'!G62,'Expenditures 15-22'!I62)+'Expenditures 15-22'!D261-E10 -> 86730
A31: Internal Services | C31: 2570 | D31: ='Expenditures 15-22'!K63-SUM('Expenditures 15-22'!G63,'Expenditures 15-22'!I63)+'Expenditures 15-22'!D262-E12 -> 33202 | E31: =E12 -> 0 | F31: ='Expenditures 15-22'!K63-SUM('Expenditures 15-22'!G63,'Expenditures 15-22'!I63)+'Expenditures 15-22'!D262-E12 -> 33202 | G31: =E12 -> 0
A32: Central:
A33: Direction of Central Spt. Srv. | C33: 2610 | E33: ='Expenditures 15-22'!K66-SUM('Expenditures 15-22'!G66,'Expenditures 15-22'!I66)+'Expenditures 15-22'!D265 -> 0 | G33: ='Expenditures 15-22'!K66-SUM('Expenditures 15-22'!G66,'Expenditures 15-22'!I66)+'Expenditures 15-22'!D265 -> 0
A34: Plan, Rsrch, Dvlp, Eval. Srv. | C34: 2620 | E34: ='Expenditures 15-22'!K67-SUM('Expenditures 15-22'!G67,'Expenditures 15-22'!I67)+'Expenditures 15-22'!D266 -> 0 | G34: ='Expenditures 15-22'!K67-SUM('Expenditures 15-22'!G67,'Expenditures 15-22'!I67)+'Expenditures 15-22'!D266 -> 0
A35: Information Services | C35: 2630 | E35: ='Expenditures 15-22'!K68-SUM('Expenditures 15-22'!G68,'Expenditures 15-22'!I68)+'Expenditures 15-22'!D267 -> 5578 | G35: ='Expenditures 15-22'!K68-SUM('Expenditures 15-22'!G68,'Expenditures 15-22'!I68)+'Expenditures 15-22'!D267 -> 5578
A36: Staff Services | C36: 2640 | D36: ='Expenditures 15-22'!K69-SUM('Expenditures 15-22'!G69,'Expenditures 15-22'!I69)+'Expenditures 15-22'!D268-E13 -> 0 | E36: =E13 -> 0 | F36: ='Expenditures 15-22'!K69-SUM('Expenditures 15-22'!G69,'Expenditures 15-22'!I69)+'Expenditures 15-22'!D268-E13 -> 0 | G36: =E13 -> 0
A37: Data Processing Services | C37: 2660 | D37: ='Expenditures 15-22'!K70-SUM('Expenditures 15-22'!G70,'Expenditures 15-22'!I70)+'Expenditures 15-22'!D269-E14 -> 0 | E37: =E14 -> 0 | F37: ='Expenditures 15-22'!K70-SUM('Expenditures 15-22'!G70,'Expenditures 15-22'!I70)+'Expenditures 15-22'!D269-E14 -> 0 | G37: =E14 -> 0
A38: Other: | C38: 2900 | E38: ='Expenditures 15-22'!K72-SUM('Expenditures 15-22'!G72,'Expenditures 15-22'!I72)+'Expenditures 15-22'!K127-SUM('Expenditures 15-22'!G127,'Expenditures 15-22'!I127)+'Expenditures 15-22'!K176-SUM('Expenditures 15-22'!G176,'Expenditures 15-22'!I176)+'Expenditures 15-22'!D271 -> 0 | G38: ='Expenditures 15-22'!K72-SUM('Expenditures 15-22'!G72,'Expenditures 15-22'!I72)+'Expenditures 15-22'!K127-SUM('Expenditures 15-22'!G127,'Expenditures 15-22'!I127)+'Expenditures 15-22'!K176-SUM('Expenditures 15-22'!G176,'Expenditures 15-22'!I176)+'Expenditures 15-22'!D271 -> 0
A39: Community Services | C39: 3000 | E39: ='Expenditures 15-22'!K74-SUM('Expenditures 15-22'!G74,'Expenditures 15-22'!I74)+'Expenditures 15-22'!K129-SUM('Expenditures 15-22'!G129,'Expenditures 15-22'!I129)+'Expenditures 15-22'!K178-SUM('Expenditures 15-22'!G178,'Expenditures 15-22'!I179)+'Expenditures 15-22'!D273 -> 0 | G39: ='Expenditures 15-22'!K74-SUM('Expenditures 15-22'!G74,'Expenditures 15-22'!I74)+'Expenditures 15-22'!K129-SUM('Expenditures 15-22'!G129,'Expenditures 15-22'!I129)+'Expenditures 15-22'!K178-SUM('Expenditures 15-22'!G178,'Expenditures 15-22'!I178)+'Expenditures 15-22'!D273 -> 0
A40: Total | D40: =SUM(D19:D39) -> 113282 | E40: =SUM(E19:E39) -> 4737668 | F40: =SUM(F19:F39) -> 568551 | G40: =SUM(G19:G39) -> 4282399
D41: Restricted Rate | F41: Unrestricted Rate
D42: Total Indirect Costs: | E42: =D40 -> 113282 | F42: Total Indirect costs: | G42: =F40 -> 568551
D43: Total Direct Costs: | E43: =E40 -> 4737668 | F43: Total Direct Costs: | G43: =G40 -> 4282399
D44: = | E44: =(E42/E43) -> 0.02391091989 | F44: = | G44: =(G42/G43) -> 0.1327646023

Sheet AC31
F1: ILLINOIS STATE BOARD OF EDUCATION
F2: School Business Services Division (N-330)
F3: 100 North First Street
F4: Springfield, IL 62777-0001
A6: LIMITATION OF ADMINISTRATIVE COSTS WORKSHEET | H6: School District Name: | I6: =COVER!A17 -> Pawnee CUSD #11
A7: (Section 17-1.5 of the School Code) | H7: RCDT Number: | I7: =COVER!A13 -> 51-084-0110-26
E9: Actual Expenditures, Fiscal Year 2010 | H9: Budgeted Expenditures, Fiscal Year 2011
E10: (10) | F10: (20) | H10: (10) | I10: (20)
A11: Description | D11: Funct. No. | E11: Educational Fund | F11: Operations & Maintenance Fund | G11: Total | H11: Educational Fund | I11: Operations & Maintenance Fund | J11: Total
A12: 1 | B12: Executive Administration Services | D12: 2320 | E12: ='Expenditures 15-22'!K49 -> 158521 | G12: =SUM(E12:F12) -> 158521 | H12: 143095 | J12: =SUM(H12:I12) -> 143095
A13: 2 | B13: Special Area Administration Services | D13: 2330 | E13: ='Expenditures 15-22'!K50 -> 0 | G13: 0 | J13: 0
A14: 3 | B14: Other Support Services - School Administration | D14: 2490 | E14: ='Expenditures 15-22'!K55 -> 0 | G14: 0 | J14: 0
A15: 4 | B15: Direction of Business Support Services | D15: 2510 | E15: ='Expenditures 15-22'!K58 -> 0 | F15: ='Expenditures 15-22'!K121 -> 0 | G15: 0 | J15: 0
A16: 5 | B16: Internal Services | D16: 2570 | E16: ='Expenditures 15-22'!K63 -> 33202 | G16: 33202 | H16: 33350 | J16: 33350
A17: 6 | B17: Direction of Central Support Services | D17: 2610 | E17: ='Expenditures 15-22'!K66 -> 0 | G17: 0 | J17: 0
A18: 7 | B18: Deduct - Early Retirement or other pension obligations required by state law and included above. | G18: 0 | J18: 0
A19: 8 | B19: Totals | E19: =SUM(E12:E17)-E18 -> 191723 | F19: 0 | G19: 191723 | H19: 176445 | I19: 0 | J19: 176445
A20: 9 | B20: Percent Increase (Decrease) for FY2011 (Budgeted) over FY2010 (Actual) | J20: =IF(AND(G19>0,J19>0),(((J19-G19)/G19)),"Enter Budget Data") -> -0.07968788304
A22: CERTIFICATION
A23: I certify that the amounts shown above as "Actual Expenditures, Fiscal Year 2010" agree with the amounts on the district's Annual Financial Report for Fiscal Year 2010.
A24: I also certify that the amounts shown above as "Budgeted Expenditures, Fiscal Year 2011" agree with the amounts on the budget adopted by the Board of Education.
C27: (Date) | E27: Signature of Superintendent
B29: If line 9 is greater than 5% please check one box below.
C31: The District is ranked by ISBE in the lowest 25th percentile of like districts in administrative expenditures per student (4th quartile) and will waive the limitation by board action, subsequent to a public hearing. Waiver resolution must be adopted no later than June 30.
C34: The district is unable to waive the limitation by board action and will be requesting a waiver from the General Assembly pursuant to the procedures in Chapter 115 ILCS 5/2-3.25g. Waiver applications must be postmarked by August 13, 2010 to ensure inclusion in the October 1, 2010 report, postmarked by January 7, 2011 to ensure inclusion in the March 1, 2011 report, or postmarked by August 12, 2011 to ensure inclusion in the October 1, 2011 report. Information on the waiver process can be found at www.isbe.net/isbewaivers/default.htm.
C37: The district will amend their budget to become in compliance with the limitation. Budget amendments must be adopted no later than June 30.

Sheet Itemization 32
A2: This page is provided for detailed itemizations as requested within the body of the report.
A3: Type Below.
A5: 1 | B5: Education Fund - Revenue Acct 1614 - Soda machine rebates
A6: 2 | B6: Education Fund - Revenue Acct 1790 - Uniform and lock sales
A7: 3 | B7: Education Fund - Revenue Acct 1999 - Misc immaterial refunds and reimbursements
A8: 4 | B8: Oper & Maint Fund - Revenue Acct 1999 - Insurance Proceeds $20,813, Misc immaterial refunds & reimbursements $540.
A9: 5 | B9: Education Fund - Revenue 4998 - Tech-Enhanching Education Formula - ISBE Source 4971
A10: 6 | B10: Education Fund - Expenditure Function 4190 - Princ and interest payments on ISBE STRLP Loan
A11: 7 | B11: Debt Service Fund - Expenditure Function 5400 - Bank charges on bond payments
A13: 8 | B13: Auditcheck Error #8 - The District has long-term debt other than bonds. Bus capital leases are paid out of the Transportaion Fund
B14: and the ISBE STRLP Tech Loan is paid out of the Education Fund.
A15: 9
A16: 10
A17: 11
A18: 12
A19: 13
A20: 14
A21: 15
B64: =COVER!A17 -> Pawnee CUSD #11
B65: =COVER!A13 -> 51-084-0110-26

Sheet REF 33
A1: Reference Pages.
B3: 1 | C3: Do not enter negative numbers. Reports with negative numbers will be returned for correction.
B4: 2 | C4: GASB Statement No. 24; Accounting and Financial Reporting for Certain Grants and Other Financial Assistance. The "On Behalf of" Payments should only be reflected on this page.
B5: 3 | C5: Equals Line 8 minus Line 17
B6: 4 | C6: Requires notification to the county clerk to abate an equal amount from taxes next extended.
B7: 5 | C7: Use of proceeds from the sale of school sites buildings, or other real estate is limited. See Sections 2-3.12 and 17-2.11 of the School Code.
B8: 6 | C8: Equals Line 43 minus Line 60.
B9: 7 | C9: Include revenue accounts 1110 through 1115, 1117, 1118 & 1120. Include taxes for bonds sold that are in addition to those identified separately.
B10: 8 | C10: Educational Fund (10) - Computer Technology only.
B11: 9 | C11: Corporate personal property replacement tax revenue must be first applied to the Municipal Retirement/Social Security Fund to replace tax revenue lost due to the abolition of the corporate personal property tax (30 ILCS 115/12). This provision does not apply to taxes levied for Medicare-Only purposes.
B12: 10 | C12: Include only tuition payments made to private facilities. See Function 4200 or 4400 for public facility disbursements/expenditures.
B13: 11 | C13: Payment towards the retirement of lease/purchase agreements or bonded/other indebtedness (principal only) otherwise reported within the fund―e.g. alternate revenue bonds( Describe & Itemize).

Sheet Opinion-Notes 34
A15: Instructions to insert word doc or pdf files:
A16: Choose: Insert - Select: Object - Select Create New tab - Select file type Adobe Acrobat or Microsoft Word Document - Select Create from File tab - Select Browse - Select file that you want to embed - Check Display as icon - Select OK.
A18: If you have trouble inserting pdf files it is because you do not have
A19: the Adobe program.

Sheet AUDITCHECK
A3: Audit Checklist
A6: All entries must balance within the individual fund statements and schedules as instructed below.
A7: Any error messages left unresolved below, will be returned to the school district/joint agreement.
B8: Round all entries to the nearest dollar.
B9: 1 | C9: The auditor's Opinion and Notes to the Financial Statements are embedded in the "Opinion-Notes 34" tab.
B10: =B9+1 -> 2 | C10: Student Activity Funds, Convenience Accounts, and other agency funds are included, if applicable.
B11: 3 | C11: All audit questions on page 2 are answered appropriatly by checking all that apply. This page must also be certified with the signature of the CPA firm. Comments and explanations are included for all checked items at the bottom of page 2.
B12: 4 | C12: All Other accounts and functions labeled "(describe & itemize) are properly noted on the "Itemization 32" tab.
B13: 5 | C13: In all funds, Function No. 2900 does not include Worker's Compensation or Unemployment Insurance.
B14: 6 | C14: Tuition paid to another school district or to a joint agreement (in state) is coded to Function 4200, and Other Objects (600).
B15: 7 | C15: Business Manager/Bookkeeper Costs are charged to the proper Function (No. 2510/2520).
B16: 8 | C16: If district is subject to PTELL on tab "Aud Quest 2", line 21 be sure to check the box and enter the effective date.
A18: Balancing Schedule
A19: Check this Section for Error Messages
A20: The following assures that various entries are in balance. Any out of balance condition is followed by an error message in RED and must be resolved before submitting
A21: to ISBE. One or more errors detected may cause this AFR to be returned for corrections and resubmission. If impossible for entries to balance please explain on the
A22: itemization page.
C24: Description: | D24: Error Message
B25: 1 | C25: Cover Page: The Accounting Basis must be Cash or Accrual.
B26: 2 | C26: The A-133 related documents must be completed and attached.
C27: What Basis of Accounting is used? | D27: =IF(COVER!N11="X","CASH",IF(COVER!N12="X","ACCRUAL ","PLEASE CHECK AN ACCOUNTING BASIS.")) -> CASH
C28: Are Federal Expenditures greater than $500,000? | D28: =IF(AND(COVER!I29="X",COVER!I30="X",COVER!K30<>"X"),"OK",IF(AND(COVER!I29="X",COVER!I30<>"X",COVER!K30="X"),"OK",IF(AND(COVER!K29="X",COVER!I30<>"X"),"OK","PLEASE CHECK YES or NO."))) -> OK
C29: Is all A133 information completed and enclosed? | D29: =IF(AND(COVER!I29="X",COVER!I30="X",COVER!K29<>"X"),"OK",IF(AND(COVER!I29="X",COVER!I30<>"X",COVER!K30="X"),"SENDING AN A-133 SEPERATELY!",IF(AND(COVER!K29="X",COVER!I30<>"X"),"OK","PLEASE CHECK YES or NO."))) -> OK
C30: Were any findings issued? | D30: =IF(AND(COVER!I29="X",COVER!I31="X",COVER!K29<>"X"),"OK",IF(AND(COVER!I29="X",COVER!I31<>"X",COVER!K31="X"),"NO FINDINGS WERE ISSUED",IF(AND(COVER!K29="X",COVER!I31<>"X"),"OK","PLEASE CHECK YES or NO."))) -> OK
C31: Page 2: Auditor's Questionnaire, Part C, Question 21: Check box if a tax district and enter date | D31: =IF('Aud Quest 2'!B48="X",IF('Aud Quest 2'!F48>"00/00/00 ","Enter Effective Date","ok")) -> FALSE
B32: =B26+1 -> 3 | C32: Page 3: Financial Information must be completed.
C33: Section A: Tax rates are not entered in the following format: [1.50 should be .0150]. Please enter with the correct decimal point. | D33: =IF(SUM('FP Info 3'!J10:L10)<=0.0999999,"OK","CORRECT THE TAX RATES BY MOVING THE DECIMAL TWO PLACES TO THE LEFT.") -> OK
C34: Section D: Check a or b that agrees with the school district type. | D34: =IF(OR(COVER!B6="x",'FP Info 3'!B31="X",'FP Info 3'!B32="X"),"OK","ENTRY IS REQUIRED!") -> OK
B35: =B32+1 -> 4 | C35: Page 5: Cells C4:L4 Acct 111-115 - Cash Balances cannot be negative.
C36: Fund (10) ED: Cash balances cannot be negative. | D36: =IF('Assets-Liab 5-6'!C4<-0.49, "ERROR!","OK") -> OK
C37: Fund (20) O&M: Cash balances cannot be negative. | D37: =IF('Assets-Liab 5-6'!D4<-0.49, "ERROR!","OK") -> OK
C38: Fund (30) DS: Cash balances cannot be negative. | D38: =IF('Assets-Liab 5-6'!E4<-0.49, "ERROR!","OK") -> OK
C39: Fund (40) TR: Cash balances cannot be negative. | D39: =IF('Assets-Liab 5-6'!F4<-0.49, "ERROR!","OK") -> OK
C40: Fund (50) MR/SS: Cash balances cannot be negative. | D40: =IF('Assets-Liab 5-6'!G4<-0.49, "ERROR!","OK") -> OK
C41: Fund (60) CP: Cash balances cannot be negative. | D41: =IF('Assets-Liab 5-6'!H4<-0.49, "ERROR!","OK") -> OK
C42: Fund (70) WC: Cash balances cannot be negative. | D42: =IF('Assets-Liab 5-6'!I4<-0.49, "ERROR!","OK") -> OK
C43: Fund (80) Tort: Cash balances cannot be negative. | D43: =IF('Assets-Liab 5-6'!J4<-0.49, "ERROR!","OK") -> OK
C44: Fund (90) FP&S: Cash balances cannot be negative. | D44: =IF('Assets-Liab 5-6'!K4<-0.49, "ERROR!","OK") -> OK
B45: =B35+1 -> 5 | C45: Page 5 & 6: Total Current & Capital Assets must = Total Liabilities & Fund Balance.
C46: Fund 10, Cell C13 must = Cell C42. | D46: =IF(SUM('Assets-Liab 5-6'!C13)<>SUM('Assets-Liab 5-6'!C41),"ERROR!","OK") -> OK
C47: Fund 20, Cell D13 must = Cell D42. | D47: =IF(SUM('Assets-Liab 5-6'!D13)<>SUM('Assets-Liab 5-6'!D41),"ERROR!","OK") -> OK
C48: Fund 30, Cell E13 must = Cell E42. | D48: =IF(SUM('Assets-Liab 5-6'!E13)<>SUM('Assets-Liab 5-6'!E41),"ERROR!","OK") -> OK
C49: Fund 40, Cell F13 must = Cell F42. | D49: =IF(SUM('Assets-Liab 5-6'!F13)<>SUM('Assets-Liab 5-6'!F41),"ERROR!","OK") -> OK
C50: Fund 50, Cell G13 must = Cell G42. | D50: =IF(SUM('Assets-Liab 5-6'!G13)<>SUM('Assets-Liab 5-6'!G41),"ERROR!","OK") -> OK
C51: Fund 60, Cell H13 must = Cell H42. | D51: =IF(SUM('Assets-Liab 5-6'!H13)<>SUM('Assets-Liab 5-6'!H41),"ERROR!","OK") -> OK
C52: Fund 70, Cell I13 must = Cell I42. | D52: =IF(SUM('Assets-Liab 5-6'!I13)<>SUM('Assets-Liab 5-6'!I41),"ERROR!","OK") -> OK
C53: Fund 80, Cell J13 must = Cell J42. | D53: =IF(SUM('Assets-Liab 5-6'!J13)<>SUM('Assets-Liab 5-6'!J41),"ERROR!","OK") -> OK
C54: Fund 90, Cell K13 must = Cell K42. | D54: =IF(SUM('Assets-Liab 5-6'!K13)<>SUM('Assets-Liab 5-6'!K41),"ERROR!","OK") -> OK
C55: Agency Fund, Cell L13 must = Cell L42. | D55: =IF(SUM('Assets-Liab 5-6'!L13)<>('Assets-Liab 5-6'!L41),"ERROR!","OK") -> OK
C56: General Fixed Assets, Cell M23 must = Cell M42. | D56: =IF(SUM('Assets-Liab 5-6'!M23)<>('Assets-Liab 5-6'!M41),"ERROR!","OK") -> OK
C57: General Long-Term Debt, Cell N23 must = Cell N42. | D57: =IF(SUM('Assets-Liab 5-6'!N23)<>('Assets-Liab 5-6'!N41),"ERROR!","OK") -> OK
B58: =B45+1 -> 6 | C58: Page 5: Sum of Reserved & Unreserved Fund Balance must = Page 8, Ending Fund Balance.
C59: Fund 10, Cells C38+C39 must = Cell C80. | D59: =IF('Assets-Liab 5-6'!C38+'Assets-Liab 5-6'!C39='Acct Summary 7-8'!C80,"OK","ERROR!") -> OK
C60: Fund 20, Cells D38+D39 must = Cell D80. | D60: =IF((('Assets-Liab 5-6'!D38+'Assets-Liab 5-6'!D39) ='Acct Summary 7-8'!D80), "OK", "ERROR!" ) -> OK
C61: Fund 30, Cells E38+E39 must = Cell E80 | D61: =IF((('Assets-Liab 5-6'!E38 + 'Assets-Liab 5-6'!E39) ='Acct Summary 7-8'!E80), "OK", "ERROR!" ) -> OK
C62: Fund 40, Cells F38+F39 must = Cell F80. | D62: =IF((('Assets-Liab 5-6'!F38 + 'Assets-Liab 5-6'!F39) ='Acct Summary 7-8'!F80), "OK", "ERROR!" ) -> OK
C63: Fund 50, Cells G38+G39 must = Cell F80. | D63: =IF((('Assets-Liab 5-6'!G38 + 'Assets-Liab 5-6'!G39) ='Acct Summary 7-8'!G80), "OK", "ERROR!" ) -> OK
C64: Fund 60, Cells H38+H39 must = Cell H80. | D64: =IF((('Assets-Liab 5-6'!H38 + 'Assets-Liab 5-6'!H39) ='Acct Summary 7-8'!H80), "OK", "ERROR!" ) -> OK
C65: Fund 70, Cells I38+I39 must = Cell I80. | D65: =IF((('Assets-Liab 5-6'!I38 + 'Assets-Liab 5-6'!I39) ='Acct Summary 7-8'!I80), "OK", "ERROR!" ) -> OK
C66: Fund 80, Cells J38+J39 must = Cell J65. | D66: =IF((('Assets-Liab 5-6'!J38 + 'Assets-Liab 5-6'!J39) ='Acct Summary 7-8'!J80), "OK", "ERROR!" ) -> OK
C67: Fund 90, Cells K 38+39 must = Cell K80. | D67: =IF((('Assets-Liab 5-6'!K38 + 'Assets-Liab 5-6'!K39) ='Acct Summary 7-8'!K80), "OK", "ERROR!" ) -> OK
B68: =B58+1+1 -> 8 | C68: Page 25: Schedule of Bonds Payable must = Pages 5, 8 & 18: Basic Financial Statements.
C69: Note: Explain any unreconcilable differences in the Itemization sheet.
C70: Total Long-Term Debt Issued (P25, Cell F49) must = Principal on Long-Term Debt Sold (P8, Cells C32:F32, H32:L32). | D70: =IF('Short-Term Long-Term Debt 25'!F49=SUM(,'Acct Summary 7-8'!C32:K32),"OK","ERROR!") -> OK
C71: Total Long-Term Debt (Principal) Retired (P18, Cells H163) must = Debt Service - Long-Term Debt (Principal) Retired (P25, Cells H49). | D71: =IF('Expenditures 15-22'!H163<>'Short-Term Long-Term Debt 25'!H49,"ERROR!","OK") -> ERROR!
B72: =B68+1 -> 9 | C72: Page 7 & 8: Other Sources of Funds (L 24:42) must = Other Uses of Funds (P8, L46:59).
C73: Acct 7130 - Transfer Among Funds, Cells C26:L26 must = Acct 8130 Transfer Among Funds, Cells C48:L48 | D73: =IF(SUM('Acct Summary 7-8'!C26:K26) =SUM( 'Acct Summary 7-8'!C48:K48),"OK", "ERROR") -> OK
C74: Acct 7140 - Transfer of Interest, Cells C27:L27 must = Acct 8140 Transfer of Interest, Cells C49:L49. | D74: =IF(SUM('Acct Summary 7-8'!C27:K27)=SUM('Acct Summary 7-8'!C49:K49),"OK","ERROR!") -> OK
C75: Acct 7900 - ISBE Loan Proceeds (Cells C41:L41) must = Acct 8910 - Transfers to Debt Service Fund to Pay Principal on ISBE Loans (Cells C58:L58) | D75: =IF(SUM('Acct Summary 7-8'!C41:K41=SUM('Acct Summary 7-8'!C73:K73)),"OK","ERROR!") -> OK
B76: =B72+1 -> 10 | C76: Restricted Local Tax Levies Page 26, Line 25 must = Reserved Fund Balance, Pages 5 & 6, Line 38.
C77: If Tort Immunity Expenditures still exist in the Ed Fund (P15, Cell L51), then the Schedule of Tort Immunity Expenditures on page 26 must be completed. | D77: =IF(AND(OR(COVER!B5="X",'Rest Tax Levies-Tort Im 26'!G16=0,AND(OR('Rest Tax Levies-Tort Im 26'!B30>0,'Rest Tax Levies-Tort Im 26'!D30>0,'Rest Tax Levies-Tort Im 26'!G31>0,'Rest Tax Levies-Tort Im 26'!G32>0),(OR('Rest Tax Levies-Tort Im 26'!G36+'Rest Tax Levies-Tort Im 26'!G44>0))))),"OK","ENTRY IS REQUIRED FOR SCHOOL DISTRICTS!") -> OK
C78: Reserved Fund Balance, Page 5, Cells C38,D38 & F38 must be => Tort Immunity, Page 26, Cell G25. | D78: =IF(SUM('Assets-Liab 5-6'!C38,'Assets-Liab 5-6'!D38,'Assets-Liab 5-6'!F38)>=('Rest Tax Levies-Tort Im 26'!G25),"OK","ERROR") -> OK
C79: Reserved Fund Balance, Page 5, Cells C38,D38,F38 & G38 must be => Special Education, Page 26, Cell H25. | D79: =IF(SUM('Assets-Liab 5-6'!C38,'Assets-Liab 5-6'!D38,'Assets-Liab 5-6'!F38,'Assets-Liab 5-6'!G38)>=('Rest Tax Levies-Tort Im 26'!H25),"OK","ERROR") -> OK
C80: Reserved Fund Balance, Page 5, Cells D38:H38) must be >= Area Vocational Construction, Page 26, Cell I25. | D80: =IF(SUM('Assets-Liab 5-6'!C38,'Assets-Liab 5-6'!D38,'Assets-Liab 5-6'!F38,'Assets-Liab 5-6'!G38)>=('Rest Tax Levies-Tort Im 26'!I25),"OK","ERROR") -> OK
C81: Reserved Fund Balance, Page 5, Cells D38:E38, H38 must be >= School Facility Occupation Taxes, Page 26, Cell J25. | D81: =IF(SUM('Assets-Liab 5-6'!D38,'Assets-Liab 5-6'!E38,'Assets-Liab 5-6'!H38)>=('Rest Tax Levies-Tort Im 26'!J25),"OK","ERROR") -> OK
C82: Reserve Fund Balance, Page 5, Cells C38,D38,G38,H38 must be >= Drivers Education, Page 26, Cell K25. | D82: =IF(SUM('Assets-Liab 5-6'!C38,'Assets-Liab 5-6'!D38,'Assets-Liab 5-6'!G38,'Assets-Liab 5-6'!H38)>=('Rest Tax Levies-Tort Im 26'!K25),"OK","ERROR") -> OK
B83: =B76+1+1 -> 12 | C83: Page 28: The 9 Month ADA must be entered on Line 78. | D83: =IF(OR(COVER!$B$6="X",'PCTC-OEPP 28-29'!F77>0),"OK","PLEASE ENTER 9 MO ADA.") -> OK
B84: =B83+1 -> 13 | C84: Page 31: LIMITATION OF ADMINISTRATIVE COST, Budget Information must be completed and submitted to ISBE. | D84: =IF(COVER!B5="X",IF('AC31'!J19=0,"ENTER BUDGET DATA!","OK"),"OK") -> OK

Sheet AFR10 (hidden)
A1: HEADING (No Data Entry is required on this sheet) | B1: CELL AMOUNT
A2: District/Joint Agreement Code | B2: =COVER!A13 -> 51-084-0110-26
A3: County Name | B3: =COVER!A15 -> Sangamon
A4: District/Joint Agreement Name | B4: =COVER!A17 -> Pawnee CUSD #11
A5: District Superintendent/Administrator Name | B5: =COVER!A38 -> 0
A6: Name of Township | B6: =COVER!O35 -> 0
A7: Township Treasurer Name | B7: =COVER!H38 -> 0
A8: Regional Superintendent Name | B8: =COVER!S38 -> 0
A9: Accounting Basis | B9: =AUDITCHECK!D27 -> CASH
A10: Is this a School District AFR? (YES) | B10: =COVER!B5 -> x
A11: Is this a Joint Agreement AFR? (YES) | B11: =COVER!B6 -> 0
A12: Are Federal Expenditures greater than $500,000? (1 YES, 2 NO) | B12: =IF(COVER!I29="x","Yes",IF(COVER!K29="X",No,"0")) -> 
A13: Is all A133 Single Audit Information completed and attached? (1 YES, 2 NO) | B13: =IF(COVER!I30="x","Yes",IF(COVER!K30="x","No",0)) -> 0
A14: Were any findings issued? (1 YES, 2 NO) | B14: =IF(COVER!I31="x","Yes",IF(COVER!K31="x","No",0)) -> 0
A15: Illinois Registration Number | B15: =COVER!S23 -> 060-004845
A16: CPA Firm Name | B16: =COVER!S13 -> Pehlman and Dold, P.C.
A17: Name of Audit Supervisor | B17: =COVER!S15 -> Dorinda L. Fitzgerald, CPA
A18: Address | B18: =COVER!S17 -> 100 North Amos Avenue
A19: Email Address | B19: =COVER!S25 -> pandd@hansoninfosys.com
A20: City | B20: =COVER!S19 -> Springfield
A21: State | B21: =COVER!W19 -> IL
A22: Zip Code | B22: =COVER!Y19 -> 62702
A23: Telephone Number | B23: =COVER!S21 -> 217-787-0563
A24: Fax Number | B24: =COVER!X21 -> 217-787-9266
A25: Reviewed by the District Superintendent | B25: =COVER!B34 -> 0
A26: Reviewed by Township Treasurer | B26: =COVER!K34 -> 0
A27: Reviewed by Regional Superintendent | B27: =COVER!T34 -> 0
A28: AQ1 (X=YES) | B28: =IF('Aud Quest 2'!B9="x","Yes",IF('Aud Quest 2'!B9<>"x","0")) -> 0
A29: AQ2 | B29: =IF('Aud Quest 2'!B11="x","Yes",IF('Aud Quest 2'!B11<>"x","0")) -> 0
A30: AQ3 | B30: =IF('Aud Quest 2'!B13="x","Yes",IF('Aud Quest 2'!B13<>"x","0")) -> 0
A31: AQ4 | B31: =IF('Aud Quest 2'!B14="x","Yes",IF('Aud Quest 2'!B14<>"x","0")) -> 0
A32: AQ5 | B32: =IF('Aud Quest 2'!B15="x","Yes",IF('Aud Quest 2'!B15<>"x","0")) -> 0
A33: AQ6 | B33: =IF('Aud Quest 2'!B16="x","Yes",IF('Aud Quest 2'!B16<>"x","0")) -> 0
A34: AQ7 | B34: =IF('Aud Quest 2'!B18="x","Yes",IF('Aud Quest 2'!B18<>"x","0")) -> 0
A35: AQ8 | B35: =IF('Aud Quest 2'!B20="x","Yes",IF('Aud Quest 2'!B20<>"x","0")) -> 0
A36: AQ9 | B36: =IF('Aud Quest 2'!B22="x","Yes",IF('Aud Quest 2'!B22<>"x","0")) -> 0
A37: AQ10 | B37: =IF('Aud Quest 2'!B23="x","Yes",IF('Aud Quest 2'!B23<>"x","0")) -> 0
A38: AQ11 | B38: =IF('Aud Quest 2'!B24="x","Yes",IF('Aud Quest 2'!B24<>"x","0")) -> 0
A39: AQ12 | B39: =IF('Aud Quest 2'!B25="x","Yes",IF('Aud Quest 2'!B25<>"x","0")) -> 0
A40: AQ13 | B40: =IF('Aud Quest 2'!B27="x","Yes",IF('Aud Quest 2'!B27<>"x","0")) -> 0
A41: AQ14 | B41: =IF('Aud Quest 2'!B32="x","Yes",IF('Aud Quest 2'!B32<>"x","0")) -> 0
A42: AQ15 | B42: =IF('Aud Quest 2'!B35="x","Yes",IF('Aud Quest 2'!B35<>"x","0")) -> 0
A43: AQ16 | B43: =IF('Aud Quest 2'!B37="x","Yes",IF('Aud Quest 2'!B37<>"x","0")) -> 0
A44: AQ17 | B44: =IF('Aud Quest 2'!B39="x","Yes",IF('Aud Quest 2'!B39<>"x","0")) -> 0
A45: AQ18 | B45: =IF('Aud Quest 2'!B44="x","Yes",IF('Aud Quest 2'!B44<>"x","0")) -> 0
A46: AQ19 | B46: =IF('Aud Quest 2'!B45="x","Yes",IF('Aud Quest 2'!B45<>"x","0")) -> 0
A47: AQ20 | B47: =IF('Aud Quest 2'!B46="x","Yes",IF('Aud Quest 2'!B46<>"x","0")) -> 0
A48: AQ21 | B48: =IF('Aud Quest 2'!B48="x","Yes",IF('Aud Quest 2'!B48<>"x","0")) -> 0
A49: AQ20 Date (If AQ20 = X, DATE) | B49: ='Aud Quest 2'!F48 -> 0
A50: Comment1 | B50: =CONCATENATE('Aud Quest 2'!B51:H51,'Aud Quest 2'!B52:H52,'Aud Quest 2'!B53:H53,'Aud Quest 2'!B54:H54,'Aud Quest 2'!B55:H55,'Aud Quest 2'!B56:H56,+'Aud Quest 2'!B57:H57,+'Aud Quest 2'!B58:H58,'Aud Quest 2'!B59:H59,'Aud Quest 2'!B60:H60,'Aud Quest 2'!B61:H61) -> 
A51: QE1(Pending Litigation) | B51: =IF('FP Info 3'!B44="X","Yes",0) -> 0
A52: QE2 (Material Decrease in EAV) | B52: =IF('FP Info 3'!B45="X","Yes",0) -> 0
A53: QE3 (Material Increase/Decrease in Enrollment) | B53: =IF('FP Info 3'!B46="X","Yes",0) -> 0
A54: QE4 (Adverse Arbitration Ruling) | B54: =IF('FP Info 3'!B47="X","Yes",0) -> 0
A55: QE5 (Passage of Referendum) | B55: =IF('FP Info 3'!B48="X","Yes",0) -> 0
A56: QE6 (Taxes Filed Under Protest) | B56: =IF('FP Info 3'!B49="X","Yes",0) -> 0
A57: QE7 (Decisions By Local Board of Review or IL Property Tax Appeal Board) | B57: =IF('FP Info 3'!B50="X","Yes",0) -> 0
A58: QE8 (Other Ongoing Concerns) | B58: =IF('FP Info 3'!B51="X","Yes",0) -> 0
A59: QE(Comment) | B59: =('FP Info 3'!B54) -> 0 | D59: =IF(ISBLANK(B60),"OK",IF(A60-B60=0,"OK","Error?")) -> OK
A60: 1 | D60: =IF(ISBLANK(B60),"OK",IF(A60-B60=0,"OK","Error?")) -> OK
A61: 2 | D61: =IF(ISBLANK(B61),"OK",IF(A61-B61=0,"OK","Error?")) -> OK
A62: 3 | D62: OK
A63: 4 | B63: ='Assets-Liab 5-6'!C6 -> 0 | D63: Error?
A64: 5 | D64: OK
A65: 6 | D65: OK
A66: 7 | D66: OK
A67: 8 | D67: OK
A68: 9 | D68: OK
A69: 10 | D69: OK
A70: 11 | B70: ='Assets-Liab 5-6'!C10 -> 0 | D70: Error?
A71: 12 | B71: ='Assets-Liab 5-6'!C5 -> 349430 | D71: Error?
A72: 13 | D72: OK
A73: 14 | D73: OK
A74: 15 | B74: ='Assets-Liab 5-6'!C12 -> 0 | D74: Error?
A75: 16 | B75: ='Assets-Liab 5-6'!C13 -> 2324570 | C75: T | D75: Error?
A76: 17 | D76: OK
A77: 18 | D77: OK
A78: 19 | D78: OK
A79: 20 | D79: OK
A80: 21 | D80: OK
A81: 22 | D81: OK
A82: 23 | D82: OK
A83: 24 | D83: OK
A84: 25 | B84: ='Assets-Liab 5-6'!C31 -> 2301 | D84: Error?
A85: 26 | D85: OK
A86: 27 | B86: ='Assets-Liab 5-6'!C32 -> 0 | D86: Error?
A87: 28 | D87: OK
A88: 29 | D88: OK
A89: 30 | B89: ='Assets-Liab 5-6'!C34 -> 2301 | C89: T | D89: Error?
A90: 31 | B90: ='Assets-Liab 5-6'!C39 -> 2322269 | D90: Error?
A91: 32 | B91: ='Assets-Liab 5-6'!C41 -> 2324570 | C91: T | D91: Error?
A92: 33 | D92: OK
A93: 34 | D93: OK
A94: 35 | D94: OK
A95: 36 | B95: ='Assets-Liab 5-6'!D6 -> 0 | D95: Error?
A96: 37 | D96: OK
A97: 38 | D97: OK
A98: 39 | D98: OK
A99: 40 | D99: OK
A100: 41 | D100: OK
A101: 42 | D101: OK
A102: 43 | B102: ='Assets-Liab 5-6'!D10 -> 0 | D102: Error?
A103: 44 | B103: ='Assets-Liab 5-6'!D5 -> 0 | D103: Error?
A104: 45 | D104: OK
A105: 46 | D105: OK
A106: 47 | B106: ='Assets-Liab 5-6'!D12 -> 0 | D106: Error?
A107: 48 | B107: ='Assets-Liab 5-6'!D13 -> 349347 | C107: T | D107: Error?
A108: 49 | D108: OK
A109: 50 | D109: OK
A110: 51 | D110: OK
A111: 52 | D111: OK
A112: 53 | D112: OK
A113: 54 | D113: OK
A114: 55 | D114: OK
A115: 56 | B115: ='Assets-Liab 5-6'!D31 -> 0 | D115: Error?
A116: 57 | D116: OK
A117: 58 | B117: ='Assets-Liab 5-6'!D32 -> 0 | D117: Error?
A118: 59 | D118: OK
A119: 60 | D119: OK
A120: 61 | B120: ='Assets-Liab 5-6'!D34 -> 0 | C120: T | D120: Error?
A121: 62 | B121: ='Assets-Liab 5-6'!D39 -> 349347 | D121: Error?
A122: 63 | B122: ='Assets-Liab 5-6'!D41 -> 349347 | C122: T | D122: Error?
A123: 64 | D123: OK
A124: 65 | B124: ='Assets-Liab 5-6'!E6 -> 0 | D124: Error?
A125: 66 | D125: =IF(ISBLANK(B125),"OK",IF(A125-B125=0,"OK","Error?")) -> OK
A126: 67 | D126: OK
A127: 68 | B127: ='Assets-Liab 5-6'!E5 -> 0 | D127: Error?
A128: 69 | B128: ='Assets-Liab 5-6'!E12 -> 0 | D128: Error?
A129: 70 | B129: ='Assets-Liab 5-6'!E13 -> 90620 | C129: T | D129: Error?
A130: 71 | D130: OK
A131: 72 | D131: OK
A132: 73 | B132: ='Assets-Liab 5-6'!E32 -> 0 | D132: Error?
A133: 74 | D133: OK
A134: 75 | D134: OK
A135: 76 | D135: OK
A136: 77 | D136: OK
A137: 78 | B137: ='Assets-Liab 5-6'!E34 -> 0 | C137: T | D137: Error?
A138: 79 | B138: ='Assets-Liab 5-6'!E39 -> 90620 | D138: Error?
A139: 80 | B139: ='Assets-Liab 5-6'!E41 -> 90620 | C139: T | D139: Error?
A140: 81 | D140: OK
A141: 82 | D141: OK
A142: 83 | D142: OK
A143: 84 | B143: ='Assets-Liab 5-6'!F6 -> 0 | D143: Error?
A144: 85 | D144: OK
A145: 86 | D145: OK
A146: 87 | D146: OK
A147: 88 | D147: OK
A148: 89 | D148: OK
A149: 90 | D149: OK
A150: 91 | B150: ='Assets-Liab 5-6'!F10 -> 0 | D150: Error?
A151: 92 | B151: ='Assets-Liab 5-6'!F5 -> 0 | D151: Error?
A152: 93 | D152: OK
A153: 94 | D153: OK
A154: 95 | B154: ='Assets-Liab 5-6'!F12 -> 0 | D154: Error?
A155: 96 | B155: ='Assets-Liab 5-6'!F13 -> 58324 | C155: T | D155: Error?
A156: 97 | D156: OK
A157: 98 | D157: OK
A158: 99 | D158: OK
A159: 100 | D159: OK
A160: 101 | D160: OK
A161: 102 | D161: OK
A162: 103 | B162: ='Assets-Liab 5-6'!F31 -> 29 | D162: Error?
A163: 104 | D163: OK
A164: 105 | B164: ='Assets-Liab 5-6'!F32 -> 0 | D164: Error?
A165: 106 | D165: OK
A166: 107 | D166: OK
A167: 108 | B167: ='Assets-Liab 5-6'!F34 -> 50029 | C167: T | D167: Error?
A168: 109 | B168: ='Assets-Liab 5-6'!F39 -> 8295 | D168: Error?
A169: 110 | B169: ='Assets-Liab 5-6'!F41 -> 58324 | C169: T | D169: Error?
A170: 111 | D170: OK
A171: 112 | B171: ='Assets-Liab 5-6'!G6 -> 0 | D171: Error?
A172: 113 | D172: OK
A173: 114 | D173: OK
A174: 115 | D174: OK
A175: 116 | B175: ='Assets-Liab 5-6'!G5 -> 0 | D175: Error?
A176: 117 | D176: OK
A177: 118 | B177: ='Assets-Liab 5-6'!G12 -> 0 | D177: Error?
A178: 119 | B178: ='Assets-Liab 5-6'!G13 -> 62922 | C178: T | D178: Error?
A179: 120 | D179: OK
A180: 121 | D180: OK
A181: 122 | D181: OK
A182: 123 | B182: ='Assets-Liab 5-6'!G31 -> 0 | D182: Error?
A183: 124 | B183: ='Assets-Liab 5-6'!G32 -> 0 | D183: Error?
A184: 125 | D184: OK
A185: 126 | D185: OK
A186: 127 | B186: ='Assets-Liab 5-6'!G34 -> 32000 | C186: T | D186: Error?
A187: 128 | B187: ='Assets-Liab 5-6'!G39 -> 30922 | D187: Error?
A188: 129 | B188: ='Assets-Liab 5-6'!G41 -> 62922 | C188: T | D188: Error?
A189: 130 | D189: =IF(ISBLANK(B189),"OK",IF(A189-B189=0,"OK","Error?")) -> OK
A190: 131 | D190: OK
A191: 132 | D191: OK
A192: 133 | D192: OK
A193: 134 | D193: OK
A194: 135 | D194: OK
A195: 136 | D195: OK
A196: 137 | B196: ='Assets-Liab 5-6'!H10 -> 0 | D196: Error?
A197: 138 | B197: ='Assets-Liab 5-6'!H5 -> 0 | D197: Error?
A198: 139 | D198: OK
A199: 140 | D199: OK
A200: 141 | B200: ='Assets-Liab 5-6'!H12 -> 0 | D200: Error?
... 7598 more rows

Sheet A-133 Cover
A2: ANNUAL FEDERAL FINANCIAL COMPLIANCE REPORT (COVER SHEET)
A3: DISTRICT/JOINT AGREEMENT
A4: Year Ending June 30, 2010
A6: DISTRICT/JOINT AGREEMENT NAME | E6: RCDT NUMBER | G6: CPA FIRM 9-DIGIT STATE REGISTRATION NUMBER
A7: =COVER!A17 -> Pawnee CUSD #11 | E7: =COVER!A13 -> 51-084-0110-26 | G7: =COVER!S23 -> 060-004845
A8: ADMINISTRATIVE AGENT IF JOINT AGREEMENT | E8: (as applicable) | G8: NAME AND ADDRESS OF AUDIT FIRM
A9: =COVER!A38 -> 0 | G9: =COVER!S13 -> Pehlman and Dold, P.C.
G10: =COVER!S17 -> 100 North Amos Avenue
A11: ADDRESS OF AUDITED ENTITY (Street and/or P.O. Box, City, State, Zip Code) | G11: =COVER!S19 -> Springfield | K11: =COVER!V22 -> 0 | L11: =COVER!W22 -> 0
G12: E-MAIL ADDRESS | I12: =COVER!S25 -> pandd@hansoninfosys.com
A13: =COVER!A19 -> P.O. Box 1040 | G13: NAME OF AUDIT SUPERVISOR
E14: =COVER!G22 -> 0 | G14: =COVER!S15 -> Dorinda L. Fitzgerald, CPA
A15: =COVER!A21 -> Pawnee, IL
A16: =COVER!A25 -> 62558
G17: CPA FIRM TELEPHONE NUMBER | K17: FAX NUMBER
G18: =COVER!S21 -> 217-787-0563 | K18: =COVER!X21 -> 217-787-9266
A21: THE FOLLOWING INFORMATION MUST BE INCLUDED IN THE A-133 SINGLE AUDIT REPORT:
C23: A copy of the CPA firm's most recent peer review report and acceptance letter has been submitted to
C24: ISBE (either with the audit or under separate cover).
C26: Financial Statements including footnotes § .310 (a)
C28: Schedule of Expenditures of Federal Awards including footnotes § .310 (b)
C30: Independent Auditor's Report § .505
C32: Independent Auditor's Report on Compliance and on Internal Control Over Financial Reporting Based on
C33: an Audit of Financial Statements Performed in Accordance with Government Auditing Standards § .505
C35: Independent Auditor's Report on Compliance with Requirements Applicable to each Major Program
C36: and Internal Control over Compliance in Accordance with OMB Circular A-133 § .505
C38: Schedule of Findings and Questioned Costs § .505 (d)
C40: Summary Schedule of Prior Year Audit Findings § .315 (b)
C42: Corrective Action Plan § .315 (c)
A44: THE FOLLOWING INFORMATION IS HIGHLY RECOMMENDED TO BE INCLUDED:
C46: Copy of Federal Data Collection Form § .320 (b)

Sheet A-133 Checklist
A1: ='A-133 Cover'!A7:D7 -> Pawnee CUSD #11
A2: ='A-133 Cover'!E7 -> 51-084-0110-26
A3: A-133 SINGLE AUDIT INFORMATION CHECKLIST
B5: The following checklist is OPTIONAL; it is not a required form for completion of A-133 Single Audit information. The purpose of the
B6: checklist is to assist in determining if appropriate information has been correctly completed within the Annual Financial Report (AFR).
B7: This is not a complete listing of all A-133 requirements, but highlights some of the more common errors found during ISBE reviews.
B9: GENERAL INFORMATION
C11: 1 | D11: Signed copies of audit opinion letters have been included with audit package submitted to ISBE.
C12: =C11+1 -> 2 | D12: All opinion letters use the most current audit language as mandated in SAS 112 and other pronouncements.
C13: =C12+1 -> 3 | D13: ALL Single Audit forms within the AFR Excel workbook have been completed, where appropriate.
D14: - For those forms that are not applicable, "N/A" or similar language has been indicated.
C16: =C13+1 -> 4 | D16: ALL Federal revenues reported in FRIS Report 0053 (Summary of Payments) are accounted for in the Schedule of Expenditures of
D17: Federal Awards (SEFA).
D18: Programs funded through ARRA are identified separately in SEFA
C20: =C16+1 -> 5 | D20: Federal revenues reported on the AFR reconcile to Federal revenues reported on the SEFA.
D21: - Verify or reconcile on reconciliation worksheet.
C23: =C20+1 -> 6 | D23: The value of COMMODITIES has been included within the AFR on the INDIRECT COSTS page (IND COST INFO 30) on Line 12.
D24: It should not be included in the Statement of Revenues Received (REVENUES 9-14) within the AFR Accounts 4210 - 4299.
D25: Those accounts are specific cash programs, not non-cash assistance such as COMMODITIES.
C27: =C23+1 -> 7 | D27: Complete audit package (Data Collection Form, audit reports, etc.) has been submitted to the Federal Audit Clearinghouse in
D28: Jeffersonville, Indiana.
B30: SCHEDULE OF EXPENDITURES OF FEDERAL AWARDS
C32: =C27+1 -> 8 | D32: Programs funded through ARRA (Federal Stimulus funds) are identified separately from "regular" Federal programs
D33: - Program name includes "ARRA - " prefix
D34: - Correct ARRA CFDA and ISBE program numbers are listed
C36: 9 | D36: All prior year's projects are included and reconciled to final FRIS report amounts.
D37: - Including revenue and expenditure/disbursement amounts.
C39: =C36+1 -> 10 | D39: All current year's projects are included and reconciled to most recent FRIS report filed.
D40: - Including revenue and expenditure/disbursement amounts.
C42: =C39+1 -> 11 | D42: Differences in reported spending amounts on the SEFA and the final FRIS reports should be detailed and/or documented in a finding,
D43: with discrepancies reported as Questioned Costs.
C45: =C42+1 -> 12 | D45: Child Nutrition Programs (CNP) are included on the SEFA:
D46: Project year runs from October 1 to September 30, so projects will cross fiscal year;
D47: This means that audited year revenues will include funds from both the prior year and current year projects.
C49: =C45+1 -> 13 | D49: Each CNP project should be reported on separate line (one line per project year per program).
C50: =C49+1 -> 14 | D50: Total CNP Revenue amounts are consistent with grant amounts awarded by ISBE for each program by project year.
C51: =C50+1 -> 15 | D51: Total CNP Expenditure amounts are consistent with grant amounts awarded by ISBE for each program by project year.
C52: =C51+1 -> 16 | D52: Exceptions should result in a finding with Questioned Costs.
C53: =C52+1 -> 17 | D53: The total value of COMMODITIES has been reported on the SEFA (CFDA 10.550).
D54: - The value is determined from the following, with each item on a separate line:
D55: * Non-Cash Commodities: Monthly Commodities Bulletin for April (From the Illinois Commodities System accessed through ISBE web site)
D56: Total commodities = A PAL Allocated + B PAL Allocated + Processing Deductions + Total Bonus Allocated
D57: * Non-Cash Commodities: Commodities information for non-cash items received through Preferred Meal Systems
D58: Districts should track separately through year; no specific report available from ISBE
D59: * Department of Defense Fresh Fruits and Vegetables (District should track through year)
D60: - The two commodity programs should be reported on separate lines on the SEFA.
D61: * Amounts verified for Fresh Fruits and Vegetables cash grant program (ISBE code 4240)
D62: CFDA number: 10.582
C64: =C53+1 -> 18 | D64: TOTALS have been calculated for Federal revenue and expenditure amounts.
C65: =C64+1 -> 19 | D65: Obligations and Encumbrances are included where appropriate.
C66: =C65+1 -> 20 | D66: FINAL STATUS amounts are calculated, where appropriate.
C67: =C66+1 -> 21 | D67: Medicaid Fee-for-Service funds and E-Rate reimbursements have not been included on the SEFA.
C68: =C67+1 -> 22 | D68: All programs tested (not just Type A programs) are indicated by either an * or (M) on the SEFA.
C69: =C68+1 -> 23 | D69: NOTES TO THE SEFA within the AFR Excel workbook (SEFA-2) have been completed.
D70: Including, but not limited to:
C71: =C69+1 -> 24 | D71: Basis of Accounting
C72: =C71+1 -> 25 | D72: Name of Entity
C73: =C72+1 -> 26 | D73: Type of Financial Statements
C74: =C73+1 -> 27 | D74: Subrecipient information (Mark "N/A" if not applicable)
D75: * ARRA funds are listed separately from "regular" Federal awards
B77: SUMMARY OF AUDITOR RESULTS/FINDINGS/CORRECTIVE ACTION PLAN
C79: =C74+1 -> 28 | D79: Audit opinions expressed in opinion letters match opinions reported in Summary.
C80: =C79+1 -> 29 | D80: All Summary of Auditor Results questions have been answered.
C81: =C80+1 -> 30 | D81: All tested programs are listed.
C82: =C81+1 -> 31 | D82: Correct testing threshold has been entered. (OMB A-133, §_.520)
B84: Findings have been filled out completely and correctly (if none, mark "N/A").
C86: =C82+1 -> 32 | D86: Financial Statement and/or Federal Awards Findings information has been completely filled out for each finding.
C87: 32 | D87: Finding completed for each Significant Deficiency and for each Material Weakness noted in opinion letters.
C88: 33 | D88: Separate finding for each Federal program (i.e., don't report same finding for multiple programs on one sheet).
C89: 34 | D89: Separate finding sheet for each finding on programs (e.g., excess interest earned and unallowable expenditures are two findings
D90: and should be reported separately, even if both are on same program).
C91: =C89+1 -> 35 | D91: Questioned Costs have been calculated where there are questioned costs.
C92: =C91+1 -> 36 | D92: Questioned Costs are separated by fiscal year and by project.
C93: =C92+1 -> 37 | D93: Questioned Costs have been calculated for Interest Earned on Excess Cash on Hand.
D94: - Should be based on actual amount of interest earned
C95: =C93+1 -> 38 | D95: A CORRECTIVE ACTION PLAN has been completed for each finding.
D96: - Including Finding number, action plan details, projected date of completion, name and title of contact person

Sheet SEFA Reconcile
A1: ='A-133 Cover'!A7 -> Pawnee CUSD #11
A2: ='A-133 Cover'!E7 -> 51-084-0110-26
A4: RECONCILIATION OF FEDERAL REVENUES
A6: Annual Financial Report to Schedule of Expenditures of Federal Awards
A8: TOTAL FEDERAL REVENUE IN AFR
A10: Account Summary 7-8, Line 7 | B10: Account 4000 | D10: =SUM('Acct Summary 7-8'!C7:K7) -> 237524
A11: Flow-through Federal Revenues
A12: Revenues 9-14, Line 112 | B12: Account 2200 | D12: =SUM('Revenues 9-14'!C112,'Revenues 9-14'!D112,'Revenues 9-14'!F112,'Revenues 9-14'!G112) -> 144912
A13: Value of Commodities
A14: Indirect Cost Info 30, Line 11 | D14: ='ICR Computation 30'!E11 -> 15107
A16: Less: Medicaid Fee-for-Service
A17: Revenues 9-14, Line 268 | B17: Account 4992 | D17: =-SUM('Revenues 9-14'!C269:D269,'Revenues 9-14'!F269:G269) -> -4180
A19: AFR TOTAL FEDERAL REVENUES: | D19: =SUM(D10:D17) -> 393363
A21: ADJUSTMENTS TO AFR FEDERAL REVENUE AMOUNTS:
A23: Reason for Adjustment:
A32: ADJUSTED AFR FEDERAL REVENUES | D32: =SUM(D19:D30) -> 393363
A34: Total Current Year Federal Revenues Reported on SEFA:
A35: Federal Revenues | B35: Column D
A37: Adjustments to SEFA Federal Revenues:
A39: Reason for Adjustment:
B47: ADJUSTED SEFA FEDERAL REVENUE: | D47: =SUM(D35:D45) -> 0
B49: DIFFERENCE: | D49: =D32-D47 -> 393363

Sheet SEFA-1
B1: =COVER!A13 -> 51-084-0110-26
B2: =COVER!A17 -> Pawnee CUSD #11
B3: SCHEDULE OF EXPENDITURES OF FEDERAL AWARDS
B4: ='A-133 Cover'!A4 -> Year Ending June 30, 2010
D6: ISBE Project # | E6: Receipts/Revenues | G6: Expenditure/Disbursements4
B7: Federal Grantor/Pass-Through Grantor/ | C7: CFDA | D7: (1st 8 digits) | E7: Year | F7: Year | G7: Year | H7: Year | I7: Obligations/ | J7: Final | K7: Budget
B8: Program or Cluster Title and | C8: Number2 | D8: or Contract #3 | E8: 7/1/08-6/30/09 | F8: 7/1/09-6/30/10 | G8: 7/1/08-6/30/09 | H8: 7/1/09-6/30/10 | I8: Encumb. | J8: Status
B9: Major Program Designation | C9: (A) | D9: (B) | E9: (C) | F9: (D) | G9: (E) | H9: (F) | I9: (G) | J9: (H) | K9: (I)
B26: • (M) Program was audited as a major program as defined by OMB Circular A-133.
B28: The accompanying notes are an integral part of this schedule.
B30: 1 To meet state or other requirements, auditees may decide to include certain nonfederal awards (for example, state awards) in this schedule. If such nonfederal data are presented,
B31: they should be segregated and clearly designated as nonfederal. The title of the schedule should also be modified to indicate that nonfederal awards are included.
B32: 2 When the CFDA number is not available, the auditee should indicate that the CFDA number is not available and include in the schedule the program's name and, if applicable,
B33: other identifying number.
B34: 3 When awards are received as a subrecipient, the identifying number assigned by the pass-through entity should be included in the schedule.
B35: 4 Circular A-133 requires that the value of federal awards expended in the form of non-cash assistance, the amount of insurance in effect during the year, and loans or loan guarantees
B36: outstanding at year end be included in either the schedule or a note to the schedule. Although it is not required, Circular A-133 states that it is preferable to present this information in
B37: the schedule (versus the notes to the schedule). If the auditee presents non-cash assistance in the notes to the schedule, the auditor should be aware that such amounts must
B38: still be included in part III of the data collection form.

Sheet SEFA-2
B1: =COVER!A13 -> 51-084-0110-26
B2: =COVER!A17 -> Pawnee CUSD #11
B3: NOTES TO THE SCHEDULE OF EXPENDITURES OF FEDERAL AWARDS (SEFA)
B4: ='A-133 Cover'!A4 -> Year Ending June 30, 2010
B6: Note 1: Basis of Presentation5
B7: The accompanying Schedule of Expenditures of Federal Awards includes the federal grant activity of [Entity #XYZ] and is presented on the [Identify Basis of Accounting]. The information in this schedule is presented in accordance with the requirements of Office of Management and Budget Circular A-133, Audits of States, Local Governments and Non-Profit Organizations. Therefore, some amounts presented in this schedule may differ from amounts presented in, or used in the preparation of, the [General-Purpose or Basic] financial statements.
B8: Note 2: Subrecipients6
B9: Of the federal expenditures presented in the schedule, [Entity #XYZ] provided federal awards to subrecipients as follows:
D11: Federal | E11: Amount Provided to
C12: Program Title/Subrecipient Name | D12: CFDA Number | E12: Subrecipients
B28: 5 | C28: This note is included to meet the Circular A-133 requirement that the schedule include notes that describe the significant accounting policies used in preparing the schedule.
B29: 6 | C29: Circular A-133 requires the schedule of expenditures of federal awards to include, to the extent practical, an identification of the total amount provided to subrecipients, from each federal program. Although this example includes the required subrecipie

Sheet SF&QC Sec-1
B1: ='A-133 Cover'!$A$7 -> Pawnee CUSD #11
B2: ='A-133 Cover'!$E$7 -> 51-084-0110-26
B3: SCHEDULE OF FINDINGS AND QUESTIONED COSTS
B4: ='A-133 Cover'!A4 -> Year Ending June 30, 2010
B7: SECTION I - SUMMARY OF AUDITOR'S RESULTS
B10: FINANCIAL STATEMENTS
B11: Type of auditor's report issued:
C12: (Unqualified, Qualified, Adverse, Disclaimer)
B14: INTERNAL CONTROL OVER FINANCIAL REPORTING:
B15: • Material weakness(es) identified? | F15: YES | H15: NO
B17: • Significant Deficiency(s) identified that are not considered to | F17: YES | H17: None Reported
B18: be material weakness(es)
B20: • Noncompliance material to financial statements noted? | F20: YES | H20: NO
B22: FEDERAL AWARDS
B23: INTERNAL CONTROL OVER MAJOR PROGRAMS:
B24: • Material weakness(es) identified? | F24: YES | H24: NO
B26: • Significant Deficiency(s) identified that are not considered to | F26: YES | H26: None Reported
B27: be material weakness(es)
B29: Type of auditor's report issued on compliance for major programs:
D30: (Unqualified, Qualified, Adverse, Disclaimer7)
B32: Any audit findings disclosed that are required to be reported in
B33: accordance with Circular A-133, § .510(a)? | F33: YES | H33: NO
B35: IDENTIFICATION OF MAJOR PROGRAMS:8
B36: CFDA NUMBER(S)9 | C36: NAME OF FEDERAL PROGRAM or CLUSTER10
B44: Dollar threshold used to distinguish between Type A and Type B programs:
B46: Auditee qualified as low-risk auditee? | F46: YES | H46: NO
B48: 7 If the audit report for one or more major programs is other than unqualified, indicate the type of report issued for each program.
B49: Example: "Unqualified for all major programs except for [name of program], which was qualified and [name of program], which
B50: was a disclaimer."
B51: 8 Major programs should generally be reported in the same order as they appear on the SEFA.
B52: 9 When the CFDA number is not available, include other identifying number, if applicable.
B53: 10 The name of the federal program or cluster should be the same as that listed in the SEFA. For clusters, auditors are only
B54: required to list the name of the cluster.

Sheet SF&QC Sec-2
B1: ='A-133 Cover'!$A$7 -> Pawnee CUSD #11
B2: ='A-133 Cover'!$E$7 -> 51-084-0110-26
B3: SCHEDULE OF FINDINGS AND QUESTIONED COSTS
B4: ='A-133 Cover'!A4 -> Year Ending June 30, 2010
B7: SECTION II - FINANCIAL STATEMENT FINDINGS
B10: 1. FINDING NUMBER:11 | E10: 2. THIS FINDING IS: | G10: New | I10: Repeat from Prior Year?
H11: Year originally reported?
B13: 3. Criteria or specific requirement
B16: 4. Condition
B19: 5. Context12
B22: 6. Effect
B25: 7. Cause
B28: 8. Recommendation
B31: 9. Management's response13
B34: For ISBE Review
B35: Date: | E35: Resolution Criteria Code Number
B36: Initials: | E36: Disposition of Questioned Costs Code Letter
B39: 11 A suggested format for assigning reference numbers is to use the last two digits of the fiscal year being audited followed by a numeric
B40: sequence of findings. For example, findings identified and reported in the audit of fiscal year 2003 would be assigned a reference
B41: number of 02-01, 02-02, etc.
B42: 12 Provide sufficient information for judging the prevalence and consequences of the finding, such as relation to universe of costs and/or
B43: number of items examined and quantification of audit findings in dollars.
B44: 13 See paragraphs 5.18 through 5.20 and 7.38 through 7.42 of Government Auditing Standards for additional guidance on reporting
B45: management's response.

Sheet SF&QC Sec-3
B1: ='A-133 Cover'!$A$7 -> Pawnee CUSD #11
B2: ='A-133 Cover'!$E$7 -> 51-084-0110-26
B3: SCHEDULE OF FINDINGS AND QUESTIONED COSTS
B4: ='A-133 Cover'!A4 -> Year Ending June 30, 2010
B6: SECTION III - FEDERAL AWARD FINDINGS AND QUESTIONED COSTS
B8: 1. FINDING NUMBER:14 | E8: 2. THIS FINDING IS: | G8: New | I8: Repeat from Prior year?
H9: Year originally reported?
B12: 3. Federal Program Name and Year:
B14: 4. Project No.: | G14: 5. CFDA No.:
B16: 6. Passed Through:
B17: 7. Federal Agency:
B19: 8. Criteria or specific requirement (including statutory, regulatory, or other citation)
B22: 9. Condition15
B25: 10. Questioned Costs16
B28: 11. Context17
B31: 12. Effect
B34: 13. Cause
B37: 14. Recommendation
B40: 15. Management's response18
B43: For ISBE Review
B44: Date: | E44: Resolution Criteria Code Number
B45: Initials: | E45: Disposition of Questioned Costs Code Letter
B48: 14 See footnote 11.
B49: 15 Include facts that support the deficiency identified on the audit finding.
B50: 16 Identify questioned costs as required by sections 510(a)(3) and 510 (a) (4) of Circular A-133.
B51: 17 See footnote 12.
B52: 18 To the extent practical, indicate when management does not agree with the finding, questioned cost, or both.

Sheet SSPAF
B1: ='A-133 Cover'!$A$7 -> Pawnee CUSD #11
B2: ='A-133 Cover'!$E$7 -> 51-084-0110-26
B3: SUMMARY SCHEDULE OF PRIOR AUDIT FINDINGS19
B4: ='A-133 Cover'!A4 -> Year Ending June 30, 2010
B6: Finding Number | C6: Condition | D6: Current Status20
B9: [If there are no prior year audit findings, please submit schedule and indicate NONE]
B44: When possible, all prior findings should be on the same page
B45: 19 See the instructions in the Guide to Auditing and Reporting for Illinois Public Local Education Agencies for an
B46: explanation of this schedule.
B47: 20 Current Status should include one of the following:
B48: • A statement that corrective action was taken
B49: • A description of any partial or planned corrective action
B50: • An explanation if the corrective action taken was significantly different from that previously reported
B51: or in the management decision received from the pass-through entity.

Sheet CAP
B1: ='A-133 Cover'!$A$7 -> Pawnee CUSD #11
B2: ='A-133 Cover'!$E$7 -> 51-084-0110-26
B3: CORRECTIVE ACTION PLAN FOR CURRENT YEAR AUDIT FINDINGS21
B4: ='A-133 Cover'!A4 -> Year Ending June 30, 2010
B6: Corrective Action Plan
B8: Finding No.:
B10: Condition:
B13: Plan:
B16: Anticipated Date of Completion:
B18: Name of Contact Person: | D18: [person responsible for implementation]
B20: Management Response: | D20: [if applicable, an explanation giving specific reasons if the
D21: district officials do not agree with the finding and believes
D22: that corrective action is unnecessary.]
B42: 21 See the instructions in the Guide to Auditing and Reporting for Illinois Public Local Education Agencies for an
B43: explanation of this schedule.
